{"text_format":"3","workbook":"xlsx","n_sheets":22,"sheets":["Summary of Priced ","OHS (P's & G's)","1. Christ the King","2. St Andrews","3. Elizabeth Ross","4. McCords","5. Appelsbosch","6. Greytown","7. Umphumulo","8. Benedictine","9. Bethesda","10. Ceza","11. Itshelejuba","12. Mseleni","13. Lydenburg","14. Mecklenburg","15. Sabie","16. Tintswalo","17. Seshego","18. Jubilee","19. KwaMhlanga","20. Bela-Bela"],"read":"whole","date_system":"1900"}

{"sheet":"Summary of Priced ","index":0,"n_rows":26,"n_cols":6,"rows_kept":26,"merged":[[1,0,1,5],[3,1,14,1],[15,0,15,4],[16,1,23,1],[24,0,24,4],[25,0,25,4]]}
[]
["Summary of Offer"]
["Item","Cluster No.","Cluster Province","Location ","Hospital Name ","Value of Offer (Incl VAT) "]
[1,1,"KwaZulu-Natal","eXobho,KZN","Christ the King Hospital",{"$f":"'1. Christ the King'!G56:G57","v":0}]
[2,null,"KwaZulu-Natal","Harding,KZN","St Andrews Hospital",0]
[3,null,"Free State","Phuthaditjhaba,FS","Elizabeth Ross Hospital",{"$f":"'3. Elizabeth Ross'!G55","v":0}]
[4,null,"KwaZulu-Natal","Durban,KZN","McCords Hospital",{"$f":"'4. McCords'!G55","v":0}]
[5,null,"KwaZulu-Natal","Etsheni,KZN","Appelsbosch Hospital",{"$f":"'5. Appelsbosch'!G55","v":0}]
[6,null,"KwaZulu-Natal","GreyTown,KZN","Greytown Hospital",{"$f":"'6. Greytown'!G55","v":0}]
[7,null,"KwaZulu-Natal","Umphumulo,KZN","Umphumulo Hospital",{"$f":"'7. Umphumulo'!G55","v":0}]
[8,null,"KwaZulu-Natal","Nongoma,KZN","Benedictine Hospital",{"$f":"'8. Benedictine'!G55","v":0}]
[9,null,"KwaZulu-Natal","Bethesda,KZN","Bethesda Hospital",{"$f":"'9. Bethesda'!G55","v":0}]
[10,null,"KwaZulu-Natal","Ceza,KZN","Ceza Hospital",{"$f":"'10. Ceza'!G55","v":0}]
[11,null,"KwaZulu-Natal","Pongola,KZN","Itshelejuba Hospital",{"$f":"'11. Itshelejuba'!G55","v":0}]
[12,null,"KwaZulu-Natal","Nhlamvu,KZN","Mseleni Hospital",{"$f":"'12. Mseleni'!G55","v":0}]
["Cluster 1 Total",{"$nulls":4},{"$f":"SUM(F4:F15)","v":0}]
[13,2,"Mpumalanga","Lydenburg, MP","Lydenburg Hospital",{"$f":"'13. Lydenburg'!G54","v":0}]
[14,null,"Limpopo","Burgersfort,LP","Mecklenburg Hospital",{"$f":"'14. Mecklenburg'!G55","v":0}]
[15,null,"Mpumalanga","Sabie,MP","Sabie Hospital",{"$f":"'15. Sabie'!G55","v":0}]
[16,null,"Mpumalanga","Accornhoek,MP","Tintswalo Hospital",{"$f":"'16. Tintswalo'!G55","v":0}]
[17,null,"Limpopo","Seshego,LP","Seshego Hospital",{"$f":"'17. Seshego'!G55","v":0}]
[18,null,"Gauteng","Temba,GP","Jubilee Hospital",{"$f":"'18. Jubilee'!G55","v":0}]
[19,null,"Mpumalanga","KwaMhlanga,MP","KwaMhlanga Hospital",{"$f":"'19. KwaMhlanga'!G55","v":0}]
[20,null,"Limpopo","Bela-Bela;LP","Warmbaths Hospital",{"$f":"'20. Bela-Bela'!G55","v":0}]
["Cluster 2 Total",{"$nulls":4},{"$f":"SUM(F17:F24)","v":0}]
["Form of Offer Value (Cluster 1 + Cluster 2)",{"$nulls":4},{"$f":"F16+F25","v":0}]

{"sheet":"OHS (P's & G's)","index":1,"n_rows":15,"n_cols":2,"rows_kept":15,"merged":[[0,0,0,1],[1,0,1,1],[14,0,25,1]]}
["The table below identifies the Preliminary and General (P&G) items together with their corresponding Occupational Health and Safety (OHS) activity descriptions. Tenderers shall make full provision for these requirements in the rates and prices submitted as part of their bid offer, per site. No additional payment will be made for compliance with these requirements unless specifically provided for elsewhere in the Bill of Quantities."]
[]
["Item (By Principal Contractor)","Activity Description (By Principal Contractor)"]
["Safety File Preparation and Maintenance","Compilation, submission, approval and ongoing maintenance of the statutory OHS File in accordance with the OHS Act, Construction Regulations and project SHE Specification, including all required appointments, registers, procedures and compliance documentation."]
["Site Induction and Competency Training","Conduct site inductions, toolbox talks, refresher training and task-specific competency training, including working at heights, electrical safety, lock-out/tag-out (LOTO), manual handling and emergency response."]
["Personal Protective Equipment (PPE)","Supply, replace and enforce the use of mandatory and task-specific PPE, including fall arrest equipment, arc-flash PPE and other specialised equipment required for solar PV installation activities."]
["Occupational Medical Surveillance","Arrange occupational medical examinations and issue valid Certificates of Fitness for personnel undertaking construction activities, including working at heights where applicable."]
["Emergency Preparedness and Response","Provide first aid facilities, firefighting equipment, spill kits, emergency procedures, evacuation drills and appoint competent emergency personnel in accordance with the project Emergency Response Plan."]
["Safety Signage, Barricading and Public Protection","Install, inspect and maintain all safety signage, barricading, exclusion zones and pedestrian protection measures to ensure the safety of workers, hospital staff, patients and visitors."]
["Incident Reporting and Investigation","Implement procedures for reporting, recording and investigating incidents, near misses and non-conformances, including corrective and preventative actions."]
["OHS Agent and Client Liaison","Attend SHE meetings, compliance inspections and audits, address observations, submit required reports and maintain liaison with the Client, OHS Agent and other stakeholders."]
["Housekeeping and Waste Management","Maintain clean work areas, remove waste and debris, safely store materials and ensure continuous housekeeping throughout the construction period."]
["Permit-to-Work and Operational Hospital Coordination","Manage permit-to-work systems for electrical isolation, hot works, confined space entry, rooftop access and other high-risk activities, while coordinating construction activities to minimise disruption to hospital operations."]
[]
["The Contractor is expected to consider the included into their form of offer and is required to submit the following upon award which will be site specific,\n\nDetailed design,\nP&ID,\nMaterials specification & Datasheets,\nProduct Specifications & Datasheets,\nInstallation Methodology,\nQuality Control Plan\nHealth and Safety & Environmental Plan \nFall protection Plan \n\nPrincipal Contractor cannot rely on ignorance of the law as a defence; compliance with statutory obligations is mandatory. It is the Principal Contractor’s responsibility to ensure awareness of and compliance with all relevant legal requirements; failure to do so will not excuse noncompliance"]

{"sheet":"1. Christ the King","index":2,"n_rows":56,"n_cols":7,"rows_kept":56,"merged":[[0,0,0,6],[1,0,1,6],[48,3,48,6],[49,3,49,5],[50,3,50,5],[51,3,51,5],[52,3,52,5],[53,3,53,5],[54,3,54,5],[55,3,56,5],[55,6,56,6]]}
["TENDER No: RFP069-070/2026: APPOINTMENT OF SERVICE PROVIDERS FOR THE DESIGN, SUPPLY, INSTALLATION, COMMISSIONING AND MAINTENANCE OF SOLAR-POWERED BACKUP SYSTEMS AT TWENTY (20) HOSPITAL FACILITIES RECEIVING PRESSURE SWING ADSORPTION (PSA) OXYGEN GENERATING PLANTS: \nChrist the King Hospital"]
["Cluster 1 | Preliminary procurement quantities based on the 100 kWp planning class. Tenderer to price all items; final quantities and ratings remain subject to site verification, the accepted seven-day load study and the Contractor's detailed design."]
[]
["Item No","Item","Activity Description","Unit","Quantity","Rate","Amount"]
[1,"Preliminary & General: Once-off costs","Site establishment, mobilisation, demobilisation, temporary facilities, storage, fencing, site signage and initial setup.","Sum ",{"v":1,"d":"1.00"},null,{"$f":"BOQ_13[[#This Row],[Quantity]]*BOQ_13[[#This Row],[Rate]]","v":{"v":0,"d":"R 0.00"}}]
[2,"Preliminary & General: Time-related costs","Site management and supervision, temporary facilities, utilities, security, administration, plant, tools and welfare facilities for the contract duration.","Month ",{"v":1,"d":"1.00"},null,{"$f":"BOQ_13[[#This Row],[Quantity]]*BOQ_13[[#This Row],[Rate]]","v":{"v":0,"d":"R 0.00"}}]
[3,"Preliminary & General: Value-related costs","Contractor's All Risks Insurance, public liability insurance, performance guarantees, bonds, statutory fees and financial securities.","Sum ",{"v":1,"d":"1.00"},null,{"$f":"BOQ_13[[#This Row],[Quantity]]*BOQ_13[[#This Row],[Rate]]","v":{"v":0,"d":"R 0.00"}}]
[4,"Preliminary & General: Project-Specific Allowances","Hospital operational constraints, Occupational Health and Safety (OHS) compliance, permit-to-work coordination, infection prevention and control measures, temporary shutdowns, hospital operational constraints, logistics, testing and commissioning, operator training, as-built documentation and final handover.","Sum ",{"v":1,"d":"1.00"},null,{"$f":"BOQ_13[[#This Row],[Quantity]]*BOQ_13[[#This Row],[Rate]]","v":{"v":0,"d":"R 0.00"}}]
[5,"Tier 1 Solar PV modules","Tier 1 PV module, approx. 625–630 Wp each; final make/model by EPC tender","No.",{"v":159,"d":"159.00"},null,{"$f":"IF(OR(E9=\"\",F9=\"\"),0,E9*F9)","v":{"v":0,"d":"R 0.00"}}]
[6,"PV string labelling and module identification","UV-stable labels for module strings, DBs and isolation points","Lot",{"v":1,"d":"1.00"},null,{"v":0,"d":"R 0.00"}]
[7,"PV mounting system / carport structure","Solar  roof mounting system subject to structural design","Lot",{"v":1,"d":"1.00"},null,{"v":0,"d":"R 0.00"}]
[8,"Module clamps, rails, brackets and fasteners","Compatible aluminium/stainless mounting accessories","Lot",{"v":1,"d":"1.00"},null,{"v":0,"d":"R 0.00"}]
[9,"MC4-compatible connectors","PV connectors; quantity subject to final string design","Lot",{"v":350,"d":"350.00"},null,{"v":0,"d":"R 0.00"}]
[10,"6 mm² PV DC cable","UV-rated solar DC cable, red/black; route length subject to site verification","m",{"v":200,"d":"200.00"},null,{"v":0,"d":"R 0.00"}]
[11,"DC cable containment","UV-rated conduit/trunking/trays and mechanical protection","Lot",{"v":1,"d":"1.00"},null,{"v":0,"d":"R 0.00"}]
[12,"DC protection box / combiner","String fusing/combiner arrangement, DC isolators, Type 1/2 SPD as site applicable","No.",{"v":1,"d":"1.00"},null,{"v":0,"d":"R 0.00"}]
[13,"DC isolators","Lockable DC isolation points with clear alternative-source labelling","Lot",{"v":4,"d":"4.00"},null,{"v":0,"d":"R 0.00"}]
[14,"Grid-forming Power Conversion System / inverter","Grid-forming Power Conversion System/inverter sized for PSA resilience application; final rating subject to load study","No.",{"v":1,"d":"1.00"},null,{"v":0,"d":"R 0.00"}]
[15,"Power Conversion System/inverter controller / EMS interface","Energy management and control interface for PV, BESS, genset and grid operation","No.",{"v":1,"d":"1.00"},null,{"v":0,"d":"R 0.00"}]
[16,"BESS cabinet","Outdoor-rated battery energy storage cabinet; final kWh subject to 7-day load monitoring","No.",{"v":1,"d":"1.00"},null,{"v":0,"d":"R 0.00"}]
[17,"BESS HVAC / thermal management","Integrated cabinet cooling/ventilation as required by selected BESS","Lot",{"v":1,"d":"1.00"},null,{"v":0,"d":"R 0.00"}]
[18,"Battery DC protection and isolation","Battery isolation, protection, safety interlocks and emergency shutdown interface","Lot",{"v":1,"d":"1.00"},null,{"v":0,"d":"R 0.00"}]
[19,"AC protection box","AC DB/protection board with breakers, SPDs, metering and labelling","No.",{"v":1,"d":"1.00"},null,{"v":0,"d":"R 0.00"}]
[20,"Static Transfer Switch (STS) / changeover","STS or compliant automatic changeover arrangement for critical PSA supply","No.",{"v":1,"d":"1.00"},null,{"v":0,"d":"R 0.00"}]
[21,"16 mm² XLPE copper cable","AC cable allowance; size and route length subject to detailed design","m",{"v":180,"d":"180.00"},null,{"v":0,"d":"R 0.00"}]
[22,"AC cable containment and termination accessories","Cable tray, gland plates, lugs, glands, ferrules and terminations; Tenderer to price","Lot",{"v":1,"d":"1.00"},null,{"$f":"IF(OR(E26=\"\",F26=\"\"),0,E26*F26)","v":{"v":0,"d":"R 0.00"}}]
[23,"Distribution board modifications","PSA DB integration, supply-side interface and alternative-source labelling","Lot",{"v":1,"d":"1.00"},null,{"v":0,"d":"R 0.00"}]
[24,"Generator integration interface","Genset interface, controls, protection, cabling and changeover coordination","Lot",{"v":1,"d":"1.00"},null,{"v":0,"d":"R 0.00"}]
[25,"Grid interface and export limiting","CTs/meters and export-limiting control at point of connection as applicable","Lot",{"v":1,"d":"1.00"},null,{"v":0,"d":"R 0.00"}]
[26,"Earthing and bonding system","PV frame bonding, equipment bonding and SANS-compliant earthing","Lot",{"v":1,"d":"1.00"},null,{"v":0,"d":"R 0.00"}]
[27,"Copper earth spikes","Copper-bonded earth rods/spikes; final quantity subject to earth testing","No.",{"v":10,"d":"10.00"},null,{"v":0,"d":"R 0.00"}]
[28,"Earth cable and accessories","Bare/insulated copper earth conductor, clamps, lugs and earth bar","m",{"v":120,"d":"120.00"},null,{"v":0,"d":"R 0.00"}]
[29,"Equipment plinths / foundations","Concrete plinths for Power Conversion System, BESS, AC/DC boards and ancillary equipment","Lot",{"v":1,"d":"1.00"},null,{"v":0,"d":"R 0.00"}]
[30,"Trenching and reinstatement","Cable trenching, sleeves, marker tape and surface reinstatement","m",{"v":10,"d":"10.00"},null,{"v":0,"d":"R 0.00"}]
[31,"Security fence","Security fencing around outdoor electrical equipment / BESS compound","m",{"v":15,"d":"15.00"},null,{"v":0,"d":"R 0.00"}]
[32,"Access gate and signage","Lockable access gate, danger signage and emergency contact signage","Lot",{"v":1,"d":"1.00"},null,{"v":0,"d":"R 0.00"}]
[33,"Remote monitoring gateway","Wi-Fi/LTE router, data logger and remote monitoring dashboard interface","No.",{"v":1,"d":"1.00"},null,{"v":0,"d":"R 0.00"}]
[34,"Electrical metering and CTs","3-phase metering, CTs and monitoring for PV/BESS/PSA supply","Lot",{"v":1,"d":"1.00"},null,{"v":0,"d":"R 0.00"}]
[35,"7-day load monitoring campaign","Class 0.5 logger; voltage/current/pf/kW/kVA/kWh at suitable intervals","Lot",{"v":1,"d":"1.00"},null,{"v":0,"d":"R 0.00"}]
[36,"Detailed engineering design","SLD, layout, cable sizing, protection coordination and construction pack","Lot",{"v":1,"d":"1.00"},null,{"v":0,"d":"R 0.00"}]
[37,"Shading, azimuth and yield verification","Final PV orientation, tilt, row spacing and shading verification","Lot",{"v":1,"d":"1.00"},null,{"v":0,"d":"R 0.00"}]
[38,"Wind/snow/structural verification","Civil/structural checks for roof  solution","Lot",{"v":1,"d":"1.00"},null,{"v":0,"d":"R 0.00"}]
[39,"FAT / OEM support","OEM or approved technical representative support during FAT/commissioning","Lot",{"v":1,"d":"1.00"},null,{"v":0,"d":"R 0.00"}]
[40,"Testing and commissioning","Functional tests, protection tests, microgrid operation tests and handover checks","Lot",{"v":1,"d":"1.00"},null,{"v":0,"d":"R 0.00"}]
[41,"Certificate of Compliance","SANS-compliant electrical CoC and supporting certificates","Lot",{"v":1,"d":"1.00"},null,{"v":0,"d":"R 0.00"}]
[42,"Maintenance","36-month O&M price under the NEC3 TSC (PV + Power Conversion System + BESS); separate service component","Lot",{"v":1,"d":"1.00"},null,{"v":0,"d":"R 0.00"}]
[43,"As-built drawings and handover pack","As-built SLDs, manuals, warranties, training records and close-out report","Lot",{"v":1,"d":"1.00"},null,{"v":0,"d":"R 0.00"}]
[44,"Local operator training","Training for hospital / local maintenance personnel","Lot",{"v":1,"d":"1.00"},null,{"v":0,"d":"R 0.00"}]
[{"$nulls":3},"FINAL SUMMARY"]
[{"$nulls":3},"Preliminaries and Generals ",null,null,{"$f":"G5+G6+G7+G8","v":{"v":0,"d":"R 0.00"}}]
[{"$nulls":3},"Works Installation Summary",null,null,{"$f":"ROUND(SUM(G9:G48),2)","v":{"v":0,"d":"R 0.00"}}]
[{"$nulls":3},"Subtotal A (Excl. VAT)",null,null,{"$f":"ROUND(G50+G51,2)","v":{"v":0,"d":"R 0.00"}}]
[{"$nulls":3},"Add 10% Contingency",null,null,{"$f":"ROUND(G52*10%,2)","v":{"v":0,"d":"R 0.00"}}]
[{"$nulls":3},"Subtotal B (Excl. VAT)",null,null,{"$f":"ROUND(G52+G53,2)","v":{"v":0,"d":"R 0.00"}}]
[{"$nulls":3},"Add VAT @ 15%",null,null,{"$f":"ROUND(G54*15%,2)","v":{"v":0,"d":"R 0.00"}}]
[{"$nulls":3},"Amount carried to forward to summary",null,null,{"$f":"ROUND(G54+G55,2)","v":{"v":0,"d":"R 0.00"}}]

{"sheet":"2. St Andrews","index":3,"n_rows":55,"n_cols":7,"rows_kept":55,"merged":[[0,0,0,6],[1,1,1,6],[54,5,55,5],[54,6,55,6]]}
["TENDER No: RFP069-070/2026: APPOINTMENT OF SERVICE PROVIDERS FOR THE DESIGN, SUPPLY, INSTALLATION, COMMISSIONING AND MAINTENANCE OF SOLAR-POWERED BACKUP SYSTEMS AT TWENTY (20) HOSPITAL FACILITIES RECEIVING PRESSURE SWING ADSORPTION (PSA) OXYGEN GENERATING PLANTS: \nSt Andrews Hospital"]
[null,"Cluster 1 | Preliminary procurement quantities based on the 120 kWp planning class. Tenderer to price all items; final quantities and ratings remain subject to site verification, the accepted seven-day load study and the Contractor's detailed design."]
[]
["Item No","Item","Activity Description","Unit","Quantity","Rate","Amount"]
[1,"Preliminary & General: Once-off costs","Site establishment, mobilisation, demobilisation, temporary facilities, storage, fencing, site signage and initial setup.","Sum ",{"v":1,"d":"1.00"},null,{"$f":"BOQ_19[[#This Row],[Quantity]]*BOQ_19[[#This Row],[Rate]]","v":{"v":0,"d":"R 0.00"}}]
[2,"Preliminary & General:Time-related costs","Site management and supervision, temporary facilities, utilities, security, administration, plant, tools and welfare facilities for the contract duration.","Month ",{"v":1,"d":"1.00"},null,{"$f":"BOQ_19[[#This Row],[Quantity]]*BOQ_19[[#This Row],[Rate]]","v":{"v":0,"d":"R 0.00"}}]
[3,"Preliminary & General: Value-related costs","Contractor's All Risks Insurance, public liability insurance, performance guarantees, bonds, statutory fees and financial securities.","Sum ",{"v":1,"d":"1.00"},null,{"$f":"BOQ_19[[#This Row],[Quantity]]*BOQ_19[[#This Row],[Rate]]","v":{"v":0,"d":"R 0.00"}}]
[4,"Preliminary & General: Project-Specific Allowances","Hospital operational constraints, Occupational Health and Safety (OHS) compliance, permit-to-work coordination, infection prevention and control measures, temporary shutdowns, hospital operational constraints, logistics, testing and commissioning, operator training, as-built documentation and final handover.","Sum ",{"v":1,"d":"1.00"},null,{"$f":"BOQ_19[[#This Row],[Quantity]]*BOQ_19[[#This Row],[Rate]]","v":{"v":0,"d":"R 0.00"}}]
[5,"Tier 1 Solar PV modules","Tier 1 PV module, approx. 625–630 Wp each; final make/model by EPC tender","No.",{"v":191,"d":"191.00"},null,{"$f":"IF(OR(E9=\"\",F9=\"\"),0,E9*F9)","v":{"v":0,"d":"R 0.00"}}]
[6,"PV string labelling and module identification","UV-stable labels for module strings, DBs and isolation points","Lot",{"v":1,"d":"1.00"},null,{"v":0,"d":"R 0.00"}]
[7,"PV mounting system / carport structure","Solar carport mounting system subject to structural design","Lot",{"v":1,"d":"1.00"},null,{"v":0,"d":"R 0.00"}]
[8,"Module clamps, rails, brackets and fasteners","Compatible aluminium/stainless mounting accessories","Lot",{"v":1,"d":"1.00"},null,{"v":0,"d":"R 0.00"}]
[9,"MC4-compatible connectors","PV connectors; quantity subject to final string design","Lot",{"v":420,"d":"420.00"},null,{"v":0,"d":"R 0.00"}]
[10,"6 mm² PV DC cable","UV-rated solar DC cable, red/black; route length subject to site verification","m",{"v":240,"d":"240.00"},null,{"v":0,"d":"R 0.00"}]
[11,"DC cable containment","UV-rated conduit/trunking/trays and mechanical protection","Lot",{"v":1,"d":"1.00"},null,{"v":0,"d":"R 0.00"}]
[12,"DC protection box / combiner","String fusing/combiner arrangement, DC isolators, Type 1/2 SPD as site applicable","No.",{"v":1,"d":"1.00"},null,{"v":0,"d":"R 0.00"}]
[13,"DC isolators","Lockable DC isolation points with clear alternative-source labelling","Lot",{"v":4,"d":"4.00"},null,{"v":0,"d":"R 0.00"}]
[14,"Grid-forming PCS / inverter","Grid-forming PCS/inverter sized for PSA resilience application; final rating subject to load study","No.",{"v":1,"d":"1.00"},null,{"v":0,"d":"R 0.00"}]
[15,"PCS/inverter controller / EMS interface","Energy management and control interface for PV, BESS, genset and grid operation","No.",{"v":1,"d":"1.00"},null,{"v":0,"d":"R 0.00"}]
[16,"BESS cabinet","Outdoor-rated battery energy storage cabinet; final kWh subject to 7-day load monitoring","No.",{"v":1,"d":"1.00"},null,{"v":0,"d":"R 0.00"}]
[17,"BESS HVAC / thermal management","Integrated cabinet cooling/ventilation as required by selected BESS","Lot",{"v":1,"d":"1.00"},null,{"v":0,"d":"R 0.00"}]
[18,"Battery DC protection and isolation","Battery isolation, protection, safety interlocks and emergency shutdown interface","Lot",{"v":1,"d":"1.00"},null,{"v":0,"d":"R 0.00"}]
[19,"AC protection box","AC DB/protection board with breakers, SPDs, metering and labelling","No.",{"v":1,"d":"1.00"},null,{"v":0,"d":"R 0.00"}]
[20,"Static Transfer Switch (STS) / changeover","STS or compliant automatic changeover arrangement for critical PSA supply","No.",{"v":1,"d":"1.00"},null,{"v":0,"d":"R 0.00"}]
[21,"16 mm² XLPE copper cable","AC cable allowance; size and route length subject to detailed design","m",{"v":220,"d":"220.00"},null,{"v":0,"d":"R 0.00"}]
[22,"AC cable containment and termination accessories","Cable tray, gland plates, lugs, glands, ferrules and terminations; Tenderer to price","Lot",{"v":1,"d":"1.00"},null,{"$f":"IF(OR(E26=\"\",F26=\"\"),0,E26*F26)","v":{"v":0,"d":"R 0.00"}}]
[23,"Distribution board modifications","PSA DB integration, supply-side interface and alternative-source labelling","Lot",{"v":1,"d":"1.00"},null,{"v":0,"d":"R 0.00"}]
[24,"Generator integration interface","Genset interface, controls, protection, cabling and changeover coordination","Lot",{"v":1,"d":"1.00"},null,{"v":0,"d":"R 0.00"}]
[25,"Grid interface and export limiting","CTs/meters and export-limiting control at point of connection as applicable","Lot",{"v":1,"d":"1.00"},null,{"v":0,"d":"R 0.00"}]
[26,"Earthing and bonding system","PV frame bonding, equipment bonding and SANS-compliant earthing","Lot",{"v":1,"d":"1.00"},null,{"v":0,"d":"R 0.00"}]
[27,"Copper earth spikes","Copper-bonded earth rods/spikes; final quantity subject to earth testing","No.",{"v":12,"d":"12.00"},null,{"v":0,"d":"R 0.00"}]
[28,"Earth cable and accessories","Bare/insulated copper earth conductor, clamps, lugs and earth bar","m",{"v":150,"d":"150.00"},null,{"v":0,"d":"R 0.00"}]
[29,"Equipment plinths / foundations","Concrete plinths for PCS, BESS, AC/DC boards and ancillary equipment","Lot",{"v":1,"d":"1.00"},null,{"v":0,"d":"R 0.00"}]
[30,"Trenching and reinstatement","Cable trenching, sleeves, marker tape and surface reinstatement","m",{"v":15,"d":"15.00"},null,{"v":0,"d":"R 0.00"}]
[31,"Security fence","Security fencing around outdoor electrical equipment / BESS compound","m",{"v":5,"d":"5.00"},null,{"v":0,"d":"R 0.00"}]
[32,"Access gate and signage","Lockable access gate, danger signage and emergency contact signage","Lot",{"v":1,"d":"1.00"},null,{"v":0,"d":"R 0.00"}]
[33,"Remote monitoring gateway","Wi-Fi/LTE router, data logger and remote monitoring dashboard interface","No.",{"v":1,"d":"1.00"},null,{"v":0,"d":"R 0.00"}]
[34,"Electrical metering and CTs","3-phase metering, CTs and monitoring for PV/BESS/PSA supply","Lot",{"v":1,"d":"1.00"},null,{"v":0,"d":"R 0.00"}]
[35,"7-day load monitoring campaign","Class 0.5 logger; voltage/current/pf/kW/kVA/kWh at suitable intervals","Lot",{"v":1,"d":"1.00"},null,{"v":0,"d":"R 0.00"}]
[36,"Detailed engineering design","SLD, layout, cable sizing, protection coordination and construction pack","Lot",{"v":1,"d":"1.00"},null,{"v":0,"d":"R 0.00"}]
[37,"Shading, azimuth and yield verification","Final PV orientation, tilt, row spacing and shading verification","Lot",{"v":1,"d":"1.00"},null,{"v":0,"d":"R 0.00"}]
[38,"Wind/snow/structural verification","Civil/structural checks for carport mount solution","Lot",{"v":1,"d":"1.00"},null,{"v":0,"d":"R 0.00"}]
[39,"FAT / OEM support","OEM or approved technical representative support during FAT/commissioning","Lot",{"v":1,"d":"1.00"},null,{"v":0,"d":"R 0.00"}]
[40,"Testing and commissioning","Functional tests, protection tests, microgrid operation tests and handover checks","Lot",{"v":1,"d":"1.00"},null,{"v":0,"d":"R 0.00"}]
[41,"Certificate of Compliance","SANS-compliant electrical CoC and supporting certificates","Lot",{"v":1,"d":"1.00"},null,{"v":0,"d":"R 0.00"}]
[42,"Maintenance","36-month O&M price under the NEC3 TSC (PV + PCS + BESS); separate service component","Lot",{"v":1,"d":"1.00"},null,{"$f":"IF(OR(E46=\"\",F46=\"\"),0,E46*F46)","v":{"v":0,"d":"R 0.00"}}]
[43,"As-built drawings and handover pack","As-built SLDs, manuals, warranties, training records and close-out report","Lot",{"v":1,"d":"1.00"},null,{"v":0,"d":"R 0.00"}]
[44,"Local operator training","Training for hospital / local maintenance personnel","Lot",{"v":1,"d":"1.00"},null,{"v":0,"d":"R 0.00"}]
[{"$nulls":5},"Preliminaries and Generals",{"$f":"G5+G6+G7+G8","v":{"v":0,"d":"R 0.00"}}]
[{"$nulls":5},"Works Installation Summary",{"$f":"ROUND(SUM(G9:G49),2)","v":{"v":0,"d":"R 0.00"}}]
[{"$nulls":5},"Subtotal A (Excl. VAT)",{"$f":"ROUND(G49+G50,2)","v":{"v":0,"d":"R 0.00"}}]
[{"$nulls":5},"Add 10% Contingency",{"$f":"ROUND(G51*10%,2)","v":{"v":0,"d":"R 0.00"}}]
[{"$nulls":5},"Subtotal B (Excl. VAT)",{"$f":"ROUND(G51+G52,2)","v":{"v":0,"d":"R 0.00"}}]
[{"$nulls":5},"Add VAT @ 15%",{"$f":"ROUND(G53*15%,2)","v":{"v":0,"d":"R 0.00"}}]
[{"$nulls":5},"Amount carried forward to summary ",{"$f":"ROUND(G53+G54,2)","v":{"v":0,"d":"R 0.00"}}]

{"sheet":"3. Elizabeth Ross","index":4,"n_rows":55,"n_cols":7,"rows_kept":55,"merged":[[0,0,0,6],[1,1,1,6]]}
["TENDER No: RFP069-070/2026: APPOINTMENT OF SERVICE PROVIDERS FOR THE DESIGN, SUPPLY, INSTALLATION, COMMISSIONING AND MAINTENANCE OF SOLAR-POWERED BACKUP SYSTEMS AT TWENTY (20) HOSPITAL FACILITIES RECEIVING PRESSURE SWING ADSORPTION (PSA) OXYGEN GENERATING PLANTS: \n Elizabeth Ross Hospital"]
[null,"Cluster 1 | Preliminary procurement quantities based on the 90 kWp planning class. Tenderer to price all items; final quantities and ratings remain subject to site verification, the accepted seven-day load study and the Contractor's detailed design."]
[]
["Item No","Item","Activity Description","Unit","Quantity","Rate","Amount"]
[1,"Preliminary & General: Once-off costs","Site establishment, mobilisation, demobilisation, temporary facilities, storage, fencing, site signage and initial setup.","Sum ",{"v":1,"d":"1.00"},null,{"$f":"BOQ_14[[#This Row],[Quantity]]*BOQ_14[[#This Row],[Rate]]","v":{"v":0,"d":"R 0.00"}}]
[2,"Preliminary & General:Time-related costs","Site management and supervision, temporary facilities, utilities, security, administration, plant, tools and welfare facilities for the contract duration.","Month ",{"v":1,"d":"1.00"},null,{"$f":"BOQ_14[[#This Row],[Quantity]]*BOQ_14[[#This Row],[Rate]]","v":{"v":0,"d":"R 0.00"}}]
[3,"Preliminary & General: Value-related costs","Contractor's All Risks Insurance, public liability insurance, performance guarantees, bonds, statutory fees and financial securities.","Sum ",{"v":1,"d":"1.00"},null,{"$f":"BOQ_14[[#This Row],[Quantity]]*BOQ_14[[#This Row],[Rate]]","v":{"v":0,"d":"R 0.00"}}]
[4,"Preliminary & General: Project-Specific Allowances","Hospital operational constraints, Occupational Health and Safety (OHS) compliance, permit-to-work coordination, infection prevention and control measures, temporary shutdowns, hospital operational constraints, logistics, testing and commissioning, operator training, as-built documentation and final handover.","Sum ",{"v":1,"d":"1.00"},null,{"$f":"BOQ_14[[#This Row],[Quantity]]*BOQ_14[[#This Row],[Rate]]","v":{"v":0,"d":"R 0.00"}}]
[5,"Tier 1 Solar PV modules","Tier 1 PV module, approx. 625–630 Wp each; final make/model by EPC tender","No.",{"v":143,"d":"143.00"},null,{"$f":"IF(OR(E9=\"\",F9=\"\"),0,E9*F9)","v":{"v":0,"d":"R 0.00"}}]
[6,"PV string labelling and module identification","UV-stable labels for module strings, DBs and isolation points","Lot",{"v":1,"d":"1.00"},null,{"v":0,"d":"R 0.00"}]
[7,"PV mounting system / carport structure","Solar roof mounting system subject to structural design","Lot",{"v":1,"d":"1.00"},null,{"v":0,"d":"R 0.00"}]
[8,"Module clamps, rails, brackets and fasteners","Compatible aluminium/stainless mounting accessories","Lot",{"v":1,"d":"1.00"},null,{"v":0,"d":"R 0.00"}]
[9,"MC4-compatible connectors","PV connectors; quantity subject to final string design","Lot",{"v":315,"d":"315.00"},null,{"v":0,"d":"R 0.00"}]
[10,"6 mm² PV DC cable","UV-rated solar DC cable, red/black; route length subject to site verification","m",{"v":180,"d":"180.00"},null,{"v":0,"d":"R 0.00"}]
[11,"DC cable containment","UV-rated conduit/trunking/trays and mechanical protection","Lot",{"v":1,"d":"1.00"},null,{"v":0,"d":"R 0.00"}]
[12,"DC protection box / combiner","String fusing/combiner arrangement, DC isolators, Type 1/2 SPD as site applicable","No.",{"v":1,"d":"1.00"},null,{"v":0,"d":"R 0.00"}]
[13,"DC isolators","Lockable DC isolation points with clear alternative-source labelling","Lot",{"v":4,"d":"4.00"},null,{"v":0,"d":"R 0.00"}]
[14,"Grid-forming PCS / inverter","Grid-forming PCS/inverter sized for PSA resilience application; final rating subject to load study","No.",{"v":1,"d":"1.00"},null,{"v":0,"d":"R 0.00"}]
[15,"PCS/inverter controller / EMS interface","Energy management and control interface for PV, BESS, genset and grid operation","No.",{"v":1,"d":"1.00"},null,{"v":0,"d":"R 0.00"}]
[16,"BESS cabinet","Outdoor-rated battery energy storage cabinet; final kWh subject to 7-day load monitoring","No.",{"v":1,"d":"1.00"},null,{"v":0,"d":"R 0.00"}]
[17,"BESS HVAC / thermal management","Integrated cabinet cooling/ventilation as required by selected BESS","Lot",{"v":1,"d":"1.00"},null,{"v":0,"d":"R 0.00"}]
[18,"Battery DC protection and isolation","Battery isolation, protection, safety interlocks and emergency shutdown interface","Lot",{"v":1,"d":"1.00"},null,{"v":0,"d":"R 0.00"}]
[19,"AC protection box","AC DB/protection board with breakers, SPDs, metering and labelling","No.",{"v":1,"d":"1.00"},null,{"v":0,"d":"R 0.00"}]
[20,"Static Transfer Switch (STS) / changeover","STS or compliant automatic changeover arrangement for critical PSA supply","No.",{"v":1,"d":"1.00"},null,{"v":0,"d":"R 0.00"}]
[21,"16 mm² XLPE copper cable","AC cable allowance; size and route length subject to detailed design","m",{"v":150,"d":"150.00"},null,{"v":0,"d":"R 0.00"}]
[22,"AC cable containment and termination accessories","Cable tray, gland plates, lugs, glands, ferrules and terminations; Tenderer to price","Lot",{"v":1,"d":"1.00"},null,{"$f":"IF(OR(E26=\"\",F26=\"\"),0,E26*F26)","v":{"v":0,"d":"R 0.00"}}]
[23,"Distribution board modifications","PSA DB integration, supply-side interface and alternative-source labelling","Lot",{"v":1,"d":"1.00"},null,{"v":0,"d":"R 0.00"}]
[24,"Generator integration interface","Genset interface, controls, protection, cabling and changeover coordination","Lot",{"v":1,"d":"1.00"},null,{"v":0,"d":"R 0.00"}]
[25,"Grid interface and export limiting","CTs/meters and export-limiting control at point of connection as applicable","Lot",{"v":1,"d":"1.00"},null,{"v":0,"d":"R 0.00"}]
[26,"Earthing and bonding system","PV frame bonding, equipment bonding and SANS-compliant earthing","Lot",{"v":1,"d":"1.00"},null,{"v":0,"d":"R 0.00"}]
[27,"Copper earth spikes","Copper-bonded earth rods/spikes; final quantity subject to earth testing","No.",{"v":8,"d":"8.00"},null,{"v":0,"d":"R 0.00"}]
[28,"Earth cable and accessories","Bare/insulated copper earth conductor, clamps, lugs and earth bar","m",{"v":100,"d":"100.00"},null,{"v":0,"d":"R 0.00"}]
[29,"Equipment plinths / foundations","Concrete plinths for PCS, BESS, AC/DC boards and ancillary equipment","Lot",{"v":1,"d":"1.00"},null,{"v":0,"d":"R 0.00"}]
[30,"Trenching and reinstatement","Cable trenching, sleeves, marker tape and surface reinstatement","m",{"v":15,"d":"15.00"},null,{"v":0,"d":"R 0.00"}]
[31,"Security fence","Security fencing around outdoor electrical equipment / BESS compound","m",{"v":5,"d":"5.00"},null,{"v":0,"d":"R 0.00"}]
[32,"Access gate and signage","Lockable access gate, danger signage and emergency contact signage","Lot",{"v":1,"d":"1.00"},null,{"v":0,"d":"R 0.00"}]
[33,"Remote monitoring gateway","Wi-Fi/LTE router, data logger and remote monitoring dashboard interface","No.",{"v":1,"d":"1.00"},null,{"v":0,"d":"R 0.00"}]
[34,"Electrical metering and CTs","3-phase metering, CTs and monitoring for PV/BESS/PSA supply","Lot",{"v":1,"d":"1.00"},null,{"v":0,"d":"R 0.00"}]
[35,"7-day load monitoring campaign","Class 0.5 logger; voltage/current/pf/kW/kVA/kWh at suitable intervals","Lot",{"v":1,"d":"1.00"},null,{"v":0,"d":"R 0.00"}]
[36,"Detailed engineering design","SLD, layout, cable sizing, protection coordination and construction pack","Lot",{"v":1,"d":"1.00"},null,{"v":0,"d":"R 0.00"}]
[37,"Shading, azimuth and yield verification","Final PV orientation, tilt, row spacing and shading verification","Lot",{"v":1,"d":"1.00"},null,{"v":0,"d":"R 0.00"}]
[38,"Wind/snow/structural verification","Civil/structural checks for roof mount solution","Lot",{"v":1,"d":"1.00"},null,{"v":0,"d":"R 0.00"}]
[39,"FAT / OEM support","OEM or approved technical representative support during FAT/commissioning","Lot",{"v":1,"d":"1.00"},null,{"v":0,"d":"R 0.00"}]
[40,"Testing and commissioning","Functional tests, protection tests, microgrid operation tests and handover checks","Lot",{"v":1,"d":"1.00"},null,{"v":0,"d":"R 0.00"}]
[41,"Certificate of Compliance","SANS-compliant electrical CoC and supporting certificates","Lot",{"v":1,"d":"1.00"},null,{"v":0,"d":"R 0.00"}]
[42,"Maintenance","36-month O&M price under the NEC3 TSC (PV + PCS + BESS); separate service component","Lot",{"v":1,"d":"1.00"},null,{"$f":"IF(OR(E46=\"\",F46=\"\"),0,E46*F46)","v":{"v":0,"d":"R 0.00"}}]
[43,"As-built drawings and handover pack","As-built SLDs, manuals, warranties, training records and close-out report","Lot",{"v":1,"d":"1.00"},null,{"v":0,"d":"R 0.00"}]
[44,"Local operator training","Training for hospital / local maintenance personnel","Lot",{"v":1,"d":"1.00"},null,{"v":0,"d":"R 0.00"}]
[{"$nulls":5},"Preliminaries and Generals",{"$f":"G5+G6+G7+G8","v":{"v":0,"d":"R 0.00"}}]
[{"$nulls":5},"Works Installation Summary",{"$f":"ROUND(SUM(G9:G49),2)","v":{"v":0,"d":"R 0.00"}}]
[{"$nulls":5},"Subtotal A (Excl. VAT)",{"$f":"ROUND(G49+G50,2)","v":{"v":0,"d":"R 0.00"}}]
[{"$nulls":5},"Add 10% Contingency",{"$f":"ROUND(G51*10%,2)","v":{"v":0,"d":"R 0.00"}}]
[{"$nulls":5},"Subtotal B (Excl. VAT)",{"$f":"ROUND(G51+G52,2)","v":{"v":0,"d":"R 0.00"}}]
[{"$nulls":5},"Add VAT @ 15%",{"$f":"ROUND(G53*15%,2)","v":{"v":0,"d":"R 0.00"}}]
[{"$nulls":5},"Amount carried forward to summary",{"$f":"ROUND(G53+G54,2)","v":{"v":0,"d":"R 0.00"}}]

{"sheet":"4. McCords","index":5,"n_rows":55,"n_cols":7,"rows_kept":55,"merged":[[0,0,0,6],[1,1,1,6]]}
["TENDER No: RFP069-070/2026: APPOINTMENT OF SERVICE PROVIDERS FOR THE DESIGN, SUPPLY, INSTALLATION, COMMISSIONING AND MAINTENANCE OF SOLAR-POWERED BACKUP SYSTEMS AT TWENTY (20) HOSPITAL FACILITIES RECEIVING PRESSURE SWING ADSORPTION (PSA) OXYGEN GENERATING PLANTS: \n McCords Hospital"]
[null,"Cluster 1 | Preliminary procurement quantities based on the 90 kWp planning class. Tenderer to price all items; final quantities and ratings remain subject to site verification, the accepted seven-day load study and the Contractor's detailed design."]
[]
["Item No","Item","Activity Description","Unit","Quantity","Rate","Amount"]
[1,"Preliminary & General: Once-off costs","Site establishment, mobilisation, demobilisation, temporary facilities, storage, fencing, site signage and initial setup.","Sum ",{"v":1,"d":"1.00"},null,{"$f":"BOQ_17[[#This Row],[Quantity]]*BOQ_17[[#This Row],[Rate]]","v":{"v":0,"d":"R 0.00"}}]
[2,"Preliminary & General:Time-related costs","Site management and supervision, temporary facilities, utilities, security, administration, plant, tools and welfare facilities for the contract duration.","Month ",{"v":1,"d":"1.00"},null,{"$f":"BOQ_17[[#This Row],[Quantity]]*BOQ_17[[#This Row],[Rate]]","v":{"v":0,"d":"R 0.00"}}]
[3,"Preliminary & General: Value-related costs","Contractor's All Risks Insurance, public liability insurance, performance guarantees, bonds, statutory fees and financial securities.","Sum ",{"v":1,"d":"1.00"},null,{"$f":"BOQ_17[[#This Row],[Quantity]]*BOQ_17[[#This Row],[Rate]]","v":{"v":0,"d":"R 0.00"}}]
[4,"Preliminary & General: Project-Specific Allowances","Hospital operational constraints, Occupational Health and Safety (OHS) compliance, permit-to-work coordination, infection prevention and control measures, temporary shutdowns, hospital operational constraints, logistics, testing and commissioning, operator training, as-built documentation and final handover.","Sum ",{"v":1,"d":"1.00"},null,{"$f":"BOQ_17[[#This Row],[Quantity]]*BOQ_17[[#This Row],[Rate]]","v":{"v":0,"d":"R 0.00"}}]
[5,"Tier 1 Solar PV modules","Tier 1 PV module, approx. 625–630 Wp each; final make/model by EPC tender","No.",{"v":143,"d":"143.00"},null,{"$f":"IF(OR(E9=\"\",F9=\"\"),0,E9*F9)","v":{"v":0,"d":"R 0.00"}}]
[6,"PV string labelling and module identification","UV-stable labels for module strings, DBs and isolation points","Lot",{"v":1,"d":"1.00"},null,{"$f":"IF(OR(E10=\"\",F10=\"\"),0,E10*F10)","v":{"v":0,"d":"R 0.00"}}]
[7,"PV mounting system / carport structure","Solar roof mounting system subject to structural design","Lot",{"v":1,"d":"1.00"},null,{"v":0,"d":"R 0.00"}]
[8,"Module clamps, rails, brackets and fasteners","Compatible aluminium/stainless mounting accessories","Lot",{"v":1,"d":"1.00"},null,{"v":0,"d":"R 0.00"}]
[9,"MC4-compatible connectors","PV connectors; quantity subject to final string design","Lot",{"v":315,"d":"315.00"},null,{"v":0,"d":"R 0.00"}]
[10,"6 mm² PV DC cable","UV-rated solar DC cable, red/black; route length subject to site verification","m",{"v":180,"d":"180.00"},null,{"v":0,"d":"R 0.00"}]
[11,"DC cable containment","UV-rated conduit/trunking/trays and mechanical protection","Lot",{"v":1,"d":"1.00"},null,{"v":0,"d":"R 0.00"}]
[12,"DC protection box / combiner","String fusing/combiner arrangement, DC isolators, Type 1/2 SPD as site applicable","No.",{"v":1,"d":"1.00"},null,{"v":0,"d":"R 0.00"}]
[13,"DC isolators","Lockable DC isolation points with clear alternative-source labelling","Lot",{"v":4,"d":"4.00"},null,{"v":0,"d":"R 0.00"}]
[14,"Grid-forming PCS / inverter","Grid-forming PCS/inverter sized for PSA resilience application; final rating subject to load study","No.",{"v":1,"d":"1.00"},null,{"v":0,"d":"R 0.00"}]
[15,"PCS/inverter controller / EMS interface","Energy management and control interface for PV, BESS, genset and grid operation","No.",{"v":1,"d":"1.00"},null,{"v":0,"d":"R 0.00"}]
[16,"BESS cabinet","Outdoor-rated battery energy storage cabinet; final kWh subject to 7-day load monitoring","No.",{"v":1,"d":"1.00"},null,{"v":0,"d":"R 0.00"}]
[17,"BESS HVAC / thermal management","Integrated cabinet cooling/ventilation as required by selected BESS","Lot",{"v":1,"d":"1.00"},null,{"v":0,"d":"R 0.00"}]
[18,"Battery DC protection and isolation","Battery isolation, protection, safety interlocks and emergency shutdown interface","Lot",{"v":1,"d":"1.00"},null,{"v":0,"d":"R 0.00"}]
[19,"AC protection box","AC DB/protection board with breakers, SPDs, metering and labelling","No.",{"v":1,"d":"1.00"},null,{"v":0,"d":"R 0.00"}]
[20,"Static Transfer Switch (STS) / changeover","STS or compliant automatic changeover arrangement for critical PSA supply","No.",{"v":1,"d":"1.00"},null,{"v":0,"d":"R 0.00"}]
[21,"16 mm² XLPE copper cable","AC cable allowance; size and route length subject to detailed design","m",{"v":150,"d":"150.00"},null,{"v":0,"d":"R 0.00"}]
[22,"AC cable containment and termination accessories","Cable tray, gland plates, lugs, glands, ferrules and terminations; Tenderer to price","Lot",{"v":1,"d":"1.00"},null,{"$f":"IF(OR(E26=\"\",F26=\"\"),0,E26*F26)","v":{"v":0,"d":"R 0.00"}}]
[23,"Distribution board modifications","PSA DB integration, supply-side interface and alternative-source labelling","Lot",{"v":1,"d":"1.00"},null,{"v":0,"d":"R 0.00"}]
[24,"Generator integration interface","Genset interface, controls, protection, cabling and changeover coordination","Lot",{"v":1,"d":"1.00"},null,{"v":0,"d":"R 0.00"}]
[25,"Grid interface and export limiting","CTs/meters and export-limiting control at point of connection as applicable","Lot",{"v":1,"d":"1.00"},null,{"v":0,"d":"R 0.00"}]
[26,"Earthing and bonding system","PV frame bonding, equipment bonding and SANS-compliant earthing","Lot",{"v":1,"d":"1.00"},null,{"v":0,"d":"R 0.00"}]
[27,"Copper earth spikes","Copper-bonded earth rods/spikes; final quantity subject to earth testing","No.",{"v":8,"d":"8.00"},null,{"v":0,"d":"R 0.00"}]
[28,"Earth cable and accessories","Bare/insulated copper earth conductor, clamps, lugs and earth bar","m",{"v":100,"d":"100.00"},null,{"v":0,"d":"R 0.00"}]
[29,"Equipment plinths / foundations","Concrete plinths for PCS, BESS, AC/DC boards and ancillary equipment","Lot",{"v":1,"d":"1.00"},null,{"v":0,"d":"R 0.00"}]
[30,"Trenching and reinstatement","Cable trenching, sleeves, marker tape and surface reinstatement","m",{"v":15,"d":"15.00"},null,{"v":0,"d":"R 0.00"}]
[31,"Security fence","Security fencing around outdoor electrical equipment / BESS compound","m",{"v":5,"d":"5.00"},null,{"v":0,"d":"R 0.00"}]
[32,"Access gate and signage","Lockable access gate, danger signage and emergency contact signage","Lot",{"v":1,"d":"1.00"},null,{"v":0,"d":"R 0.00"}]
[33,"Remote monitoring gateway","Wi-Fi/LTE router, data logger and remote monitoring dashboard interface","No.",{"v":1,"d":"1.00"},null,{"v":0,"d":"R 0.00"}]
[34,"Electrical metering and CTs","3-phase metering, CTs and monitoring for PV/BESS/PSA supply","Lot",{"v":1,"d":"1.00"},null,{"v":0,"d":"R 0.00"}]
[35,"7-day load monitoring campaign","Class 0.5 logger; voltage/current/pf/kW/kVA/kWh at suitable intervals","Lot",{"v":1,"d":"1.00"},null,{"v":0,"d":"R 0.00"}]
[36,"Detailed engineering design","SLD, layout, cable sizing, protection coordination and construction pack","Lot",{"v":1,"d":"1.00"},null,{"v":0,"d":"R 0.00"}]
[37,"Shading, azimuth and yield verification","Final PV orientation, tilt, row spacing and shading verification","Lot",{"v":1,"d":"1.00"},null,{"v":0,"d":"R 0.00"}]
[38,"Wind/snow/structural verification","Civil/structural checks for roof mount solution","Lot",{"v":1,"d":"1.00"},null,{"v":0,"d":"R 0.00"}]
[39,"FAT / OEM support","OEM or approved technical representative support during FAT/commissioning","Lot",{"v":1,"d":"1.00"},null,{"v":0,"d":"R 0.00"}]
[40,"Testing and commissioning","Functional tests, protection tests, microgrid operation tests and handover checks","Lot",{"v":1,"d":"1.00"},null,{"v":0,"d":"R 0.00"}]
[41,"Certificate of Compliance","SANS-compliant electrical CoC and supporting certificates","Lot",{"v":1,"d":"1.00"},null,{"v":0,"d":"R 0.00"}]
[42,"Maintenance","36-month O&M price under the NEC3 TSC (PV + PCS + BESS); separate service component","Lot",{"v":1,"d":"1.00"},null,{"$f":"IF(OR(E46=\"\",F46=\"\"),0,E46*F46)","v":{"v":0,"d":"R 0.00"}}]
[43,"As-built drawings and handover pack","As-built SLDs, manuals, warranties, training records and close-out report","Lot",{"v":1,"d":"1.00"},null,{"v":0,"d":"R 0.00"}]
[44,"Local operator training","Training for hospital / local maintenance personnel","Lot",{"v":1,"d":"1.00"},null,{"v":0,"d":"R 0.00"}]
[{"$nulls":5},"Preliminaries and Generals ",{"$f":"G5+G6+G7+G8","v":{"v":0,"d":"R 0.00"}}]
[{"$nulls":5},"Works Installation Summary",{"$f":"ROUND(SUM(G9:G49),2)","v":{"v":0,"d":"R 0.00"}}]
[{"$nulls":5},"Subtotal A (Excl. VAT)",{"$f":"ROUND(G49+G50,2)","v":{"v":0,"d":"R 0.00"}}]
[{"$nulls":5},"Add 10% Contingency",{"$f":"ROUND(G51*10%,2)","v":{"v":0,"d":"R 0.00"}}]
[{"$nulls":5},"Subtotal B (Excl. VAT)",{"$f":"ROUND(G51+G52,2)","v":{"v":0,"d":"R 0.00"}}]
[{"$nulls":5},"Add VAT @ 15%",{"$f":"ROUND(G53*15%,2)","v":{"v":0,"d":"R 0.00"}}]
[{"$nulls":5},"Amount carried forward to summary",{"$f":"ROUND(G53+G54,2)","v":{"v":0,"d":"R 0.00"}}]

{"sheet":"5. Appelsbosch","index":6,"n_rows":55,"n_cols":7,"rows_kept":55,"merged":[[0,1,0,6],[1,1,1,6]]}
[null,"TENDER No: RFP069-070/2026: APPOINTMENT OF SERVICE PROVIDERS FOR THE DESIGN, SUPPLY, INSTALLATION, COMMISSIONING AND MAINTENANCE OF SOLAR-POWERED BACKUP SYSTEMS AT TWENTY (20) HOSPITAL FACILITIES RECEIVING PRESSURE SWING ADSORPTION (PSA) OXYGEN GENERATING PLANTS:  \nAppelsbosch Hospital"]
[null,"Cluster 1 | Preliminary procurement quantities based on the 90 kWp planning class. Tenderer to price all items; final quantities and ratings remain subject to site verification, the accepted seven-day load study and the Contractor's detailed design."]
[]
["Item No","Item","Activity Description","Unit","Quantity","Rate","Amount"]
[1,"Preliminary & General: Once-off costs","Site establishment, mobilisation, demobilisation, temporary facilities, storage, fencing, site signage and initial setup.","Sum ",{"v":1,"d":"1.00"},null,{"$f":"BOQ_09[[#This Row],[Quantity]]*BOQ_09[[#This Row],[Rate]]","v":{"v":0,"d":"R 0.00"}}]
[2,"Preliminary & General:Time-related costs","Site management and supervision, temporary facilities, utilities, security, administration, plant, tools and welfare facilities for the contract duration.","Month ",{"v":1,"d":"1.00"},null,{"$f":"BOQ_09[[#This Row],[Quantity]]*BOQ_09[[#This Row],[Rate]]","v":{"v":0,"d":"R 0.00"}}]
[3,"Preliminary & General: Value-related costs","Contractor's All Risks Insurance, public liability insurance, performance guarantees, bonds, statutory fees and financial securities.","Sum ",{"v":1,"d":"1.00"},null,{"$f":"BOQ_09[[#This Row],[Quantity]]*BOQ_09[[#This Row],[Rate]]","v":{"v":0,"d":"R 0.00"}}]
[4,"Preliminary & General: Project-Specific Allowances","Hospital operational constraints, Occupational Health and Safety (OHS) compliance, permit-to-work coordination, infection prevention and control measures, temporary shutdowns, hospital operational constraints, logistics, testing and commissioning, operator training, as-built documentation and final handover.","Sum ",{"v":1,"d":"1.00"},null,{"$f":"BOQ_09[[#This Row],[Quantity]]*BOQ_09[[#This Row],[Rate]]","v":{"v":0,"d":"R 0.00"}}]
[5,"Tier 1 Solar PV modules","Tier 1 PV module, approx. 625–630 Wp each; final make/model by EPC tender","No.",{"v":143,"d":"143.00"},null,{"$f":"IF(OR(E9=\"\",F9=\"\"),0,E9*F9)","v":{"v":0,"d":"R 0.00"}}]
[6,"PV string labelling and module identification","UV-stable labels for module strings, DBs and isolation points","Lot",{"v":1,"d":"1.00"},null,{"v":0,"d":"R 0.00"}]
[7,"PV mounting system / carport structure","Solar roof mounting system subject to structural design","Lot",{"v":1,"d":"1.00"},null,{"v":0,"d":"R 0.00"}]
[8,"Module clamps, rails, brackets and fasteners","Compatible aluminium/stainless mounting accessories","Lot",{"v":1,"d":"1.00"},null,{"v":0,"d":"R 0.00"}]
[9,"MC4-compatible connectors","PV connectors; quantity subject to final string design","Lot",{"v":315,"d":"315.00"},null,{"v":0,"d":"R 0.00"}]
[10,"6 mm² PV DC cable","UV-rated solar DC cable, red/black; route length subject to site verification","m",{"v":180,"d":"180.00"},null,{"v":0,"d":"R 0.00"}]
[11,"DC cable containment","UV-rated conduit/trunking/trays and mechanical protection","Lot",{"v":1,"d":"1.00"},null,{"v":0,"d":"R 0.00"}]
[12,"DC protection box / combiner","String fusing/combiner arrangement, DC isolators, Type 1/2 SPD as site applicable","No.",{"v":1,"d":"1.00"},null,{"v":0,"d":"R 0.00"}]
[13,"DC isolators","Lockable DC isolation points with clear alternative-source labelling","Lot",{"v":4,"d":"4.00"},null,{"v":0,"d":"R 0.00"}]
[14,"Grid-forming PCS / inverter","Grid-forming PCS/inverter sized for PSA resilience application; final rating subject to load study","No.",{"v":1,"d":"1.00"},null,{"v":0,"d":"R 0.00"}]
[15,"PCS/inverter controller / EMS interface","Energy management and control interface for PV, BESS, genset and grid operation","No.",{"v":1,"d":"1.00"},null,{"v":0,"d":"R 0.00"}]
[16,"BESS cabinet","Outdoor-rated battery energy storage cabinet; final kWh subject to 7-day load monitoring","No.",{"v":1,"d":"1.00"},null,{"v":0,"d":"R 0.00"}]
[17,"BESS HVAC / thermal management","Integrated cabinet cooling/ventilation as required by selected BESS","Lot",{"v":1,"d":"1.00"},null,{"v":0,"d":"R 0.00"}]
[18,"Battery DC protection and isolation","Battery isolation, protection, safety interlocks and emergency shutdown interface","Lot",{"v":1,"d":"1.00"},null,{"v":0,"d":"R 0.00"}]
[19,"AC protection box","AC DB/protection board with breakers, SPDs, metering and labelling","No.",{"v":1,"d":"1.00"},null,{"v":0,"d":"R 0.00"}]
[20,"Static Transfer Switch (STS) / changeover","STS or compliant automatic changeover arrangement for critical PSA supply","No.",{"v":1,"d":"1.00"},null,{"v":0,"d":"R 0.00"}]
[21,"16 mm² XLPE copper cable","AC cable allowance; size and route length subject to detailed design","m",{"v":150,"d":"150.00"},null,{"v":0,"d":"R 0.00"}]
[22,"AC cable containment and termination accessories","Cable tray, gland plates, lugs, glands, ferrules and terminations; Tenderer to price","Lot",{"v":1,"d":"1.00"},null,{"$f":"IF(OR(E26=\"\",F26=\"\"),0,E26*F26)","v":{"v":0,"d":"R 0.00"}}]
[23,"Distribution board modifications","PSA DB integration, supply-side interface and alternative-source labelling","Lot",{"v":1,"d":"1.00"},null,{"v":0,"d":"R 0.00"}]
[24,"Generator integration interface","Genset interface, controls, protection, cabling and changeover coordination","Lot",{"v":1,"d":"1.00"},null,{"v":0,"d":"R 0.00"}]
[25,"Grid interface and export limiting","CTs/meters and export-limiting control at point of connection as applicable","Lot",{"v":1,"d":"1.00"},null,{"v":0,"d":"R 0.00"}]
[26,"Earthing and bonding system","PV frame bonding, equipment bonding and SANS-compliant earthing","Lot",{"v":1,"d":"1.00"},null,{"v":0,"d":"R 0.00"}]
[27,"Copper earth spikes","Copper-bonded earth rods/spikes; final quantity subject to earth testing","No.",{"v":8,"d":"8.00"},null,{"v":0,"d":"R 0.00"}]
[28,"Earth cable and accessories","Bare/insulated copper earth conductor, clamps, lugs and earth bar","m",{"v":100,"d":"100.00"},null,{"v":0,"d":"R 0.00"}]
[29,"Equipment plinths / foundations","Concrete plinths for PCS, BESS, AC/DC boards and ancillary equipment","Lot",{"v":1,"d":"1.00"},null,{"v":0,"d":"R 0.00"}]
[30,"Trenching and reinstatement","Cable trenching, sleeves, marker tape and surface reinstatement","m",{"v":15,"d":"15.00"},null,{"v":0,"d":"R 0.00"}]
[31,"Security fence","Security fencing around outdoor electrical equipment / BESS compound","m",{"v":5,"d":"5.00"},null,{"v":0,"d":"R 0.00"}]
[32,"Access gate and signage","Lockable access gate, danger signage and emergency contact signage","Lot",{"v":1,"d":"1.00"},null,{"v":0,"d":"R 0.00"}]
[33,"Remote monitoring gateway","Wi-Fi/LTE router, data logger and remote monitoring dashboard interface","No.",{"v":1,"d":"1.00"},null,{"v":0,"d":"R 0.00"}]
[34,"Electrical metering and CTs","3-phase metering, CTs and monitoring for PV/BESS/PSA supply","Lot",{"v":1,"d":"1.00"},null,{"v":0,"d":"R 0.00"}]
[35,"7-day load monitoring campaign","Class 0.5 logger; voltage/current/pf/kW/kVA/kWh at suitable intervals","Lot",{"v":1,"d":"1.00"},null,{"v":0,"d":"R 0.00"}]
[36,"Detailed engineering design","SLD, layout, cable sizing, protection coordination and construction pack","Lot",{"v":1,"d":"1.00"},null,{"v":0,"d":"R 0.00"}]
[37,"Shading, azimuth and yield verification","Final PV orientation, tilt, row spacing and shading verification","Lot",{"v":1,"d":"1.00"},null,{"v":0,"d":"R 0.00"}]
[38,"Wind/snow/structural verification","Civil/structural checks for roof mount solution","Lot",{"v":1,"d":"1.00"},null,{"v":0,"d":"R 0.00"}]
[39,"FAT / OEM support","OEM or approved technical representative support during FAT/commissioning","Lot",{"v":1,"d":"1.00"},null,{"v":0,"d":"R 0.00"}]
[40,"Testing and commissioning","Functional tests, protection tests, microgrid operation tests and handover checks","Lot",{"v":1,"d":"1.00"},null,{"v":0,"d":"R 0.00"}]
[41,"Certificate of Compliance","SANS-compliant electrical CoC and supporting certificates","Lot",{"v":1,"d":"1.00"},null,{"$f":"IF(OR(E45=\"\",F45=\"\"),0,E45*F45)","v":{"v":0,"d":"R 0.00"}}]
[42,"Maintenance","36-month O&M price under the NEC3 TSC (PV + PCS + BESS); separate service component","Lot",{"v":1,"d":"1.00"},null,{"v":0,"d":"R 0.00"}]
[43,"As-built drawings and handover pack","As-built SLDs, manuals, warranties, training records and close-out report","Lot",{"v":1,"d":"1.00"},null,{"v":0,"d":"R 0.00"}]
[44,"Local operator training","Training for hospital / local maintenance personnel","Lot",{"v":1,"d":"1.00"},null,{"v":0,"d":"R 0.00"}]
[{"$nulls":5},"Preliminaries and Generals",{"$f":"G5+G6+G7+G8","v":{"v":0,"d":"R 0.00"}}]
[{"$nulls":5},"Works Installation Summary",{"$f":"ROUND(SUM(G9:G48),2)","v":{"v":0,"d":"R 0.00"}}]
[{"$nulls":5},"Subtotal A (Excl. VAT)",{"$f":"ROUND(G49+G50,2)","v":{"v":0,"d":"R 0.00"}}]
[{"$nulls":5},"Add 10% Contingency",{"$f":"ROUND(G51*10%,2)","v":{"v":0,"d":"R 0.00"}}]
[{"$nulls":5},"Subtotal B (Excl. VAT)",{"$f":"ROUND(G51+G52,2)","v":{"v":0,"d":"R 0.00"}}]
[{"$nulls":5},"Add VAT @ 15%",{"$f":"ROUND(G53*15%,2)","v":{"v":0,"d":"R 0.00"}}]
[{"$nulls":5},"Amount carried forward to summary",{"$f":"ROUND(G53+G54,2)","v":{"v":0,"d":"R 0.00"}}]

{"sheet":"6. Greytown","index":7,"n_rows":55,"n_cols":7,"rows_kept":55,"merged":[[0,1,0,6],[1,1,1,6]]}
[null,"TENDER No: RFP069-070/2026: APPOINTMENT OF SERVICE PROVIDERS FOR THE DESIGN, SUPPLY, INSTALLATION, COMMISSIONING AND MAINTENANCE OF SOLAR-POWERED BACKUP SYSTEMS AT TWENTY (20) HOSPITAL FACILITIES RECEIVING PRESSURE SWING ADSORPTION (PSA) OXYGEN GENERATING PLANTS: \nGreytown Hospital"]
[null,"Cluster 1 | Preliminary procurement quantities based on the 120 kWp planning class. Tenderer to price all items; final quantities and ratings remain subject to site verification, the accepted seven-day load study and the Contractor's detailed design."]
[]
["Item No","Item","Activity Description","Unit","Quantity","Rate","Amount"]
[1,"Preliminary & General: Once-off costs","Site establishment, mobilisation, demobilisation, temporary facilities, storage, fencing, site signage and initial setup.","Sum ",{"v":1,"d":"1.00"},null,{"$f":"BOQ_15[[#This Row],[Quantity]]*BOQ_15[[#This Row],[Rate]]","v":{"v":0,"d":"R 0.00"}}]
[2,"Preliminary & General:Time-related costs","Site management and supervision, temporary facilities, utilities, security, administration, plant, tools and welfare facilities for the contract duration.","Month ",{"v":1,"d":"1.00"},null,{"$f":"BOQ_15[[#This Row],[Quantity]]*BOQ_15[[#This Row],[Rate]]","v":{"v":0,"d":"R 0.00"}}]
[3,"Preliminary & General: Value-related costs","Contractor's All Risks Insurance, public liability insurance, performance guarantees, bonds, statutory fees and financial securities.","Sum ",{"v":1,"d":"1.00"},null,{"$f":"BOQ_15[[#This Row],[Quantity]]*BOQ_15[[#This Row],[Rate]]","v":{"v":0,"d":"R 0.00"}}]
[4,"Preliminary & General: Project-Specific Allowances","Hospital operational constraints, Occupational Health and Safety (OHS) compliance, permit-to-work coordination, infection prevention and control measures, temporary shutdowns, hospital operational constraints, logistics, testing and commissioning, operator training, as-built documentation and final handover.","Sum ",{"v":1,"d":"1.00"},null,{"$f":"BOQ_15[[#This Row],[Quantity]]*BOQ_15[[#This Row],[Rate]]","v":{"v":0,"d":"R 0.00"}}]
[5,"Tier 1 Solar PV modules","Tier 1 PV module, approx. 625–630 Wp each; final make/model by EPC tender","No.",{"v":191,"d":"191.00"},null,{"$f":"IF(OR(E9=\"\",F9=\"\"),0,E9*F9)","v":{"v":0,"d":"R 0.00"}}]
[6,"PV string labelling and module identification","UV-stable labels for module strings, DBs and isolation points","Lot",{"v":1,"d":"1.00"},null,{"v":0,"d":"R 0.00"}]
[7,"PV mounting system / carport structure","Solar carport mounting system subject to structural design","Lot",{"v":1,"d":"1.00"},null,{"v":0,"d":"R 0.00"}]
[8,"Module clamps, rails, brackets and fasteners","Compatible aluminium/stainless mounting accessories","Lot",{"v":1,"d":"1.00"},null,{"v":0,"d":"R 0.00"}]
[9,"MC4-compatible connectors","PV connectors; quantity subject to final string design","Lot",{"v":420,"d":"420.00"},null,{"v":0,"d":"R 0.00"}]
[10,"6 mm² PV DC cable","UV-rated solar DC cable, red/black; route length subject to site verification","m",{"v":240,"d":"240.00"},null,{"v":0,"d":"R 0.00"}]
[11,"DC cable containment","UV-rated conduit/trunking/trays and mechanical protection","Lot",{"v":1,"d":"1.00"},null,{"v":0,"d":"R 0.00"}]
[12,"DC protection box / combiner","String fusing/combiner arrangement, DC isolators, Type 1/2 SPD as site applicable","No.",{"v":1,"d":"1.00"},null,{"v":0,"d":"R 0.00"}]
[13,"DC isolators","Lockable DC isolation points with clear alternative-source labelling","Lot",{"v":4,"d":"4.00"},null,{"v":0,"d":"R 0.00"}]
[14,"Grid-forming PCS / inverter","Grid-forming PCS/inverter sized for PSA resilience application; final rating subject to load study","No.",{"v":1,"d":"1.00"},null,{"v":0,"d":"R 0.00"}]
[15,"PCS/inverter controller / EMS interface","Energy management and control interface for PV, BESS, genset and grid operation","No.",{"v":1,"d":"1.00"},null,{"v":0,"d":"R 0.00"}]
[16,"BESS cabinet","Outdoor-rated battery energy storage cabinet; final kWh subject to 7-day load monitoring","No.",{"v":1,"d":"1.00"},null,{"v":0,"d":"R 0.00"}]
[17,"BESS HVAC / thermal management","Integrated cabinet cooling/ventilation as required by selected BESS","Lot",{"v":1,"d":"1.00"},null,{"v":0,"d":"R 0.00"}]
[18,"Battery DC protection and isolation","Battery isolation, protection, safety interlocks and emergency shutdown interface","Lot",{"v":1,"d":"1.00"},null,{"v":0,"d":"R 0.00"}]
[19,"AC protection box","AC DB/protection board with breakers, SPDs, metering and labelling","No.",{"v":1,"d":"1.00"},null,{"v":0,"d":"R 0.00"}]
[20,"Static Transfer Switch (STS) / changeover","STS or compliant automatic changeover arrangement for critical PSA supply","No.",{"v":1,"d":"1.00"},null,{"v":0,"d":"R 0.00"}]
[21,"16 mm² XLPE copper cable","AC cable allowance; size and route length subject to detailed design","m",{"v":220,"d":"220.00"},null,{"v":0,"d":"R 0.00"}]
[22,"AC cable containment and termination accessories","Cable tray, gland plates, lugs, glands, ferrules and terminations; Tenderer to price","Lot",{"v":1,"d":"1.00"},null,{"$f":"IF(OR(E26=\"\",F26=\"\"),0,E26*F26)","v":{"v":0,"d":"R 0.00"}}]
[23,"Distribution board modifications","PSA DB integration, supply-side interface and alternative-source labelling","Lot",{"v":1,"d":"1.00"},null,{"v":0,"d":"R 0.00"}]
[24,"Generator integration interface","Genset interface, controls, protection, cabling and changeover coordination","Lot",{"v":1,"d":"1.00"},null,{"v":0,"d":"R 0.00"}]
[25,"Grid interface and export limiting","CTs/meters and export-limiting control at point of connection as applicable","Lot",{"v":1,"d":"1.00"},null,{"v":0,"d":"R 0.00"}]
[26,"Earthing and bonding system","PV frame bonding, equipment bonding and SANS-compliant earthing","Lot",{"v":1,"d":"1.00"},null,{"v":0,"d":"R 0.00"}]
[27,"Copper earth spikes","Copper-bonded earth rods/spikes; final quantity subject to earth testing","No.",{"v":12,"d":"12.00"},null,{"v":0,"d":"R 0.00"}]
[28,"Earth cable and accessories","Bare/insulated copper earth conductor, clamps, lugs and earth bar","m",{"v":150,"d":"150.00"},null,{"v":0,"d":"R 0.00"}]
[29,"Equipment plinths / foundations","Concrete plinths for PCS, BESS, AC/DC boards and ancillary equipment","Lot",{"v":1,"d":"1.00"},null,{"v":0,"d":"R 0.00"}]
[30,"Trenching and reinstatement","Cable trenching, sleeves, marker tape and surface reinstatement","m",{"v":15,"d":"15.00"},null,{"v":0,"d":"R 0.00"}]
[31,"Security fence","Security fencing around outdoor electrical equipment / BESS compound","m",{"v":5,"d":"5.00"},null,{"v":0,"d":"R 0.00"}]
[32,"Access gate and signage","Lockable access gate, danger signage and emergency contact signage","Lot",{"v":1,"d":"1.00"},null,{"v":0,"d":"R 0.00"}]
[33,"Remote monitoring gateway","Wi-Fi/LTE router, data logger and remote monitoring dashboard interface","No.",{"v":1,"d":"1.00"},null,{"v":0,"d":"R 0.00"}]
[34,"Electrical metering and CTs","3-phase metering, CTs and monitoring for PV/BESS/PSA supply","Lot",{"v":1,"d":"1.00"},null,{"v":0,"d":"R 0.00"}]
[35,"7-day load monitoring campaign","Class 0.5 logger; voltage/current/pf/kW/kVA/kWh at suitable intervals","Lot",{"v":1,"d":"1.00"},null,{"v":0,"d":"R 0.00"}]
[36,"Detailed engineering design","SLD, layout, cable sizing, protection coordination and construction pack","Lot",{"v":1,"d":"1.00"},null,{"v":0,"d":"R 0.00"}]
[37,"Shading, azimuth and yield verification","Final PV orientation, tilt, row spacing and shading verification","Lot",{"v":1,"d":"1.00"},null,{"v":0,"d":"R 0.00"}]
[38,"Wind/snow/structural verification","Civil/structural checks for carport mount solution","Lot",{"v":1,"d":"1.00"},null,{"v":0,"d":"R 0.00"}]
[39,"FAT / OEM support","OEM or approved technical representative support during FAT/commissioning","Lot",{"v":1,"d":"1.00"},null,{"v":0,"d":"R 0.00"}]
[40,"Testing and commissioning","Functional tests, protection tests, microgrid operation tests and handover checks","Lot",{"v":1,"d":"1.00"},null,{"v":0,"d":"R 0.00"}]
[41,"Certificate of Compliance","SANS-compliant electrical CoC and supporting certificates","Lot",{"v":1,"d":"1.00"},null,{"v":0,"d":"R 0.00"}]
[42,"Maintenance","36-month O&M price under the NEC3 TSC (PV + PCS + BESS); separate service component","Lot",{"v":1,"d":"1.00"},null,{"$f":"IF(OR(E46=\"\",F46=\"\"),0,E46*F46)","v":{"v":0,"d":"R 0.00"}}]
[43,"As-built drawings and handover pack","As-built SLDs, manuals, warranties, training records and close-out report","Lot",{"v":1,"d":"1.00"},null,{"v":0,"d":"R 0.00"}]
[44,"Local operator training","Training for hospital / local maintenance personnel","Lot",{"v":1,"d":"1.00"},null,{"v":0,"d":"R 0.00"}]
[{"$nulls":5},"Preliminaries and Generals ",{"$f":"G5+G6+G7+G8","v":{"v":0,"d":"R 0.00"}}]
[{"$nulls":5},"Works Installation Summary",{"$f":"ROUND(SUM(G9:G48),2)","v":{"v":0,"d":"R 0.00"}}]
[{"$nulls":5},"Subtotal A (Excl. VAT)",{"$f":"ROUND(G49+G50,2)","v":{"v":0,"d":"R 0.00"}}]
[{"$nulls":5},"Add 10% Contingency",{"$f":"ROUND(G51*10%,2)","v":{"v":0,"d":"R 0.00"}}]
[{"$nulls":5},"Subtotal B (Excl. VAT)",{"$f":"ROUND(G51+G52,2)","v":{"v":0,"d":"R 0.00"}}]
[{"$nulls":5},"Add VAT @ 15%",{"$f":"ROUND(G53*15%,2)","v":{"v":0,"d":"R 0.00"}}]
[{"$nulls":5},"Amount carried forward to summary",{"$f":"ROUND(G53+G54,2)","v":{"v":0,"d":"R 0.00"}}]

{"sheet":"7. Umphumulo","index":8,"n_rows":55,"n_cols":7,"rows_kept":55,"merged":[[0,0,0,6],[1,1,1,6]]}
["TENDER No: RFP069-070/2026: APPOINTMENT OF SERVICE PROVIDERS FOR THE DESIGN, SUPPLY, INSTALLATION, COMMISSIONING AND MAINTENANCE OF SOLAR-POWERED BACKUP SYSTEMS AT TWENTY (20) HOSPITAL FACILITIES RECEIVING PRESSURE SWING ADSORPTION (PSA) OXYGEN GENERATING PLANTS: \nUmphumulo Hospital"]
[null,"Cluster 1 | Preliminary procurement quantities based on the 90 kWp planning class. Tenderer to price all items; final quantities and ratings remain subject to site verification, the accepted seven-day load study and the Contractor's detailed design."]
[]
["Item No","Item","Activity Description","Unit","Quantity","Rate","Amount"]
[1,"Preliminary & General: Once-off costs","Site establishment, mobilisation, demobilisation, temporary facilities, storage, fencing, site signage and initial setup.","Sum ",{"v":1,"d":"1.00"},null,{"$f":"BOQ_20[[#This Row],[Quantity]]*BOQ_20[[#This Row],[Rate]]","v":{"v":0,"d":"R 0.00"}}]
[2,"Preliminary & General:Time-related costs","Site management and supervision, temporary facilities, utilities, security, administration, plant, tools and welfare facilities for the contract duration.","Month ",{"v":1,"d":"1.00"},null,{"$f":"BOQ_20[[#This Row],[Quantity]]*BOQ_20[[#This Row],[Rate]]","v":{"v":0,"d":"R 0.00"}}]
[3,"Preliminary & General: Value-related costs","Contractor's All Risks Insurance, public liability insurance, performance guarantees, bonds, statutory fees and financial securities.","Sum ",{"v":1,"d":"1.00"},null,{"$f":"BOQ_20[[#This Row],[Quantity]]*BOQ_20[[#This Row],[Rate]]","v":{"v":0,"d":"R 0.00"}}]
[4,"Preliminary & General: Project-Specific Allowances","Hospital operational constraints, Occupational Health and Safety (OHS) compliance, permit-to-work coordination, infection prevention and control measures, temporary shutdowns, hospital operational constraints, logistics, testing and commissioning, operator training, as-built documentation and final handover.","Sum ",{"v":1,"d":"1.00"},null,{"$f":"BOQ_20[[#This Row],[Quantity]]*BOQ_20[[#This Row],[Rate]]","v":{"v":0,"d":"R 0.00"}}]
[5,"Tier 1 Solar PV modules","Tier 1 PV module, approx. 625–630 Wp each; final make/model by EPC tender","No.",{"v":143,"d":"143.00"},null,{"$f":"IF(OR(E9=\"\",F9=\"\"),0,E9*F9)","v":{"v":0,"d":"R 0.00"}}]
[6,"PV string labelling and module identification","UV-stable labels for module strings, DBs and isolation points","Lot",{"v":1,"d":"1.00"},null,{"v":0,"d":"R 0.00"}]
[7,"PV mounting system / carport structure","Solar roof mounting system subject to structural design","Lot",{"v":1,"d":"1.00"},null,{"v":0,"d":"R 0.00"}]
[8,"Module clamps, rails, brackets and fasteners","Compatible aluminium/stainless mounting accessories","Lot",{"v":1,"d":"1.00"},null,{"v":0,"d":"R 0.00"}]
[9,"MC4-compatible connectors","PV connectors; quantity subject to final string design","Lot",{"v":315,"d":"315.00"},null,{"v":0,"d":"R 0.00"}]
[10,"6 mm² PV DC cable","UV-rated solar DC cable, red/black; route length subject to site verification","m",{"v":180,"d":"180.00"},null,{"v":0,"d":"R 0.00"}]
[11,"DC cable containment","UV-rated conduit/trunking/trays and mechanical protection","Lot",{"v":1,"d":"1.00"},null,{"v":0,"d":"R 0.00"}]
[12,"DC protection box / combiner","String fusing/combiner arrangement, DC isolators, Type 1/2 SPD as site applicable","No.",{"v":1,"d":"1.00"},null,{"v":0,"d":"R 0.00"}]
[13,"DC isolators","Lockable DC isolation points with clear alternative-source labelling","Lot",{"v":4,"d":"4.00"},null,{"v":0,"d":"R 0.00"}]
[14,"Grid-forming PCS / inverter","Grid-forming PCS/inverter sized for PSA resilience application; final rating subject to load study","No.",{"v":1,"d":"1.00"},null,{"v":0,"d":"R 0.00"}]
[15,"PCS/inverter controller / EMS interface","Energy management and control interface for PV, BESS, genset and grid operation","No.",{"v":1,"d":"1.00"},null,{"v":0,"d":"R 0.00"}]
[16,"BESS cabinet","Outdoor-rated battery energy storage cabinet; final kWh subject to 7-day load monitoring","No.",{"v":1,"d":"1.00"},null,{"v":0,"d":"R 0.00"}]
[17,"BESS HVAC / thermal management","Integrated cabinet cooling/ventilation as required by selected BESS","Lot",{"v":1,"d":"1.00"},null,{"v":0,"d":"R 0.00"}]
[18,"Battery DC protection and isolation","Battery isolation, protection, safety interlocks and emergency shutdown interface","Lot",{"v":1,"d":"1.00"},null,{"v":0,"d":"R 0.00"}]
[19,"AC protection box","AC DB/protection board with breakers, SPDs, metering and labelling","No.",{"v":1,"d":"1.00"},null,{"v":0,"d":"R 0.00"}]
[20,"Static Transfer Switch (STS) / changeover","STS or compliant automatic changeover arrangement for critical PSA supply","No.",{"v":1,"d":"1.00"},null,{"v":0,"d":"R 0.00"}]
[21,"16 mm² XLPE copper cable","AC cable allowance; size and route length subject to detailed design","m",{"v":150,"d":"150.00"},null,{"v":0,"d":"R 0.00"}]
[22,"AC cable containment and termination accessories","Cable tray, gland plates, lugs, glands, ferrules and terminations; Tenderer to price","Lot",{"v":1,"d":"1.00"},null,{"$f":"IF(OR(E26=\"\",F26=\"\"),0,E26*F26)","v":{"v":0,"d":"R 0.00"}}]
[23,"Distribution board modifications","PSA DB integration, supply-side interface and alternative-source labelling","Lot",{"v":1,"d":"1.00"},null,{"v":0,"d":"R 0.00"}]
[24,"Generator integration interface","Genset interface, controls, protection, cabling and changeover coordination","Lot",{"v":1,"d":"1.00"},null,{"v":0,"d":"R 0.00"}]
[25,"Grid interface and export limiting","CTs/meters and export-limiting control at point of connection as applicable","Lot",{"v":1,"d":"1.00"},null,{"v":0,"d":"R 0.00"}]
[26,"Earthing and bonding system","PV frame bonding, equipment bonding and SANS-compliant earthing","Lot",{"v":1,"d":"1.00"},null,{"v":0,"d":"R 0.00"}]
[27,"Copper earth spikes","Copper-bonded earth rods/spikes; final quantity subject to earth testing","No.",{"v":8,"d":"8.00"},null,{"v":0,"d":"R 0.00"}]
[28,"Earth cable and accessories","Bare/insulated copper earth conductor, clamps, lugs and earth bar","m",{"v":100,"d":"100.00"},null,{"v":0,"d":"R 0.00"}]
[29,"Equipment plinths / foundations","Concrete plinths for PCS, BESS, AC/DC boards and ancillary equipment","Lot",{"v":1,"d":"1.00"},null,{"v":0,"d":"R 0.00"}]
[30,"Trenching and reinstatement","Cable trenching, sleeves, marker tape and surface reinstatement","m",{"v":15,"d":"15.00"},null,{"v":0,"d":"R 0.00"}]
[31,"Security fence","Security fencing around outdoor electrical equipment / BESS compound","m",{"v":5,"d":"5.00"},null,{"v":0,"d":"R 0.00"}]
[32,"Access gate and signage","Lockable access gate, danger signage and emergency contact signage","Lot",{"v":1,"d":"1.00"},null,{"v":0,"d":"R 0.00"}]
[33,"Remote monitoring gateway","Wi-Fi/LTE router, data logger and remote monitoring dashboard interface","No.",{"v":1,"d":"1.00"},null,{"v":0,"d":"R 0.00"}]
[34,"Electrical metering and CTs","3-phase metering, CTs and monitoring for PV/BESS/PSA supply","Lot",{"v":1,"d":"1.00"},null,{"v":0,"d":"R 0.00"}]
[35,"7-day load monitoring campaign","Class 0.5 logger; voltage/current/pf/kW/kVA/kWh at suitable intervals","Lot",{"v":1,"d":"1.00"},null,{"v":0,"d":"R 0.00"}]
[36,"Detailed engineering design","SLD, layout, cable sizing, protection coordination and construction pack","Lot",{"v":1,"d":"1.00"},null,{"v":0,"d":"R 0.00"}]
[37,"Shading, azimuth and yield verification","Final PV orientation, tilt, row spacing and shading verification","Lot",{"v":1,"d":"1.00"},null,{"v":0,"d":"R 0.00"}]
[38,"Wind/snow/structural verification","Civil/structural checks for roof mount solution","Lot",{"v":1,"d":"1.00"},null,{"v":0,"d":"R 0.00"}]
[39,"FAT / OEM support","OEM or approved technical representative support during FAT/commissioning","Lot",{"v":1,"d":"1.00"},null,{"v":0,"d":"R 0.00"}]
[40,"Testing and commissioning","Functional tests, protection tests, microgrid operation tests and handover checks","Lot",{"v":1,"d":"1.00"},null,{"v":0,"d":"R 0.00"}]
[41,"Certificate of Compliance","SANS-compliant electrical CoC and supporting certificates","Lot",{"v":1,"d":"1.00"},null,{"v":0,"d":"R 0.00"}]
[42,"Maintenance","36-month O&M price under the NEC3 TSC (PV + PCS + BESS); separate service component","Lot",{"v":1,"d":"1.00"},null,{"$f":"IF(OR(E46=\"\",F46=\"\"),0,E46*F46)","v":{"v":0,"d":"R 0.00"}}]
[43,"As-built drawings and handover pack","As-built SLDs, manuals, warranties, training records and close-out report","Lot",{"v":1,"d":"1.00"},null,{"v":0,"d":"R 0.00"}]
[44,"Local operator training","Training for hospital / local maintenance personnel","Lot",{"v":1,"d":"1.00"},null,{"v":0,"d":"R 0.00"}]
[{"$nulls":5},"Preliminaries and Generals",{"$f":"G5+G6+G7+G8","v":{"v":0,"d":"R 0.00"}}]
[{"$nulls":5},"Works Installation Summary",{"$f":"ROUND(SUM(G9:G49),2)","v":{"v":0,"d":"R 0.00"}}]
[{"$nulls":5},"Subtotal A (Excl. VAT)",{"$f":"ROUND(G49+G50,2)","v":{"v":0,"d":"R 0.00"}}]
[{"$nulls":5},"Add 10% Contingency",{"$f":"ROUND(G51*10%,2)","v":{"v":0,"d":"R 0.00"}}]
[{"$nulls":5},"Subtotal B (Excl. VAT)",{"$f":"ROUND(G51+G52,2)","v":{"v":0,"d":"R 0.00"}}]
[{"$nulls":5},"Add VAT @ 15%",{"$f":"ROUND(G53*15%,2)","v":{"v":0,"d":"R 0.00"}}]
[{"$nulls":5},"Amount carried forward to summary",{"$f":"ROUND(G53+G54,2)","v":{"v":0,"d":"R 0.00"}}]

{"sheet":"8. Benedictine","index":9,"n_rows":55,"n_cols":7,"rows_kept":55,"merged":[[0,1,0,6],[1,1,1,6]]}
[null,"TENDER No: RFP069-070/2026: APPOINTMENT OF SERVICE PROVIDERS FOR THE DESIGN, SUPPLY, INSTALLATION, COMMISSIONING AND MAINTENANCE OF SOLAR-POWERED BACKUP SYSTEMS AT TWENTY (20) HOSPITAL FACILITIES RECEIVING PRESSURE SWING ADSORPTION (PSA) OXYGEN GENERATING PLANTS: \nBenedictine Hospital"]
[null,"Cluster 1 | Preliminary procurement quantities based on the 90 kWp planning class. Tenderer to price all items; final quantities and ratings remain subject to site verification, the accepted seven-day load study and the Contractor's detailed design."]
[]
["Item No","Item","Activity Description","Unit","Quantity","Rate","Amount"]
[1,"Preliminary & General: Once-off costs","Site establishment, mobilisation, demobilisation, temporary facilities, storage, fencing, site signage and initial setup.","Sum ",{"v":1,"d":"1.00"},null,{"$f":"BOQ_10[[#This Row],[Quantity]]*BOQ_10[[#This Row],[Rate]]","v":{"v":0,"d":"R 0.00"}}]
[2,"Preliminary & General:Time-related costs","Site management and supervision, temporary facilities, utilities, security, administration, plant, tools and welfare facilities for the contract duration.","Month ",{"v":1,"d":"1.00"},null,{"$f":"BOQ_10[[#This Row],[Quantity]]*BOQ_10[[#This Row],[Rate]]","v":{"v":0,"d":"R 0.00"}}]
[3,"Preliminary & General: Value-related costs","Contractor's All Risks Insurance, public liability insurance, performance guarantees, bonds, statutory fees and financial securities.","Sum ",{"v":1,"d":"1.00"},null,{"$f":"BOQ_10[[#This Row],[Quantity]]*BOQ_10[[#This Row],[Rate]]","v":{"v":0,"d":"R 0.00"}}]
[4,"Preliminary & General: Project-Specific Allowances","Hospital operational constraints, Occupational Health and Safety (OHS) compliance, permit-to-work coordination, infection prevention and control measures, temporary shutdowns, hospital operational constraints, logistics, testing and commissioning, operator training, as-built documentation and final handover.","Sum ",{"v":1,"d":"1.00"},null,{"$f":"BOQ_10[[#This Row],[Quantity]]*BOQ_10[[#This Row],[Rate]]","v":{"v":0,"d":"R 0.00"}}]
[5,"Tier 1 Solar PV modules","Tier 1 PV module, approx. 625–630 Wp each; final make/model by EPC tender","No.",{"v":143,"d":"143.00"},null,{"$f":"IF(OR(E9=\"\",F9=\"\"),0,E9*F9)","v":{"v":0,"d":"R 0.00"}}]
[6,"PV string labelling and module identification","UV-stable labels for module strings, DBs and isolation points","Lot",{"v":1,"d":"1.00"},null,{"v":0,"d":"R 0.00"}]
[7,"PV mounting system / carport structure","Solar carport mounting system subject to structural design","Lot",{"v":1,"d":"1.00"},null,{"v":0,"d":"R 0.00"}]
[8,"Module clamps, rails, brackets and fasteners","Compatible aluminium/stainless mounting accessories","Lot",{"v":1,"d":"1.00"},null,{"v":0,"d":"R 0.00"}]
[9,"MC4-compatible connectors","PV connectors; quantity subject to final string design","Lot",{"v":315,"d":"315.00"},null,{"v":0,"d":"R 0.00"}]
[10,"6 mm² PV DC cable","UV-rated solar DC cable, red/black; route length subject to site verification","m",{"v":180,"d":"180.00"},null,{"v":0,"d":"R 0.00"}]
[11,"DC cable containment","UV-rated conduit/trunking/trays and mechanical protection","Lot",{"v":1,"d":"1.00"},null,{"v":0,"d":"R 0.00"}]
[12,"DC protection box / combiner","String fusing/combiner arrangement, DC isolators, Type 1/2 SPD as site applicable","No.",{"v":1,"d":"1.00"},null,{"v":0,"d":"R 0.00"}]
[13,"DC isolators","Lockable DC isolation points with clear alternative-source labelling","Lot",{"v":4,"d":"4.00"},null,{"v":0,"d":"R 0.00"}]
[14,"Grid-forming PCS / inverter","Grid-forming PCS/inverter sized for PSA resilience application; final rating subject to load study","No.",{"v":1,"d":"1.00"},null,{"v":0,"d":"R 0.00"}]
[15,"PCS/inverter controller / EMS interface","Energy management and control interface for PV, BESS, genset and grid operation","No.",{"v":1,"d":"1.00"},null,{"v":0,"d":"R 0.00"}]
[16,"BESS cabinet","Outdoor-rated battery energy storage cabinet; final kWh subject to 7-day load monitoring","No.",{"v":1,"d":"1.00"},null,{"v":0,"d":"R 0.00"}]
[17,"BESS HVAC / thermal management","Integrated cabinet cooling/ventilation as required by selected BESS","Lot",{"v":1,"d":"1.00"},null,{"v":0,"d":"R 0.00"}]
[18,"Battery DC protection and isolation","Battery isolation, protection, safety interlocks and emergency shutdown interface","Lot",{"v":1,"d":"1.00"},null,{"v":0,"d":"R 0.00"}]
[19,"AC protection box","AC DB/protection board with breakers, SPDs, metering and labelling","No.",{"v":1,"d":"1.00"},null,{"v":0,"d":"R 0.00"}]
[20,"Static Transfer Switch (STS) / changeover","STS or compliant automatic changeover arrangement for critical PSA supply","No.",{"v":1,"d":"1.00"},null,{"v":0,"d":"R 0.00"}]
[21,"16 mm² XLPE copper cable","AC cable allowance; size and route length subject to detailed design","m",{"v":180,"d":"180.00"},null,{"v":0,"d":"R 0.00"}]
[22,"AC cable containment and termination accessories","Cable tray, gland plates, lugs, glands, ferrules and terminations; Tenderer to price","Lot",{"v":1,"d":"1.00"},null,{"$f":"IF(OR(E26=\"\",F26=\"\"),0,E26*F26)","v":{"v":0,"d":"R 0.00"}}]
[23,"Distribution board modifications","PSA DB integration, supply-side interface and alternative-source labelling","Lot",{"v":1,"d":"1.00"},null,{"v":0,"d":"R 0.00"}]
[24,"Generator integration interface","Genset interface, controls, protection, cabling and changeover coordination","Lot",{"v":1,"d":"1.00"},null,{"v":0,"d":"R 0.00"}]
[25,"Grid interface and export limiting","CTs/meters and export-limiting control at point of connection as applicable","Lot",{"v":1,"d":"1.00"},null,{"v":0,"d":"R 0.00"}]
[26,"Earthing and bonding system","PV frame bonding, equipment bonding and SANS-compliant earthing","Lot",{"v":1,"d":"1.00"},null,{"v":0,"d":"R 0.00"}]
[27,"Copper earth spikes","Copper-bonded earth rods/spikes; final quantity subject to earth testing","No.",{"v":12,"d":"12.00"},null,{"v":0,"d":"R 0.00"}]
[28,"Earth cable and accessories","Bare/insulated copper earth conductor, clamps, lugs and earth bar","m",{"v":150,"d":"150.00"},null,{"v":0,"d":"R 0.00"}]
[29,"Equipment plinths / foundations","Concrete plinths for PCS, BESS, AC/DC boards and ancillary equipment","Lot",{"v":1,"d":"1.00"},null,{"v":0,"d":"R 0.00"}]
[30,"Trenching and reinstatement","Cable trenching, sleeves, marker tape and surface reinstatement","m",{"v":15,"d":"15.00"},null,{"v":0,"d":"R 0.00"}]
[31,"Security fence","Security fencing around outdoor electrical equipment / BESS compound","m",{"v":10,"d":"10.00"},null,{"v":0,"d":"R 0.00"}]
[32,"Access gate and signage","Lockable access gate, danger signage and emergency contact signage","Lot",{"v":1,"d":"1.00"},null,{"v":0,"d":"R 0.00"}]
[33,"Remote monitoring gateway","Wi-Fi/LTE router, data logger and remote monitoring dashboard interface","No.",{"v":1,"d":"1.00"},null,{"v":0,"d":"R 0.00"}]
[34,"Electrical metering and CTs","3-phase metering, CTs and monitoring for PV/BESS/PSA supply","Lot",{"v":1,"d":"1.00"},null,{"v":0,"d":"R 0.00"}]
[35,"7-day load monitoring campaign","Class 0.5 logger; voltage/current/pf/kW/kVA/kWh at suitable intervals","Lot",{"v":1,"d":"1.00"},null,{"v":0,"d":"R 0.00"}]
[36,"Detailed engineering design","SLD, layout, cable sizing, protection coordination and construction pack","Lot",{"v":1,"d":"1.00"},null,{"v":0,"d":"R 0.00"}]
[37,"Shading, azimuth and yield verification","Final PV orientation, tilt, row spacing and shading verification","Lot",{"v":1,"d":"1.00"},null,{"v":0,"d":"R 0.00"}]
[38,"Wind/snow/structural verification","Civil/structural checks for carport mount solution","Lot",{"v":1,"d":"1.00"},null,{"v":0,"d":"R 0.00"}]
[39,"FAT / OEM support","OEM or approved technical representative support during FAT/commissioning","Lot",{"v":1,"d":"1.00"},null,{"v":0,"d":"R 0.00"}]
[40,"Testing and commissioning","Functional tests, protection tests, microgrid operation tests and handover checks","Lot",{"v":1,"d":"1.00"},null,{"v":0,"d":"R 0.00"}]
[41,"Certificate of Compliance","SANS-compliant electrical CoC and supporting certificates","Lot",{"v":1,"d":"1.00"},null,{"v":0,"d":"R 0.00"}]
[42,"Maintenance","36-month O&M price under the NEC3 TSC (PV + PCS + BESS); separate service component","Lot",{"v":1,"d":"1.00"},null,{"$f":"IF(OR(E46=\"\",F46=\"\"),0,E46*F46)","v":{"v":0,"d":"R 0.00"}}]
[43,"As-built drawings and handover pack","As-built SLDs, manuals, warranties, training records and close-out report","Lot",{"v":1,"d":"1.00"},null,{"v":0,"d":"R 0.00"}]
[44,"Local operator training","Training for hospital / local maintenance personnel","Lot",{"v":1,"d":"1.00"},null,{"v":0,"d":"R 0.00"}]
[{"$nulls":5},"Preliminaries and Generals ",{"$f":"G5+G6+G7+G8","v":{"v":0,"d":"R 0.00"}}]
[{"$nulls":5},"Works Installation Summary",{"$f":"ROUND(SUM(G9:G49),2)","v":{"v":0,"d":"R 0.00"}}]
[{"$nulls":5},"Subtotal A (Excl. VAT)",{"$f":"ROUND(G49+G50,2)","v":{"v":0,"d":"R 0.00"}}]
[{"$nulls":5},"Add 10% Contingency",{"$f":"ROUND(G51*10%,2)","v":{"v":0,"d":"R 0.00"}}]
[{"$nulls":5},"Subtotal B (Excl. VAT)",{"$f":"ROUND(G51+G52,2)","v":{"v":0,"d":"R 0.00"}}]
[{"$nulls":5},"Add VAT @ 15%",{"$f":"ROUND(G53*15%,2)","v":{"v":0,"d":"R 0.00"}}]
[{"$nulls":5},"Amount carried forward to summary",{"$f":"ROUND(G53+G54,2)","v":{"v":0,"d":"R 0.00"}}]

{"sheet":"9. Bethesda","index":10,"n_rows":55,"n_cols":7,"rows_kept":55,"merged":[[0,0,0,6],[1,1,1,6]]}
["TENDER No: RFP069-070/2026: APPOINTMENT OF SERVICE PROVIDERS FOR THE DESIGN, SUPPLY, INSTALLATION, COMMISSIONING AND MAINTENANCE OF SOLAR-POWERED BACKUP SYSTEMS AT TWENTY (20) HOSPITAL FACILITIES RECEIVING PRESSURE SWING ADSORPTION (PSA) OXYGEN GENERATING PLANTS: \nBethesda Hospital"]
[null,"Cluster 1 | Preliminary procurement quantities based on the 120 kWp planning class. Tenderer to price all items; final quantities and ratings remain subject to site verification, the accepted seven-day load study and the Contractor's detailed design."]
[]
["Item No","Item","Activity Description","Unit","Quantity","Rate","Amount"]
[1,"Preliminary & General: Once-off costs","Site establishment, mobilisation, demobilisation, temporary facilities, storage, fencing, site signage and initial setup.","Sum ",{"v":1,"d":"1.00"},null,{"$f":"BOQ_11[[#This Row],[Quantity]]*BOQ_11[[#This Row],[Rate]]","v":{"v":0,"d":"R 0.00"}}]
[2,"Preliminary & General:Time-related costs","Site management and supervision, temporary facilities, utilities, security, administration, plant, tools and welfare facilities for the contract duration.","Month ",{"v":1,"d":"1.00"},null,{"$f":"BOQ_11[[#This Row],[Quantity]]*BOQ_11[[#This Row],[Rate]]","v":{"v":0,"d":"R 0.00"}}]
[3,"Preliminary & General: Value-related costs","Contractor's All Risks Insurance, public liability insurance, performance guarantees, bonds, statutory fees and financial securities.","Sum ",{"v":1,"d":"1.00"},null,{"$f":"BOQ_11[[#This Row],[Quantity]]*BOQ_11[[#This Row],[Rate]]","v":{"v":0,"d":"R 0.00"}}]
[4,"Preliminary & General: Project-Specific Allowances","Hospital operational constraints, Occupational Health and Safety (OHS) compliance, permit-to-work coordination, infection prevention and control measures, temporary shutdowns, hospital operational constraints, logistics, testing and commissioning, operator training, as-built documentation and final handover.","Sum ",{"v":1,"d":"1.00"},null,{"$f":"BOQ_11[[#This Row],[Quantity]]*BOQ_11[[#This Row],[Rate]]","v":{"v":0,"d":"R 0.00"}}]
[5,"Tier 1 Solar PV modules","Tier 1 PV module, approx. 625–630 Wp each; final make/model by EPC tender","No.",{"v":191,"d":"191.00"},null,{"$f":"IF(OR(E9=\"\",F9=\"\"),0,E9*F9)","v":{"v":0,"d":"R 0.00"}}]
[6,"PV string labelling and module identification","UV-stable labels for module strings, DBs and isolation points","Lot",{"v":1,"d":"1.00"},null,{"v":0,"d":"R 0.00"}]
[7,"PV mounting system / carport structure","Solar carport mounting system subject to structural design","Lot",{"v":1,"d":"1.00"},null,{"v":0,"d":"R 0.00"}]
[8,"Module clamps, rails, brackets and fasteners","Compatible aluminium/stainless mounting accessories","Lot",{"v":1,"d":"1.00"},null,{"v":0,"d":"R 0.00"}]
[9,"MC4-compatible connectors","PV connectors; quantity subject to final string design","Lot",{"v":420,"d":"420.00"},null,{"v":0,"d":"R 0.00"}]
[10,"6 mm² PV DC cable","UV-rated solar DC cable, red/black; route length subject to site verification","m",{"v":240,"d":"240.00"},null,{"v":0,"d":"R 0.00"}]
[11,"DC cable containment","UV-rated conduit/trunking/trays and mechanical protection","Lot",{"v":1,"d":"1.00"},null,{"v":0,"d":"R 0.00"}]
[12,"DC protection box / combiner","String fusing/combiner arrangement, DC isolators, Type 1/2 SPD as site applicable","No.",{"v":1,"d":"1.00"},null,{"v":0,"d":"R 0.00"}]
[13,"DC isolators","Lockable DC isolation points with clear alternative-source labelling","Lot",{"v":4,"d":"4.00"},null,{"v":0,"d":"R 0.00"}]
[14,"Grid-forming PCS / inverter","Grid-forming PCS/inverter sized for PSA resilience application; final rating subject to load study","No.",{"v":1,"d":"1.00"},null,{"v":0,"d":"R 0.00"}]
[15,"PCS/inverter controller / EMS interface","Energy management and control interface for PV, BESS, genset and grid operation","No.",{"v":1,"d":"1.00"},null,{"v":0,"d":"R 0.00"}]
[16,"BESS cabinet","Outdoor-rated battery energy storage cabinet; final kWh subject to 7-day load monitoring","No.",{"v":1,"d":"1.00"},null,{"v":0,"d":"R 0.00"}]
[17,"BESS HVAC / thermal management","Integrated cabinet cooling/ventilation as required by selected BESS","Lot",{"v":1,"d":"1.00"},null,{"v":0,"d":"R 0.00"}]
[18,"Battery DC protection and isolation","Battery isolation, protection, safety interlocks and emergency shutdown interface","Lot",{"v":1,"d":"1.00"},null,{"v":0,"d":"R 0.00"}]
[19,"AC protection box","AC DB/protection board with breakers, SPDs, metering and labelling","No.",{"v":1,"d":"1.00"},null,{"v":0,"d":"R 0.00"}]
[20,"Static Transfer Switch (STS) / changeover","STS or compliant automatic changeover arrangement for critical PSA supply","No.",{"v":1,"d":"1.00"},null,{"v":0,"d":"R 0.00"}]
[21,"16 mm² XLPE copper cable","AC cable allowance; size and route length subject to detailed design","m",{"v":220,"d":"220.00"},null,{"v":0,"d":"R 0.00"}]
[22,"AC cable containment and termination accessories","Cable tray, gland plates, lugs, glands, ferrules and terminations; Tenderer to price","Lot",{"v":1,"d":"1.00"},null,{"$f":"IF(OR(E26=\"\",F26=\"\"),0,E26*F26)","v":{"v":0,"d":"R 0.00"}}]
[23,"Distribution board modifications","PSA DB integration, supply-side interface and alternative-source labelling","Lot",{"v":1,"d":"1.00"},null,{"v":0,"d":"R 0.00"}]
[24,"Generator integration interface","Genset interface, controls, protection, cabling and changeover coordination","Lot",{"v":1,"d":"1.00"},null,{"v":0,"d":"R 0.00"}]
[25,"Grid interface and export limiting","CTs/meters and export-limiting control at point of connection as applicable","Lot",{"v":1,"d":"1.00"},null,{"v":0,"d":"R 0.00"}]
[26,"Earthing and bonding system","PV frame bonding, equipment bonding and SANS-compliant earthing","Lot",{"v":1,"d":"1.00"},null,{"v":0,"d":"R 0.00"}]
[27,"Copper earth spikes","Copper-bonded earth rods/spikes; final quantity subject to earth testing","No.",{"v":12,"d":"12.00"},null,{"v":0,"d":"R 0.00"}]
[28,"Earth cable and accessories","Bare/insulated copper earth conductor, clamps, lugs and earth bar","m",{"v":150,"d":"150.00"},null,{"v":0,"d":"R 0.00"}]
[29,"Equipment plinths / foundations","Concrete plinths for PCS, BESS, AC/DC boards and ancillary equipment","Lot",{"v":1,"d":"1.00"},null,{"v":0,"d":"R 0.00"}]
[30,"Trenching and reinstatement","Cable trenching, sleeves, marker tape and surface reinstatement","m",{"v":10,"d":"10.00"},null,{"v":0,"d":"R 0.00"}]
[31,"Security fence","Security fencing around outdoor electrical equipment / BESS compound","m",{"v":5,"d":"5.00"},null,{"v":0,"d":"R 0.00"}]
[32,"Access gate and signage","Lockable access gate, danger signage and emergency contact signage","Lot",{"v":1,"d":"1.00"},null,{"v":0,"d":"R 0.00"}]
[33,"Remote monitoring gateway","Wi-Fi/LTE router, data logger and remote monitoring dashboard interface","No.",{"v":1,"d":"1.00"},null,{"v":0,"d":"R 0.00"}]
[34,"Electrical metering and CTs","3-phase metering, CTs and monitoring for PV/BESS/PSA supply","Lot",{"v":1,"d":"1.00"},null,{"v":0,"d":"R 0.00"}]
[35,"7-day load monitoring campaign","Class 0.5 logger; voltage/current/pf/kW/kVA/kWh at suitable intervals","Lot",{"v":1,"d":"1.00"},null,{"v":0,"d":"R 0.00"}]
[36,"Detailed engineering design","SLD, layout, cable sizing, protection coordination and construction pack","Lot",{"v":1,"d":"1.00"},null,{"v":0,"d":"R 0.00"}]
[37,"Shading, azimuth and yield verification","Final PV orientation, tilt, row spacing and shading verification","Lot",{"v":1,"d":"1.00"},null,{"v":0,"d":"R 0.00"}]
[38,"Wind/snow/structural verification","Civil/structural checks for carport mount solution","Lot",{"v":1,"d":"1.00"},null,{"v":0,"d":"R 0.00"}]
[39,"FAT / OEM support","OEM or approved technical representative support during FAT/commissioning","Lot",{"v":1,"d":"1.00"},null,{"v":0,"d":"R 0.00"}]
[40,"Testing and commissioning","Functional tests, protection tests, microgrid operation tests and handover checks","Lot",{"v":1,"d":"1.00"},null,{"v":0,"d":"R 0.00"}]
[41,"Certificate of Compliance","SANS-compliant electrical CoC and supporting certificates","Lot",{"v":1,"d":"1.00"},null,{"v":0,"d":"R 0.00"}]
[42,"Maintenance","36-month O&M price under the NEC3 TSC (PV + PCS + BESS); separate service component","Lot",{"v":1,"d":"1.00"},null,{"v":0,"d":"R 0.00"}]
[43,"As-built drawings and handover pack","As-built SLDs, manuals, warranties, training records and close-out report","Lot",{"v":1,"d":"1.00"},null,{"$f":"IF(OR(E47=\"\",F47=\"\"),0,E47*F47)","v":{"v":0,"d":"R 0.00"}}]
[44,"Local operator training","Training for hospital / local maintenance personnel","Lot",{"v":1,"d":"1.00"},null,{"v":0,"d":"R 0.00"}]
[{"$nulls":5},"Preliminaries and Generals ",{"$f":"G5+G6+G7+G8","v":{"v":0,"d":"R 0.00"}}]
[{"$nulls":5},"Works Installation Summary",{"$f":"ROUND(SUM(G9:G49),2)","v":{"v":0,"d":"R 0.00"}}]
[{"$nulls":5},"Subtotal A (Excl. VAT)",{"$f":"ROUND(G49+G50,2)","v":{"v":0,"d":"R 0.00"}}]
[{"$nulls":5},"Add 10% Contingency",{"$f":"ROUND(G51*10%,2)","v":{"v":0,"d":"R 0.00"}}]
[{"$nulls":5},"Subtotal B (Excl. VAT)",{"$f":"ROUND(G51+G52,2)","v":{"v":0,"d":"R 0.00"}}]
[{"$nulls":5},"Add VAT @ 15%",{"$f":"ROUND(G53*15%,2)","v":{"v":0,"d":"R 0.00"}}]
[{"$nulls":5},"Amount carried forward to summary",{"$f":"ROUND(G53+G54,2)","v":{"v":0,"d":"R 0.00"}}]

{"sheet":"10. Ceza","index":11,"n_rows":55,"n_cols":7,"rows_kept":55,"merged":[[0,0,0,6],[1,1,1,6]]}
["TENDER No: RFP069-070/2026: APPOINTMENT OF SERVICE PROVIDERS FOR THE DESIGN, SUPPLY, INSTALLATION, COMMISSIONING AND MAINTENANCE OF SOLAR-POWERED BACKUP SYSTEMS AT TWENTY (20) HOSPITAL FACILITIES RECEIVING PRESSURE SWING ADSORPTION (PSA) OXYGEN GENERATING PLANTS: \nCeza Hospital"]
[null,"Cluster 1 | Preliminary procurement quantities based on the 90 kWp planning class. Tenderer to price all items; final quantities and ratings remain subject to site verification, the accepted seven-day load study and the Contractor's detailed design."]
[]
["Item No","Item","Activity Description","Unit","Quantity","Rate","Amount"]
[1,"Preliminary & General: Once-off costs","Site establishment, mobilisation, demobilisation, temporary facilities, storage, fencing, site signage and initial setup.","Sum ",{"v":1,"d":"1.00"},null,{"$f":"BOQ_12[[#This Row],[Quantity]]*BOQ_12[[#This Row],[Rate]]","v":{"v":0,"d":"R 0.00"}}]
[2,"Preliminary & General:Time-related costs","Site management and supervision, temporary facilities, utilities, security, administration, plant, tools and welfare facilities for the contract duration.","Month ",{"v":1,"d":"1.00"},null,{"$f":"BOQ_12[[#This Row],[Quantity]]*BOQ_12[[#This Row],[Rate]]","v":{"v":0,"d":"R 0.00"}}]
[3,"Preliminary & General: Value-related costs","Contractor's All Risks Insurance, public liability insurance, performance guarantees, bonds, statutory fees and financial securities.","Sum ",{"v":1,"d":"1.00"},null,{"$f":"BOQ_12[[#This Row],[Quantity]]*BOQ_12[[#This Row],[Rate]]","v":{"v":0,"d":"R 0.00"}}]
[4,"Preliminary & General: Project-Specific Allowances","Hospital operational constraints, Occupational Health and Safety (OHS) compliance, permit-to-work coordination, infection prevention and control measures, temporary shutdowns, hospital operational constraints, logistics, testing and commissioning, operator training, as-built documentation and final handover.","Sum ",{"v":1,"d":"1.00"},null,{"$f":"BOQ_12[[#This Row],[Quantity]]*BOQ_12[[#This Row],[Rate]]","v":{"v":0,"d":"R 0.00"}}]
[5,"Tier 1 Solar PV modules","Tier 1 PV module, approx. 625–630 Wp each; final make/model by EPC tender","No.",{"v":143,"d":"143.00"},null,{"$f":"IF(OR(E9=\"\",F9=\"\"),0,E9*F9)","v":{"v":0,"d":"R 0.00"}}]
[6,"PV string labelling and module identification","UV-stable labels for module strings, DBs and isolation points","Lot",{"v":1,"d":"1.00"},null,{"v":0,"d":"R 0.00"}]
[7,"PV mounting system / carport structure","Solar roof mounting system subject to structural design","Lot",{"v":1,"d":"1.00"},null,{"v":0,"d":"R 0.00"}]
[8,"Module clamps, rails, brackets and fasteners","Compatible aluminium/stainless mounting accessories","Lot",{"v":1,"d":"1.00"},null,{"v":0,"d":"R 0.00"}]
[9,"MC4-compatible connectors","PV connectors; quantity subject to final string design","Lot",{"v":315,"d":"315.00"},null,{"v":0,"d":"R 0.00"}]
[10,"6 mm² PV DC cable","UV-rated solar DC cable, red/black; route length subject to site verification","m",{"v":180,"d":"180.00"},null,{"v":0,"d":"R 0.00"}]
[11,"DC cable containment","UV-rated conduit/trunking/trays and mechanical protection","Lot",{"v":1,"d":"1.00"},null,{"v":0,"d":"R 0.00"}]
[12,"DC protection box / combiner","String fusing/combiner arrangement, DC isolators, Type 1/2 SPD as site applicable","No.",{"v":1,"d":"1.00"},null,{"v":0,"d":"R 0.00"}]
[13,"DC isolators","Lockable DC isolation points with clear alternative-source labelling","Lot",{"v":4,"d":"4.00"},null,{"v":0,"d":"R 0.00"}]
[14,"Grid-forming PCS / inverter","Grid-forming PCS/inverter sized for PSA resilience application; final rating subject to load study","No.",{"v":1,"d":"1.00"},null,{"v":0,"d":"R 0.00"}]
[15,"PCS/inverter controller / EMS interface","Energy management and control interface for PV, BESS, genset and grid operation","No.",{"v":1,"d":"1.00"},null,{"v":0,"d":"R 0.00"}]
[16,"BESS cabinet","Outdoor-rated battery energy storage cabinet; final kWh subject to 7-day load monitoring","No.",{"v":1,"d":"1.00"},null,{"v":0,"d":"R 0.00"}]
[17,"BESS HVAC / thermal management","Integrated cabinet cooling/ventilation as required by selected BESS","Lot",{"v":1,"d":"1.00"},null,{"v":0,"d":"R 0.00"}]
[18,"Battery DC protection and isolation","Battery isolation, protection, safety interlocks and emergency shutdown interface","Lot",{"v":1,"d":"1.00"},null,{"v":0,"d":"R 0.00"}]
[19,"AC protection box","AC DB/protection board with breakers, SPDs, metering and labelling","No.",{"v":1,"d":"1.00"},null,{"v":0,"d":"R 0.00"}]
[20,"Static Transfer Switch (STS) / changeover","STS or compliant automatic changeover arrangement for critical PSA supply","No.",{"v":1,"d":"1.00"},null,{"v":0,"d":"R 0.00"}]
[21,"16 mm² XLPE copper cable","AC cable allowance; size and route length subject to detailed design","m",{"v":150,"d":"150.00"},null,{"v":0,"d":"R 0.00"}]
[22,"AC cable containment and termination accessories","Cable tray, gland plates, lugs, glands, ferrules and terminations; Tenderer to price","Lot",{"v":1,"d":"1.00"},null,{"$f":"IF(OR(E26=\"\",F26=\"\"),0,E26*F26)","v":{"v":0,"d":"R 0.00"}}]
[23,"Distribution board modifications","PSA DB integration, supply-side interface and alternative-source labelling","Lot",{"v":1,"d":"1.00"},null,{"v":0,"d":"R 0.00"}]
[24,"Generator integration interface","Genset interface, controls, protection, cabling and changeover coordination","Lot",{"v":1,"d":"1.00"},null,{"v":0,"d":"R 0.00"}]
[25,"Grid interface and export limiting","CTs/meters and export-limiting control at point of connection as applicable","Lot",{"v":1,"d":"1.00"},null,{"v":0,"d":"R 0.00"}]
[26,"Earthing and bonding system","PV frame bonding, equipment bonding and SANS-compliant earthing","Lot",{"v":1,"d":"1.00"},null,{"v":0,"d":"R 0.00"}]
[27,"Copper earth spikes","Copper-bonded earth rods/spikes; final quantity subject to earth testing","No.",{"v":8,"d":"8.00"},null,{"v":0,"d":"R 0.00"}]
[28,"Earth cable and accessories","Bare/insulated copper earth conductor, clamps, lugs and earth bar","m",{"v":100,"d":"100.00"},null,{"v":0,"d":"R 0.00"}]
[29,"Equipment plinths / foundations","Concrete plinths for PCS, BESS, AC/DC boards and ancillary equipment","Lot",{"v":1,"d":"1.00"},null,{"v":0,"d":"R 0.00"}]
[30,"Trenching and reinstatement","Cable trenching, sleeves, marker tape and surface reinstatement","m",{"v":10,"d":"10.00"},null,{"v":0,"d":"R 0.00"}]
[31,"Security fence","Security fencing around outdoor electrical equipment / BESS compound","m",{"v":5,"d":"5.00"},null,{"v":0,"d":"R 0.00"}]
[32,"Access gate and signage","Lockable access gate, danger signage and emergency contact signage","Lot",{"v":1,"d":"1.00"},null,{"v":0,"d":"R 0.00"}]
[33,"Remote monitoring gateway","Wi-Fi/LTE router, data logger and remote monitoring dashboard interface","No.",{"v":1,"d":"1.00"},null,{"v":0,"d":"R 0.00"}]
[34,"Electrical metering and CTs","3-phase metering, CTs and monitoring for PV/BESS/PSA supply","Lot",{"v":1,"d":"1.00"},null,{"v":0,"d":"R 0.00"}]
[35,"7-day load monitoring campaign","Class 0.5 logger; voltage/current/pf/kW/kVA/kWh at suitable intervals","Lot",{"v":1,"d":"1.00"},null,{"v":0,"d":"R 0.00"}]
[36,"Detailed engineering design","SLD, layout, cable sizing, protection coordination and construction pack","Lot",{"v":1,"d":"1.00"},null,{"v":0,"d":"R 0.00"}]
[37,"Shading, azimuth and yield verification","Final PV orientation, tilt, row spacing and shading verification","Lot",{"v":1,"d":"1.00"},null,{"v":0,"d":"R 0.00"}]
[38,"Wind/snow/structural verification","Civil/structural checks for roof mount solution","Lot",{"v":1,"d":"1.00"},null,{"v":0,"d":"R 0.00"}]
[39,"FAT / OEM support","OEM or approved technical representative support during FAT/commissioning","Lot",{"v":1,"d":"1.00"},null,{"v":0,"d":"R 0.00"}]
[40,"Testing and commissioning","Functional tests, protection tests, microgrid operation tests and handover checks","Lot",{"v":1,"d":"1.00"},null,{"v":0,"d":"R 0.00"}]
[41,"Certificate of Compliance","SANS-compliant electrical CoC and supporting certificates","Lot",{"v":1,"d":"1.00"},null,{"v":0,"d":"R 0.00"}]
[42,"Maintenance","36-month O&M price under the NEC3 TSC (PV + PCS + BESS); separate service component","Lot",{"v":1,"d":"1.00"},null,{"$f":"IF(OR(E46=\"\",F46=\"\"),0,E46*F46)","v":{"v":0,"d":"R 0.00"}}]
[43,"As-built drawings and handover pack","As-built SLDs, manuals, warranties, training records and close-out report","Lot",{"v":1,"d":"1.00"},null,{"v":0,"d":"R 0.00"}]
[44,"Local operator training","Training for hospital / local maintenance personnel","Lot",{"v":1,"d":"1.00"},null,{"v":0,"d":"R 0.00"}]
[{"$nulls":5},"Preliminaries and Generals",{"$f":"G5+G6+G7+G8","v":{"v":0,"d":"R 0.00"}}]
[{"$nulls":5},"Works Installation Summary",{"$f":"ROUND(SUM(G9:G49),2)","v":{"v":0,"d":"R 0.00"}}]
[{"$nulls":5},"Subtotal A (Excl. VAT)",{"$f":"ROUND(G49+G50,2)","v":{"v":0,"d":"R 0.00"}}]
[{"$nulls":5},"Add 10% Contingency",{"$f":"ROUND(G51*10%,2)","v":{"v":0,"d":"R 0.00"}}]
[{"$nulls":5},"Subtotal B (Excl. VAT)",{"$f":"ROUND(G51+G52,2)","v":{"v":0,"d":"R 0.00"}}]
[{"$nulls":5},"Add VAT @ 15%",{"$f":"ROUND(G53*15%,2)","v":{"v":0,"d":"R 0.00"}}]
[{"$nulls":5},"Amount carried forward to summary",{"$f":"ROUND(G53+G54,2)","v":{"v":0,"d":"R 0.00"}}]

{"sheet":"11. Itshelejuba","index":12,"n_rows":55,"n_cols":7,"rows_kept":55,"merged":[[0,1,0,6],[1,1,1,6]]}
[null,"TENDER No: RFP069-070/2026: APPOINTMENT OF SERVICE PROVIDERS FOR THE DESIGN, SUPPLY, INSTALLATION, COMMISSIONING AND MAINTENANCE OF SOLAR-POWERED BACKUP SYSTEMS AT TWENTY (20) HOSPITAL FACILITIES RECEIVING PRESSURE SWING ADSORPTION (PSA) OXYGEN GENERATING PLANTS: \n Itshelejuba Hospital"]
[null,"Cluster 1 | Preliminary procurement quantities based on the 100 kWp planning class. Tenderer to price all items; final quantities and ratings remain subject to site verification, the accepted seven-day load study and the Contractor's detailed design."]
[]
["Item No","Item","Activity Description","Unit","Quantity","Rate","Amount"]
[1,"Preliminary & General: Once-off costs","Site establishment, mobilisation, demobilisation, temporary facilities, storage, fencing, site signage and initial setup.","Sum ",{"v":1,"d":"1.00"},null,{"$f":"BOQ_16[[#This Row],[Quantity]]*BOQ_16[[#This Row],[Rate]]","v":{"v":0,"d":"R 0.00"}}]
[2,"Preliminary & General:Time-related costs","Site management and supervision, temporary facilities, utilities, security, administration, plant, tools and welfare facilities for the contract duration.","Month ",{"v":1,"d":"1.00"},null,{"$f":"BOQ_16[[#This Row],[Quantity]]*BOQ_16[[#This Row],[Rate]]","v":{"v":0,"d":"R 0.00"}}]
[3,"Preliminary & General: Value-related costs","Contractor's All Risks Insurance, public liability insurance, performance guarantees, bonds, statutory fees and financial securities.","Sum ",{"v":1,"d":"1.00"},null,{"$f":"BOQ_16[[#This Row],[Quantity]]*BOQ_16[[#This Row],[Rate]]","v":{"v":0,"d":"R 0.00"}}]
[4,"Preliminary & General: Project-Specific Allowances","Hospital operational constraints, Occupational Health and Safety (OHS) compliance, permit-to-work coordination, infection prevention and control measures, temporary shutdowns, hospital operational constraints, logistics, testing and commissioning, operator training, as-built documentation and final handover.","Sum ",{"v":1,"d":"1.00"},null,{"$f":"BOQ_16[[#This Row],[Quantity]]*BOQ_16[[#This Row],[Rate]]","v":{"v":0,"d":"R 0.00"}}]
[5,"Tier 1 Solar PV modules","Tier 1 PV module, approx. 625–630 Wp each; final make/model by EPC tender","No.",{"v":159,"d":"159.00"},null,{"$f":"IF(OR(E9=\"\",F9=\"\"),0,E9*F9)","v":{"v":0,"d":"R 0.00"}}]
[6,"PV string labelling and module identification","UV-stable labels for module strings, DBs and isolation points","Lot",{"v":1,"d":"1.00"},null,{"v":0,"d":"R 0.00"}]
[7,"PV mounting system / carport structure","Solar oof mounting system subject to structural design","Lot",{"v":1,"d":"1.00"},null,{"v":0,"d":"R 0.00"}]
[8,"Module clamps, rails, brackets and fasteners","Compatible aluminium/stainless mounting accessories","Lot",{"v":1,"d":"1.00"},null,{"v":0,"d":"R 0.00"}]
[9,"MC4-compatible connectors","PV connectors; quantity subject to final string design","Lot",{"v":350,"d":"350.00"},null,{"v":0,"d":"R 0.00"}]
[10,"6 mm² PV DC cable","UV-rated solar DC cable, red/black; route length subject to site verification","m",{"v":200,"d":"200.00"},null,{"v":0,"d":"R 0.00"}]
[11,"DC cable containment","UV-rated conduit/trunking/trays and mechanical protection","Lot",{"v":1,"d":"1.00"},null,{"v":0,"d":"R 0.00"}]
[12,"DC protection box / combiner","String fusing/combiner arrangement, DC isolators, Type 1/2 SPD as site applicable","No.",{"v":1,"d":"1.00"},null,{"v":0,"d":"R 0.00"}]
[13,"DC isolators","Lockable DC isolation points with clear alternative-source labelling","Lot",{"v":4,"d":"4.00"},null,{"v":0,"d":"R 0.00"}]
[14,"Grid-forming PCS / inverter","Grid-forming PCS/inverter sized for PSA resilience application; final rating subject to load study","No.",{"v":1,"d":"1.00"},null,{"v":0,"d":"R 0.00"}]
[15,"PCS/inverter controller / EMS interface","Energy management and control interface for PV, BESS, genset and grid operation","No.",{"v":1,"d":"1.00"},null,{"v":0,"d":"R 0.00"}]
[16,"BESS cabinet","Outdoor-rated battery energy storage cabinet; final kWh subject to 7-day load monitoring","No.",{"v":1,"d":"1.00"},null,{"v":0,"d":"R 0.00"}]
[17,"BESS HVAC / thermal management","Integrated cabinet cooling/ventilation as required by selected BESS","Lot",{"v":1,"d":"1.00"},null,{"v":0,"d":"R 0.00"}]
[18,"Battery DC protection and isolation","Battery isolation, protection, safety interlocks and emergency shutdown interface","Lot",{"v":1,"d":"1.00"},null,{"v":0,"d":"R 0.00"}]
[19,"AC protection box","AC DB/protection board with breakers, SPDs, metering and labelling","No.",{"v":1,"d":"1.00"},null,{"v":0,"d":"R 0.00"}]
[20,"Static Transfer Switch (STS) / changeover","STS or compliant automatic changeover arrangement for critical PSA supply","No.",{"v":1,"d":"1.00"},null,{"v":0,"d":"R 0.00"}]
[21,"16 mm² XLPE copper cable","AC cable allowance; size and route length subject to detailed design","m",{"v":180,"d":"180.00"},null,{"v":0,"d":"R 0.00"}]
[22,"AC cable containment and termination accessories","Cable tray, gland plates, lugs, glands, ferrules and terminations; Tenderer to price","Lot",{"v":1,"d":"1.00"},null,{"$f":"IF(OR(E26=\"\",F26=\"\"),0,E26*F26)","v":{"v":0,"d":"R 0.00"}}]
[23,"Distribution board modifications","PSA DB integration, supply-side interface and alternative-source labelling","Lot",{"v":1,"d":"1.00"},null,{"v":0,"d":"R 0.00"}]
[24,"Generator integration interface","Genset interface, controls, protection, cabling and changeover coordination","Lot",{"v":1,"d":"1.00"},null,{"v":0,"d":"R 0.00"}]
[25,"Grid interface and export limiting","CTs/meters and export-limiting control at point of connection as applicable","Lot",{"v":1,"d":"1.00"},null,{"v":0,"d":"R 0.00"}]
[26,"Earthing and bonding system","PV frame bonding, equipment bonding and SANS-compliant earthing","Lot",{"v":1,"d":"1.00"},null,{"v":0,"d":"R 0.00"}]
[27,"Copper earth spikes","Copper-bonded earth rods/spikes; final quantity subject to earth testing","No.",{"v":10,"d":"10.00"},null,{"v":0,"d":"R 0.00"}]
[28,"Earth cable and accessories","Bare/insulated copper earth conductor, clamps, lugs and earth bar","m",{"v":120,"d":"120.00"},null,{"v":0,"d":"R 0.00"}]
[29,"Equipment plinths / foundations","Concrete plinths for PCS, BESS, AC/DC boards and ancillary equipment","Lot",{"v":1,"d":"1.00"},null,{"v":0,"d":"R 0.00"}]
[30,"Trenching and reinstatement","Cable trenching, sleeves, marker tape and surface reinstatement","m",{"v":15,"d":"15.00"},null,{"v":0,"d":"R 0.00"}]
[31,"Security fence","Security fencing around outdoor electrical equipment / BESS compound","m",{"v":5,"d":"5.00"},null,{"v":0,"d":"R 0.00"}]
[32,"Access gate and signage","Lockable access gate, danger signage and emergency contact signage","Lot",{"v":1,"d":"1.00"},null,{"v":0,"d":"R 0.00"}]
[33,"Remote monitoring gateway","Wi-Fi/LTE router, data logger and remote monitoring dashboard interface","No.",{"v":1,"d":"1.00"},null,{"v":0,"d":"R 0.00"}]
[34,"Electrical metering and CTs","3-phase metering, CTs and monitoring for PV/BESS/PSA supply","Lot",{"v":1,"d":"1.00"},null,{"v":0,"d":"R 0.00"}]
[35,"7-day load monitoring campaign","Class 0.5 logger; voltage/current/pf/kW/kVA/kWh at suitable intervals","Lot",{"v":1,"d":"1.00"},null,{"v":0,"d":"R 0.00"}]
[36,"Detailed engineering design","SLD, layout, cable sizing, protection coordination and construction pack","Lot",{"v":1,"d":"1.00"},null,{"v":0,"d":"R 0.00"}]
[37,"Shading, azimuth and yield verification","Final PV orientation, tilt, row spacing and shading verification","Lot",{"v":1,"d":"1.00"},null,{"v":0,"d":"R 0.00"}]
[38,"Wind/snow/structural verification","Civil/structural checks for roof mount solution","Lot",{"v":1,"d":"1.00"},null,{"v":0,"d":"R 0.00"}]
[39,"FAT / OEM support","OEM or approved technical representative support during FAT/commissioning","Lot",{"v":1,"d":"1.00"},null,{"v":0,"d":"R 0.00"}]
[40,"Testing and commissioning","Functional tests, protection tests, microgrid operation tests and handover checks","Lot",{"v":1,"d":"1.00"},null,{"v":0,"d":"R 0.00"}]
[41,"Certificate of Compliance","SANS-compliant electrical CoC and supporting certificates","Lot",{"v":1,"d":"1.00"},null,{"v":0,"d":"R 0.00"}]
[42,"Maintenance","36-month O&M price under the NEC3 TSC (PV + PCS + BESS); separate service component","Lot",{"v":1,"d":"1.00"},null,{"$f":"IF(OR(E46=\"\",F46=\"\"),0,E46*F46)","v":{"v":0,"d":"R 0.00"}}]
[43,"As-built drawings and handover pack","As-built SLDs, manuals, warranties, training records and close-out report","Lot",{"v":1,"d":"1.00"},null,{"v":0,"d":"R 0.00"}]
[44,"Local operator training","Training for hospital / local maintenance personnel","Lot",{"v":1,"d":"1.00"},null,{"v":0,"d":"R 0.00"}]
[{"$nulls":5},"Preliminaries and Generals",{"$f":"G5+G6+G7+G8","v":{"v":0,"d":"R 0.00"}}]
[{"$nulls":5},"Works Installation Summary",{"$f":"ROUND(SUM(G9:G49),2)","v":{"v":0,"d":"R 0.00"}}]
[{"$nulls":5},"Subtotal A (Excl. VAT)",{"$f":"ROUND(G49+G50,2)","v":{"v":0,"d":"R 0.00"}}]
[{"$nulls":5},"Add 10% Contingency",{"$f":"ROUND(G51*10%,2)","v":{"v":0,"d":"R 0.00"}}]
[{"$nulls":5},"Subtotal B (Excl. VAT)",{"$f":"ROUND(G51+G52,2)","v":{"v":0,"d":"R 0.00"}}]
[{"$nulls":5},"Add VAT @ 15%",{"$f":"ROUND(G53*15%,2)","v":{"v":0,"d":"R 0.00"}}]
[{"$nulls":5},"Amount carried to Form of Offer",{"$f":"ROUND(G53+G54,2)","v":{"v":0,"d":"R 0.00"}}]

{"sheet":"12. Mseleni","index":13,"n_rows":55,"n_cols":7,"rows_kept":55,"merged":[[0,1,0,6],[1,1,1,6]]}
[null,"TENDER No: RFP069-070/2026: APPOINTMENT OF SERVICE PROVIDERS FOR THE DESIGN, SUPPLY, INSTALLATION, COMMISSIONING AND MAINTENANCE OF SOLAR-POWERED BACKUP SYSTEMS AT TWENTY (20) HOSPITAL FACILITIES RECEIVING PRESSURE SWING ADSORPTION (PSA) OXYGEN GENERATING PLANTS: \n Mseleni Hospital"]
[null,"Cluster 1 | Preliminary procurement quantities based on the 100 kWp planning class. Tenderer to price all items; final quantities and ratings remain subject to site verification, the accepted seven-day load study and the Contractor's detailed design."]
[]
["Item No","Item","Activity Description","Unit","Quantity","Rate","Amount"]
[1,"Preliminary & General: Once-off costs","Site establishment, mobilisation, demobilisation, temporary facilities, storage, fencing, site signage and initial setup.","Sum ",{"v":1,"d":"1.00"},null,{"$f":"BOQ_18[[#This Row],[Quantity]]*BOQ_18[[#This Row],[Rate]]","v":{"v":0,"d":"R 0.00"}}]
[2,"Preliminary & General:Time-related costs","Site management and supervision, temporary facilities, utilities, security, administration, plant, tools and welfare facilities for the contract duration.","Month ",{"v":1,"d":"1.00"},null,{"$f":"BOQ_18[[#This Row],[Quantity]]*BOQ_18[[#This Row],[Rate]]","v":{"v":0,"d":"R 0.00"}}]
[3,"Preliminary & General: Value-related costs","Contractor's All Risks Insurance, public liability insurance, performance guarantees, bonds, statutory fees and financial securities.","Sum ",{"v":1,"d":"1.00"},null,{"$f":"BOQ_18[[#This Row],[Quantity]]*BOQ_18[[#This Row],[Rate]]","v":{"v":0,"d":"R 0.00"}}]
[4,"Preliminary & General: Project-Specific Allowances","Hospital operational constraints, Occupational Health and Safety (OHS) compliance, permit-to-work coordination, infection prevention and control measures, temporary shutdowns, hospital operational constraints, logistics, testing and commissioning, operator training, as-built documentation and final handover.","Sum ",{"v":1,"d":"1.00"},null,{"$f":"BOQ_18[[#This Row],[Quantity]]*BOQ_18[[#This Row],[Rate]]","v":{"v":0,"d":"R 0.00"}}]
[5,"Tier 1 Solar PV modules","Tier 1 PV module, approx. 625–630 Wp each; final make/model by EPC tender","No.",{"v":159,"d":"159.00"},null,{"$f":"IF(OR(E9=\"\",F9=\"\"),0,E9*F9)","v":{"v":0,"d":"R 0.00"}}]
[6,"PV string labelling and module identification","UV-stable labels for module strings, DBs and isolation points","Lot",{"v":1,"d":"1.00"},null,{"v":0,"d":"R 0.00"}]
[7,"PV mounting system / carport structure","Solar roof mounting system subject to structural design","Lot",{"v":1,"d":"1.00"},null,{"v":0,"d":"R 0.00"}]
[8,"Module clamps, rails, brackets and fasteners","Compatible aluminium/stainless mounting accessories","Lot",{"v":1,"d":"1.00"},null,{"v":0,"d":"R 0.00"}]
[9,"MC4-compatible connectors","PV connectors; quantity subject to final string design","Lot",{"v":350,"d":"350.00"},null,{"v":0,"d":"R 0.00"}]
[10,"6 mm² PV DC cable","UV-rated solar DC cable, red/black; route length subject to site verification","m",{"v":200,"d":"200.00"},null,{"v":0,"d":"R 0.00"}]
[11,"DC cable containment","UV-rated conduit/trunking/trays and mechanical protection","Lot",{"v":1,"d":"1.00"},null,{"v":0,"d":"R 0.00"}]
[12,"DC protection box / combiner","String fusing/combiner arrangement, DC isolators, Type 1/2 SPD as site applicable","No.",{"v":1,"d":"1.00"},null,{"v":0,"d":"R 0.00"}]
[13,"DC isolators","Lockable DC isolation points with clear alternative-source labelling","Lot",{"v":4,"d":"4.00"},null,{"v":0,"d":"R 0.00"}]
[14,"Grid-forming PCS / inverter","Grid-forming PCS/inverter sized for PSA resilience application; final rating subject to load study","No.",{"v":1,"d":"1.00"},null,{"v":0,"d":"R 0.00"}]
[15,"PCS/inverter controller / EMS interface","Energy management and control interface for PV, BESS, genset and grid operation","No.",{"v":1,"d":"1.00"},null,{"v":0,"d":"R 0.00"}]
[16,"BESS cabinet","Outdoor-rated battery energy storage cabinet; final kWh subject to 7-day load monitoring","No.",{"v":1,"d":"1.00"},null,{"v":0,"d":"R 0.00"}]
[17,"BESS HVAC / thermal management","Integrated cabinet cooling/ventilation as required by selected BESS","Lot",{"v":1,"d":"1.00"},null,{"v":0,"d":"R 0.00"}]
[18,"Battery DC protection and isolation","Battery isolation, protection, safety interlocks and emergency shutdown interface","Lot",{"v":1,"d":"1.00"},null,{"v":0,"d":"R 0.00"}]
[19,"AC protection box","AC DB/protection board with breakers, SPDs, metering and labelling","No.",{"v":1,"d":"1.00"},null,{"v":0,"d":"R 0.00"}]
[20,"Static Transfer Switch (STS) / changeover","STS or compliant automatic changeover arrangement for critical PSA supply","No.",{"v":1,"d":"1.00"},null,{"v":0,"d":"R 0.00"}]
[21,"16 mm² XLPE copper cable","AC cable allowance; size and route length subject to detailed design","m",{"v":180,"d":"180.00"},null,{"v":0,"d":"R 0.00"}]
[22,"AC cable containment and termination accessories","Cable tray, gland plates, lugs, glands, ferrules and terminations; Tenderer to price","Lot",{"v":1,"d":"1.00"},null,{"$f":"IF(OR(E26=\"\",F26=\"\"),0,E26*F26)","v":{"v":0,"d":"R 0.00"}}]
[23,"Distribution board modifications","PSA DB integration, supply-side interface and alternative-source labelling","Lot",{"v":1,"d":"1.00"},null,{"v":0,"d":"R 0.00"}]
[24,"Generator integration interface","Genset interface, controls, protection, cabling and changeover coordination","Lot",{"v":1,"d":"1.00"},null,{"v":0,"d":"R 0.00"}]
[25,"Grid interface and export limiting","CTs/meters and export-limiting control at point of connection as applicable","Lot",{"v":1,"d":"1.00"},null,{"v":0,"d":"R 0.00"}]
[26,"Earthing and bonding system","PV frame bonding, equipment bonding and SANS-compliant earthing","Lot",{"v":1,"d":"1.00"},null,{"v":0,"d":"R 0.00"}]
[27,"Copper earth spikes","Copper-bonded earth rods/spikes; final quantity subject to earth testing","No.",{"v":10,"d":"10.00"},null,{"v":0,"d":"R 0.00"}]
[28,"Earth cable and accessories","Bare/insulated copper earth conductor, clamps, lugs and earth bar","m",{"v":120,"d":"120.00"},null,{"v":0,"d":"R 0.00"}]
[29,"Equipment plinths / foundations","Concrete plinths for PCS, BESS, AC/DC boards and ancillary equipment","Lot",{"v":1,"d":"1.00"},null,{"v":0,"d":"R 0.00"}]
[30,"Trenching and reinstatement","Cable trenching, sleeves, marker tape and surface reinstatement","m",{"v":15,"d":"15.00"},null,{"v":0,"d":"R 0.00"}]
[31,"Security fence","Security fencing around outdoor electrical equipment / BESS compound","m",{"v":5,"d":"5.00"},null,{"v":0,"d":"R 0.00"}]
[32,"Access gate and signage","Lockable access gate, danger signage and emergency contact signage","Lot",{"v":1,"d":"1.00"},null,{"v":0,"d":"R 0.00"}]
[33,"Remote monitoring gateway","Wi-Fi/LTE router, data logger and remote monitoring dashboard interface","No.",{"v":1,"d":"1.00"},null,{"v":0,"d":"R 0.00"}]
[34,"Electrical metering and CTs","3-phase metering, CTs and monitoring for PV/BESS/PSA supply","Lot",{"v":1,"d":"1.00"},null,{"v":0,"d":"R 0.00"}]
[35,"7-day load monitoring campaign","Class 0.5 logger; voltage/current/pf/kW/kVA/kWh at suitable intervals","Lot",{"v":1,"d":"1.00"},null,{"v":0,"d":"R 0.00"}]
[36,"Detailed engineering design","SLD, layout, cable sizing, protection coordination and construction pack","Lot",{"v":1,"d":"1.00"},null,{"v":0,"d":"R 0.00"}]
[37,"Shading, azimuth and yield verification","Final PV orientation, tilt, row spacing and shading verification","Lot",{"v":1,"d":"1.00"},null,{"v":0,"d":"R 0.00"}]
[38,"Wind/snow/structural verification","Civil/structural checks for roof mount solution","Lot",{"v":1,"d":"1.00"},null,{"v":0,"d":"R 0.00"}]
[39,"FAT / OEM support","OEM or approved technical representative support during FAT/commissioning","Lot",{"v":1,"d":"1.00"},null,{"v":0,"d":"R 0.00"}]
[40,"Testing and commissioning","Functional tests, protection tests, microgrid operation tests and handover checks","Lot",{"v":1,"d":"1.00"},null,{"v":0,"d":"R 0.00"}]
[41,"Certificate of Compliance","SANS-compliant electrical CoC and supporting certificates","Lot",{"v":1,"d":"1.00"},null,{"v":0,"d":"R 0.00"}]
[42,"Maintenance","36-month O&M price under the NEC3 TSC (PV + PCS + BESS); separate service component","Lot",{"v":1,"d":"1.00"},null,{"$f":"IF(OR(E46=\"\",F46=\"\"),0,E46*F46)","v":{"v":0,"d":"R 0.00"}}]
[43,"As-built drawings and handover pack","As-built SLDs, manuals, warranties, training records and close-out report","Lot",{"v":1,"d":"1.00"},null,{"v":0,"d":"R 0.00"}]
[44,"Local operator training","Training for hospital / local maintenance personnel","Lot",{"v":1,"d":"1.00"},null,{"v":0,"d":"R 0.00"}]
[{"$nulls":5},"Preliminaries and Generals ",{"$f":"G5+G6+G7+G8","v":{"v":0,"d":"R 0.00"}}]
[{"$nulls":5},"Works Installation Summary",{"$f":"ROUND(SUM(G9:G49),2)","v":{"v":0,"d":"R 0.00"}}]
[{"$nulls":5},"Subtotal A (Excl. VAT)",{"$f":"ROUND(G49+G50,2)","v":{"v":0,"d":"R 0.00"}}]
[{"$nulls":5},"Add 10% Contingency",{"$f":"ROUND(G51*10%,2)","v":{"v":0,"d":"R 0.00"}}]
[{"$nulls":5},"Subtotal B (Excl. VAT)",{"$f":"ROUND(G51+G52,2)","v":{"v":0,"d":"R 0.00"}}]
[{"$nulls":5},"Add VAT @ 15%",{"$f":"ROUND(G53*15%,2)","v":{"v":0,"d":"R 0.00"}}]
[{"$nulls":5},"Amount carried forward to summary",{"$f":"ROUND(G53+G54,2)","v":{"v":0,"d":"R 0.00"}}]

{"sheet":"13. Lydenburg","index":14,"n_rows":54,"n_cols":7,"rows_kept":54,"merged":[[0,0,0,6],[1,1,1,6]]}
["TENDER No: RFP069-070/2026: APPOINTMENT OF SERVICE PROVIDERS FOR THE DESIGN, SUPPLY, INSTALLATION, COMMISSIONING AND MAINTENANCE OF SOLAR-POWERED BACKUP SYSTEMS AT TWENTY (20) HOSPITAL FACILITIES RECEIVING PRESSURE SWING ADSORPTION (PSA) OXYGEN GENERATING PLANTS: \n Lydenburg Hospital"]
[null,"Cluster 2 | Preliminary procurement quantities based on the 90 kWp planning class. Tenderer to price all items; final quantities and ratings remain subject to site verification, the accepted seven-day load study and the Contractor's detailed design."]
["Item No","Item","Activity Description","Unit","Quantity","Rate","Amount"]
[1,"Preliminary & General: Once-off costs","Site establishment, mobilisation, demobilisation, temporary facilities, storage, fencing, site signage and initial setup.","Sum ",{"v":1,"d":"1.00"},null,{"$f":"BOQ_01[[#This Row],[Quantity]]*BOQ_01[[#This Row],[Rate]]","v":{"v":0,"d":"R 0.00"}}]
[2,"Preliminary & General:Time-related costs","Site management and supervision, temporary facilities, utilities, security, administration, plant, tools and welfare facilities for the contract duration.","Month ",{"v":1,"d":"1.00"},null,{"$f":"BOQ_01[[#This Row],[Quantity]]*BOQ_01[[#This Row],[Rate]]","v":{"v":0,"d":"R 0.00"}}]
[3,"Preliminary & General: Value-related costs","Contractor's All Risks Insurance, public liability insurance, performance guarantees, bonds, statutory fees and financial securities.","Sum ",{"v":1,"d":"1.00"},null,{"$f":"BOQ_01[[#This Row],[Quantity]]*BOQ_01[[#This Row],[Rate]]","v":{"v":0,"d":"R 0.00"}}]
[4,"Preliminary & General: Project-Specific Allowances","Hospital operational constraints, Occupational Health and Safety (OHS) compliance, permit-to-work coordination, infection prevention and control measures, temporary shutdowns, hospital operational constraints, logistics, testing and commissioning, operator training, as-built documentation and final handover.","Sum ",{"v":1,"d":"1.00"},null,{"$f":"BOQ_01[[#This Row],[Quantity]]*BOQ_01[[#This Row],[Rate]]","v":{"v":0,"d":"R 0.00"}}]
[5,"Tier 1 Solar PV modules","Tier 1 PV module, approx. 625–630 Wp each; final make/model by EPC tender","Ea",{"v":143,"d":"143.00"},null,{"$f":"IF(OR(E8=\"\",F8=\"\"),0,E8*F8)","v":{"v":0,"d":"R 0.00"}}]
[6,"PV string labelling and module identification","Harzaed labels pack","Ea",{"v":1,"d":"1.00"},null,{"v":0,"d":"R 0.00"}]
[7,"PV mounting system / carport structure","Solar carport mounting system subject to structural design","Lot",{"v":1,"d":"1.00"},null,{"v":0,"d":"R 0.00"}]
[8,"Module clamps, rails, brackets and fasteners","Compatible aluminium/stainless mounting accessories","Lot",{"v":1,"d":"1.00"},null,{"v":0,"d":"R 0.00"}]
[9,"MC4-compatible connectors","PV connectors; quantity subject to final string design 2 pack","Ea",{"v":315,"d":"315.00"},null,{"v":0,"d":"R 0.00"}]
[10,"6 mm² PV DC cable","UV-rated solar DC cable, red/black; route length subject to site verification RED and Black at 100m each set","m",{"v":180,"d":"180.00"},null,{"v":0,"d":"R 0.00"}]
[11,"DC cable containment","UV-rated conduit/trunking/trays and mechanical protection","Ea",{"v":1,"d":"1.00"},null,{"v":0,"d":"R 0.00"}]
[12,"DC protection box / combiner","String fusing/combiner arrangement, DC isolators, Type 1/2 SPD as site applicable 2 2in 1 out","Ea",{"v":1,"d":"1.00"},null,{"v":0,"d":"R 0.00"}]
[13,"DC isolators","Lockable DC isolation points with clear alternative-source labelling dual isolator","Ea",{"v":4,"d":"4.00"},null,{"v":0,"d":"R 0.00"}]
[14,"Grid-forming PCS / inverter","Grid-forming PCS/inverter sized for PSA resilience application; final rating subject to load study","No.",{"v":1,"d":"1.00"},null,{"v":0,"d":"R 0.00"}]
[15,"PCS/inverter controller / EMS interface","Energy management and control interface for PV, BESS, genset and grid operation","No.",{"v":1,"d":"1.00"},null,{"v":0,"d":"R 0.00"}]
[16,"BESS cabinet","Outdoor-rated battery energy storage cabinet; final kWh subject to 7-day load monitoring","No.",{"v":1,"d":"1.00"},null,{"v":0,"d":"R 0.00"}]
[17,"BESS HVAC / thermal management","Integrated cabinet cooling/ventilation as required by selected BESS, fires surpession, liquid cooling","Lot",{"v":1,"d":"1.00"},null,{"v":0,"d":"R 0.00"}]
[18,"Battery DC protection and isolation","Battery isolation, protection, safety interlocks and emergency shutdown interface","Lot",{"v":1,"d":"1.00"},null,{"v":0,"d":"R 0.00"}]
[19,"AC protection box","AC DB/protection board with breakers, SPDs, metering and labelling","No.",{"v":1,"d":"1.00"},null,{"v":0,"d":"R 0.00"}]
[20,"Static Transfer Switch (STS) / changeover","STS or compliant automatic changeover arrangement for critical PSA ","No.",{"v":1,"d":"1.00"},null,{"v":0,"d":"R 0.00"}]
[21,"16 mm² XLPE copper cable","AC cable allowance; size and route length subject to detailed design","m",{"v":150,"d":"150.00"},null,{"v":0,"d":"R 0.00"}]
[22,"AC cable containment and termination accessories","Cable tray, gland plates, lugs, glands, ferrules and terminations; Tenderer to price","8% of BOQ",{"v":1,"d":"1.00"},null,{"$f":"IF(OR(E25=\"\",F25=\"\"),0,E25*F25)","v":{"v":0,"d":"R 0.00"}}]
[23,"Distribution board modifications","PSA DB integration, supply-side interface and alternative-source labelling","Lot",{"v":1,"d":"1.00"},null,{"v":0,"d":"R 0.00"}]
[24,"Generator integration interface","Genset interface, controls, protection, cabling and changeover coordination","Lot",{"v":1,"d":"1.00"},null,{"v":0,"d":"R 0.00"}]
[25,"Grid interface and export limiting","CTs/meters and export-limiting control at point of connection as applicable","Lot",{"v":1,"d":"1.00"},null,{"v":0,"d":"R 0.00"}]
[26,"Earthing and bonding system","PV frame bonding, equipment bonding and SANS-compliant earthing","Lot",{"v":1,"d":"1.00"},null,{"v":0,"d":"R 0.00"}]
[27,"Copper earth spikes","Copper-bonded earth rods/spikes; final quantity subject to earth testing","No.",{"v":8,"d":"8.00"},null,{"v":0,"d":"R 0.00"}]
[28,"Earth cable and accessories","Bare/insulated copper earth conductor, clamps, lugs and earth bar","m",{"v":20,"d":"20.00"},null,{"v":0,"d":"R 0.00"}]
[29,"Equipment plinths / foundations","Concrete plinths for PCS, BESS, AC/DC boards and ancillary equipment","Lot",{"v":1,"d":"1.00"},null,{"v":0,"d":"R 0.00"}]
[30,"Trenching and reinstatement","Cable trenching, sleeves, marker tape and surface reinstatement","m",{"v":20,"d":"20.00"},null,{"v":0,"d":"R 0.00"}]
[31,"Security fence","Security fencing around outdoor electrical equipment / BESS compound","m",{"v":5,"d":"5.00"},null,{"v":0,"d":"R 0.00"}]
[32,"Access gate and signage","Lockable access gate, danger signage and emergency contact signage","Lot",{"v":1,"d":"1.00"},null,{"v":0,"d":"R 0.00"}]
[33,"Remote monitoring gateway","Wi-Fi/LTE router, data logger and remote monitoring dashboard interface","No.",{"v":1,"d":"1.00"},null,{"v":0,"d":"R 0.00"}]
[34,"Electrical metering and CTs","3-phase metering, CTs and monitoring for PV/BESS/PSA supply","Lot",{"v":1,"d":"1.00"},null,{"v":0,"d":"R 0.00"}]
[35,"7-day load monitoring campaign","Class 0.5 logger; voltage/current/pf/kW/kVA/kWh at suitable intervals","Lot",{"v":1,"d":"1.00"},null,{"v":0,"d":"R 0.00"}]
[36,"Detailed engineering design","SLD, layout, cable sizing, protection coordination and construction pack","Lot",{"v":1,"d":"1.00"},null,{"v":0,"d":"R 0.00"}]
[37,"Shading, azimuth and yield verification","Final PV orientation, tilt, row spacing and shading verification","Lot",{"v":1,"d":"1.00"},null,{"v":0,"d":"R 0.00"}]
[38,"Wind/snow/structural verification","Civil/structural checks for carport mount solution","Lot",{"v":1,"d":"1.00"},null,{"v":0,"d":"R 0.00"}]
[39,"FAT / OEM support","OEM or approved technical representative support during FAT/commissioning","Lot",{"v":1,"d":"1.00"},null,{"v":0,"d":"R 0.00"}]
[40,"Testing and commissioning","Functional tests, protection tests, microgrid operation tests and handover checks","Lot",{"v":1,"d":"1.00"},null,{"v":0,"d":"R 0.00"}]
[41,"Certificate of Compliance","SANS-compliant electrical CoC and supporting certificates","Lot",{"v":1,"d":"1.00"},null,{"v":0,"d":"R 0.00"}]
[42,"Maintenance","36-month O&M price under the NEC3 TSC (PV + PCS + BESS); separate service component","Lot",{"v":1,"d":"1.00"},null,{"v":0,"d":"R 0.00"}]
[43,"As-built drawings and handover pack","As-built SLDs, manuals, warranties, training records and close-out report","Lot",{"v":1,"d":"1.00"},null,{"$f":"IF(OR(E46=\"\",F46=\"\"),0,E46*F46)","v":{"v":0,"d":"R 0.00"}}]
[44,"Local operator training","Training for hospital / local maintenance personnel","Lot",{"v":1,"d":"1.00"},null,{"v":0,"d":"R 0.00"}]
[{"$nulls":5},"Preliminaries and Generals ",{"$f":"G4+G5+G6+G7","v":{"v":0,"d":"R 0.00"}}]
[{"$nulls":5},"Works Installation Summary",{"$f":"ROUND(SUM(G8:G47),2)","v":{"v":0,"d":"R 0.00"}}]
[{"$nulls":5},"Subtotal A (Excl. VAT)",{"$f":"ROUND(G48+G49,2)","v":{"v":0,"d":"R 0.00"}}]
[{"$nulls":5},"Add 10% Contingency",{"$f":"ROUND(G50*10%,2)","v":{"v":0,"d":"R 0.00"}}]
[{"$nulls":5},"Subtotal B (Excl. VAT)",{"$f":"ROUND(G50+G51,2)","v":{"v":0,"d":"R 0.00"}}]
[{"$nulls":5},"Add VAT @ 15%",{"$f":"ROUND(G52*15%,2)","v":{"v":0,"d":"R 0.00"}}]
[{"$nulls":5},"Amount carried forward to summary",{"$f":"ROUND(G52+G53,2)","v":{"v":0,"d":"R 0.00"}}]

{"sheet":"14. Mecklenburg","index":15,"n_rows":55,"n_cols":7,"rows_kept":55,"merged":[[0,1,0,6],[1,1,1,6]]}
[null,"TENDER No: RFP069-070/2026: APPOINTMENT OF SERVICE PROVIDERS FOR THE DESIGN, SUPPLY, INSTALLATION, COMMISSIONING AND MAINTENANCE OF SOLAR-POWERED BACKUP SYSTEMS AT TWENTY (20) HOSPITAL FACILITIES RECEIVING PRESSURE SWING ADSORPTION (PSA) OXYGEN GENERATING PLANTS: \n Mecklenburg Hospital"]
[null,"Cluster 2 | Preliminary procurement quantities based on the 100 kWp planning class. Tenderer to price all items; final quantities and ratings remain subject to site verification, the accepted seven-day load study and the Contractor's detailed design."]
[]
["Item No","Item","Activity Description","Unit","Quantity","Rate","Amount"]
[1,"Preliminary & General: Once-off costs","Site establishment, mobilisation, demobilisation, temporary facilities, storage, fencing, site signage and initial setup.","Sum ",{"v":1,"d":"1.00"},null,{"$f":"BOQ_02[[#This Row],[Quantity]]*BOQ_02[[#This Row],[Rate]]","v":{"v":0,"d":"R 0.00"}}]
[2,"Preliminary & General:Time-related costs","Site management and supervision, temporary facilities, utilities, security, administration, plant, tools and welfare facilities for the contract duration.","Month ",{"v":1,"d":"1.00"},null,{"$f":"BOQ_02[[#This Row],[Quantity]]*BOQ_02[[#This Row],[Rate]]","v":{"v":0,"d":"R 0.00"}}]
[3,"Preliminary & General: Value-related costs","Contractor's All Risks Insurance, public liability insurance, performance guarantees, bonds, statutory fees and financial securities.","Sum ",{"v":1,"d":"1.00"},null,{"$f":"BOQ_02[[#This Row],[Quantity]]*BOQ_02[[#This Row],[Rate]]","v":{"v":0,"d":"R 0.00"}}]
[4,"Preliminary & General: Project-Specific Allowances","Hospital operational constraints, Occupational Health and Safety (OHS) compliance, permit-to-work coordination, infection prevention and control measures, temporary shutdowns, hospital operational constraints, logistics, testing and commissioning, operator training, as-built documentation and final handover.","Sum ",{"v":1,"d":"1.00"},null,{"$f":"BOQ_02[[#This Row],[Quantity]]*BOQ_02[[#This Row],[Rate]]","v":{"v":0,"d":"R 0.00"}}]
[5,"Tier 1 Solar PV modules","Tier 1 PV module, approx. 625–630 Wp each; final make/model by EPC tender","No.",{"v":159,"d":"159.00"},null,{"$f":"IF(OR(E9=\"\",F9=\"\"),0,E9*F9)","v":{"v":0,"d":"R 0.00"}}]
[6,"PV string labelling and module identification","UV-stable labels for module strings, DBs and isolation points","Lot",{"v":1,"d":"1.00"},null,{"v":0,"d":"R 0.00"}]
[7,"PV mounting system / carport structure","Solar carport mounting system subject to structural design","Lot",{"v":1,"d":"1.00"},null,{"v":0,"d":"R 0.00"}]
[8,"Module clamps, rails, brackets and fasteners","Compatible aluminium/stainless mounting accessories","Lot",{"v":1,"d":"1.00"},null,{"v":0,"d":"R 0.00"}]
[9,"MC4-compatible connectors","PV connectors; quantity subject to final string design","Lot",{"v":350,"d":"350.00"},null,{"v":0,"d":"R 0.00"}]
[10,"6 mm² PV DC cable","UV-rated solar DC cable, red/black; route length subject to site verification","m",{"v":200,"d":"200.00"},null,{"v":0,"d":"R 0.00"}]
[11,"DC cable containment","UV-rated conduit/trunking/trays and mechanical protection","Lot",{"v":1,"d":"1.00"},null,{"v":0,"d":"R 0.00"}]
[12,"DC protection box / combiner","String fusing/combiner arrangement, DC isolators, Type 1/2 SPD as site applicable","No.",{"v":1,"d":"1.00"},null,{"v":0,"d":"R 0.00"}]
[13,"DC isolators","Lockable DC isolation points with clear alternative-source labelling","Lot",{"v":4,"d":"4.00"},null,{"v":0,"d":"R 0.00"}]
[14,"Grid-forming PCS / inverter","Grid-forming PCS/inverter sized for PSA resilience application; final rating subject to load study","No.",{"v":1,"d":"1.00"},null,{"v":0,"d":"R 0.00"}]
[15,"PCS/inverter controller / EMS interface","Energy management and control interface for PV, BESS, genset and grid operation","No.",{"v":1,"d":"1.00"},null,{"v":0,"d":"R 0.00"}]
[16,"BESS cabinet","Outdoor-rated battery energy storage cabinet; final kWh subject to 7-day load monitoring","No.",{"v":1,"d":"1.00"},null,{"v":0,"d":"R 0.00"}]
[17,"BESS HVAC / thermal management","Integrated cabinet cooling/ventilation as required by selected BESS","Lot",{"v":1,"d":"1.00"},null,{"v":0,"d":"R 0.00"}]
[18,"Battery DC protection and isolation","Battery isolation, protection, safety interlocks and emergency shutdown interface","Lot",{"v":1,"d":"1.00"},null,{"v":0,"d":"R 0.00"}]
[19,"AC protection box","AC DB/protection board with breakers, SPDs, metering and labelling","No.",{"v":1,"d":"1.00"},null,{"v":0,"d":"R 0.00"}]
[20,"Static Transfer Switch (STS) / changeover","STS or compliant automatic changeover arrangement for critical PSA supply","No.",{"v":1,"d":"1.00"},null,{"v":0,"d":"R 0.00"}]
[21,"16 mm² XLPE copper cable","AC cable allowance; size and route length subject to detailed design","m",{"v":180,"d":"180.00"},null,{"v":0,"d":"R 0.00"}]
[22,"AC cable containment and termination accessories","Cable tray, gland plates, lugs, glands, ferrules and terminations; Tenderer to price","Lot",{"v":1,"d":"1.00"},null,{"$f":"IF(OR(E26=\"\",F26=\"\"),0,E26*F26)","v":{"v":0,"d":"R 0.00"}}]
[23,"Distribution board modifications","PSA DB integration, supply-side interface and alternative-source labelling","Lot",{"v":1,"d":"1.00"},null,{"v":0,"d":"R 0.00"}]
[24,"Generator integration interface","Genset interface, controls, protection, cabling and changeover coordination","Lot",{"v":1,"d":"1.00"},null,{"v":0,"d":"R 0.00"}]
[25,"Grid interface and export limiting","CTs/meters and export-limiting control at point of connection as applicable","Lot",{"v":1,"d":"1.00"},null,{"v":0,"d":"R 0.00"}]
[26,"Earthing and bonding system","PV frame bonding, equipment bonding and SANS-compliant earthing","Lot",{"v":1,"d":"1.00"},null,{"v":0,"d":"R 0.00"}]
[27,"Copper earth spikes","Copper-bonded earth rods/spikes; final quantity subject to earth testing","No.",{"v":10,"d":"10.00"},null,{"v":0,"d":"R 0.00"}]
[28,"Earth cable and accessories","Bare/insulated copper earth conductor, clamps, lugs and earth bar","m",{"v":10,"d":"10.00"},null,{"v":0,"d":"R 0.00"}]
[29,"Equipment plinths / foundations","Concrete plinths for PCS, BESS, AC/DC boards and ancillary equipment","Lot",{"v":1,"d":"1.00"},null,{"v":0,"d":"R 0.00"}]
[30,"Trenching and reinstatement","Cable trenching, sleeves, marker tape and surface reinstatement","m",{"v":20,"d":"20.00"},null,{"v":0,"d":"R 0.00"}]
[31,"Security fence","Security fencing around outdoor electrical equipment / BESS compound","m",{"v":5,"d":"5.00"},null,{"v":0,"d":"R 0.00"}]
[32,"Access gate and signage","Lockable access gate, danger signage and emergency contact signage","Lot",{"v":1,"d":"1.00"},null,{"v":0,"d":"R 0.00"}]
[33,"Remote monitoring gateway","Wi-Fi/LTE router, data logger and remote monitoring dashboard interface","No.",{"v":1,"d":"1.00"},null,{"v":0,"d":"R 0.00"}]
[34,"Electrical metering and CTs","3-phase metering, CTs and monitoring for PV/BESS/PSA supply","Lot",{"v":1,"d":"1.00"},null,{"v":0,"d":"R 0.00"}]
[35,"7-day load monitoring campaign","Class 0.5 logger; voltage/current/pf/kW/kVA/kWh at suitable intervals","Lot",{"v":1,"d":"1.00"},null,{"v":0,"d":"R 0.00"}]
[36,"Detailed engineering design","SLD, layout, cable sizing, protection coordination and construction pack","Lot",{"v":1,"d":"1.00"},null,{"v":0,"d":"R 0.00"}]
[37,"Shading, azimuth and yield verification","Final PV orientation, tilt, row spacing and shading verification","Lot",{"v":1,"d":"1.00"},null,{"v":0,"d":"R 0.00"}]
[38,"Wind/snow/structural verification","Civil/structural checks for carport mount solution","Lot",{"v":1,"d":"1.00"},null,{"v":0,"d":"R 0.00"}]
[39,"FAT / OEM support","OEM or approved technical representative support during FAT/commissioning","Lot",{"v":1,"d":"1.00"},null,{"v":0,"d":"R 0.00"}]
[40,"Testing and commissioning","Functional tests, protection tests, microgrid operation tests and handover checks","Lot",{"v":1,"d":"1.00"},null,{"v":0,"d":"R 0.00"}]
[41,"Certificate of Compliance","SANS-compliant electrical CoC and supporting certificates","Lot",{"v":1,"d":"1.00"},null,{"v":0,"d":"R 0.00"}]
[42,"Maintenance","36-month O&M price under the NEC3 TSC (PV + PCS + BESS); separate service component","Lot",{"v":1,"d":"1.00"},null,{"v":0,"d":"R 0.00"}]
[43,"As-built drawings and handover pack","As-built SLDs, manuals, warranties, training records and close-out report","Lot",{"v":1,"d":"1.00"},null,{"v":0,"d":"R 0.00"}]
[44,"Local operator training","Training for hospital / local maintenance personnel","Lot",{"v":1,"d":"1.00"},null,{"v":0,"d":"R 0.00"}]
[{"$nulls":5},"Preliminaries and Generals ",{"$f":"G5+G6+G7+G8","v":{"v":0,"d":"R 0.00"}}]
[{"$nulls":5},"Works Installation Summary",{"$f":"ROUND(SUM(G9:G48),2)","v":{"v":0,"d":"R 0.00"}}]
[{"$nulls":5},"Subtotal A (Excl. VAT)",{"$f":"ROUND(G49+G50,2)","v":{"v":0,"d":"R 0.00"}}]
[{"$nulls":5},"Add 10% Contingency",{"$f":"ROUND(G51*10%,2)","v":{"v":0,"d":"R 0.00"}}]
[{"$nulls":5},"Subtotal B (Excl. VAT)",{"$f":"ROUND(G51+G52,2)","v":{"v":0,"d":"R 0.00"}}]
[{"$nulls":5},"Add VAT @ 15%",{"$f":"ROUND(G53*15%,2)","v":{"v":0,"d":"R 0.00"}}]
[{"$nulls":5},"Amount carried forward to summary",{"$f":"ROUND(G53+G54,2)","v":{"v":0,"d":"R 0.00"}}]

{"sheet":"15. Sabie","index":16,"n_rows":55,"n_cols":7,"rows_kept":55,"merged":[[0,0,0,6],[1,1,1,6]]}
["TENDER No: RFP069-070/2026: APPOINTMENT OF SERVICE PROVIDERS FOR THE DESIGN, SUPPLY, INSTALLATION, COMMISSIONING AND MAINTENANCE OF SOLAR-POWERED BACKUP SYSTEMS AT TWENTY (20) HOSPITAL FACILITIES RECEIVING PRESSURE SWING ADSORPTION (PSA) OXYGEN GENERATING PLANTS: \nSabie Hospital"]
[null,"Cluster 2 | Preliminary procurement quantities based on the 90 kWp planning class. Tenderer to price all items; final quantities and ratings remain subject to site verification, the accepted seven-day load study and the Contractor's detailed design."]
[]
["Item No","Item","Activity Description","Unit","Quantity","Rate","Amount"]
[1,"Preliminary & General: Once-off costs","Site establishment, mobilisation, demobilisation, temporary facilities, storage, fencing, site signage and initial setup.","Sum ",{"v":1,"d":"1.00"},null,{"$f":"BOQ_03[[#This Row],[Quantity]]*BOQ_03[[#This Row],[Rate]]","v":{"v":0,"d":"R 0.00"}}]
[2,"Preliminary & General:Time-related costs","Site management and supervision, temporary facilities, utilities, security, administration, plant, tools and welfare facilities for the contract duration.","Month ",{"v":1,"d":"1.00"},null,{"$f":"BOQ_03[[#This Row],[Quantity]]*BOQ_03[[#This Row],[Rate]]","v":{"v":0,"d":"R 0.00"}}]
[3,"Preliminary & General: Value-related costs","Contractor's All Risks Insurance, public liability insurance, performance guarantees, bonds, statutory fees and financial securities.","Sum ",{"v":1,"d":"1.00"},null,{"$f":"BOQ_03[[#This Row],[Quantity]]*BOQ_03[[#This Row],[Rate]]","v":{"v":0,"d":"R 0.00"}}]
[4,"Preliminary & General: Project-Specific Allowances","Hospital operational constraints, Occupational Health and Safety (OHS) compliance, permit-to-work coordination, infection prevention and control measures, temporary shutdowns, hospital operational constraints, logistics, testing and commissioning, operator training, as-built documentation and final handover.","Sum ",{"v":1,"d":"1.00"},null,{"$f":"BOQ_03[[#This Row],[Quantity]]*BOQ_03[[#This Row],[Rate]]","v":{"v":0,"d":"R 0.00"}}]
[5,"Tier 1 Solar PV modules","Tier 1 PV module, approx. 625–630 Wp each; final make/model by EPC tender","No.",{"v":143,"d":"143.00"},null,{"$f":"IF(OR(E9=\"\",F9=\"\"),0,E9*F9)","v":{"v":0,"d":"R 0.00"}}]
[6,"PV string labelling and module identification","UV-stable labels for module strings, DBs and isolation points","Lot",{"v":1,"d":"1.00"},null,{"v":0,"d":"R 0.00"}]
[7,"PV mounting system / carport structure","Solar carport  mounting system subject to structural design","Lot",{"v":1,"d":"1.00"},null,{"v":0,"d":"R 0.00"}]
[8,"Module clamps, rails, brackets and fasteners","Compatible aluminium/stainless mounting accessories","Lot",{"v":1,"d":"1.00"},null,{"v":0,"d":"R 0.00"}]
[9,"MC4-compatible connectors","PV connectors; quantity subject to final string design","Lot",{"v":315,"d":"315.00"},null,{"v":0,"d":"R 0.00"}]
[10,"6 mm² PV DC cable","UV-rated solar DC cable, red/black; route length subject to site verification","m",{"v":180,"d":"180.00"},null,{"v":0,"d":"R 0.00"}]
[11,"DC cable containment","UV-rated conduit/trunking/trays and mechanical protection","Lot",{"v":1,"d":"1.00"},null,{"v":0,"d":"R 0.00"}]
[12,"DC protection box / combiner","String fusing/combiner arrangement, DC isolators, Type 1/2 SPD as site applicable","No.",{"v":1,"d":"1.00"},null,{"v":0,"d":"R 0.00"}]
[13,"DC isolators","Lockable DC isolation points with clear alternative-source labelling","Lot",{"v":4,"d":"4.00"},null,{"v":0,"d":"R 0.00"}]
[14,"Grid-forming PCS / inverter","Grid-forming PCS/inverter sized for PSA resilience application; final rating subject to load study","No.",{"v":1,"d":"1.00"},null,{"v":0,"d":"R 0.00"}]
[15,"PCS/inverter controller / EMS interface","Energy management and control interface for PV, BESS, genset and grid operation","No.",{"v":1,"d":"1.00"},null,{"v":0,"d":"R 0.00"}]
[16,"BESS cabinet","Outdoor-rated battery energy storage cabinet; final kWh subject to 7-day load monitoring","No.",{"v":1,"d":"1.00"},null,{"v":0,"d":"R 0.00"}]
[17,"BESS HVAC / thermal management","Integrated cabinet cooling/ventilation as required by selected BESS","Lot",{"v":1,"d":"1.00"},null,{"v":0,"d":"R 0.00"}]
[18,"Battery DC protection and isolation","Battery isolation, protection, safety interlocks and emergency shutdown interface","Lot",{"v":1,"d":"1.00"},null,{"v":0,"d":"R 0.00"}]
[19,"AC protection box","AC DB/protection board with breakers, SPDs, metering and labelling","No.",{"v":1,"d":"1.00"},null,{"v":0,"d":"R 0.00"}]
[20,"Static Transfer Switch (STS) / changeover","STS or compliant automatic changeover arrangement for critical PSA supply","No.",{"v":1,"d":"1.00"},null,{"v":0,"d":"R 0.00"}]
[21,"16 mm² XLPE copper cable","AC cable allowance; size and route length subject to detailed design","m",{"v":150,"d":"150.00"},null,{"v":0,"d":"R 0.00"}]
[22,"AC cable containment and termination accessories","Cable tray, gland plates, lugs, glands, ferrules and terminations; Tenderer to price","Lot",{"v":1,"d":"1.00"},null,{"$f":"IF(OR(E26=\"\",F26=\"\"),0,E26*F26)","v":{"v":0,"d":"R 0.00"}}]
[23,"Distribution board modifications","PSA DB integration, supply-side interface and alternative-source labelling","Lot",{"v":1,"d":"1.00"},null,{"v":0,"d":"R 0.00"}]
[24,"Generator integration interface","Genset interface, controls, protection, cabling and changeover coordination","Lot",{"v":1,"d":"1.00"},null,{"v":0,"d":"R 0.00"}]
[25,"Grid interface and export limiting","CTs/meters and export-limiting control at point of connection as applicable","Lot",{"v":1,"d":"1.00"},null,{"v":0,"d":"R 0.00"}]
[26,"Earthing and bonding system","PV frame bonding, equipment bonding and SANS-compliant earthing","Lot",{"v":1,"d":"1.00"},null,{"v":0,"d":"R 0.00"}]
[27,"Copper earth spikes","Copper-bonded earth rods/spikes; final quantity subject to earth testing","No.",{"v":8,"d":"8.00"},null,{"v":0,"d":"R 0.00"}]
[28,"Earth cable and accessories","Bare/insulated copper earth conductor, clamps, lugs and earth bar","m",{"v":100,"d":"100.00"},null,{"v":0,"d":"R 0.00"}]
[29,"Equipment plinths / foundations","Concrete plinths for PCS, BESS, AC/DC boards and ancillary equipment","Lot",{"v":1,"d":"1.00"},null,{"v":0,"d":"R 0.00"}]
[30,"Trenching and reinstatement","Cable trenching, sleeves, marker tape and surface reinstatement","m",{"v":10,"d":"10.00"},null,{"v":0,"d":"R 0.00"}]
[31,"Security fence","Security fencing around outdoor electrical equipment / BESS compound","m",{"v":5,"d":"5.00"},null,{"v":0,"d":"R 0.00"}]
[32,"Access gate and signage","Lockable access gate, danger signage and emergency contact signage","Lot",{"v":1,"d":"1.00"},null,{"v":0,"d":"R 0.00"}]
[33,"Remote monitoring gateway","Wi-Fi/LTE router, data logger and remote monitoring dashboard interface","No.",{"v":1,"d":"1.00"},null,{"v":0,"d":"R 0.00"}]
[34,"Electrical metering and CTs","3-phase metering, CTs and monitoring for PV/BESS/PSA supply","Lot",{"v":1,"d":"1.00"},null,{"v":0,"d":"R 0.00"}]
[35,"7-day load monitoring campaign","Class 0.5 logger; voltage/current/pf/kW/kVA/kWh at suitable intervals","Lot",{"v":1,"d":"1.00"},null,{"v":0,"d":"R 0.00"}]
[36,"Detailed engineering design","SLD, layout, cable sizing, protection coordination and construction pack","Lot",{"v":1,"d":"1.00"},null,{"v":0,"d":"R 0.00"}]
[37,"Shading, azimuth and yield verification","Final PV orientation, tilt, row spacing and shading verification","Lot",{"v":1,"d":"1.00"},null,{"v":0,"d":"R 0.00"}]
[38,"Wind/snow/structural verification","Civil/structural checks for carport mount solution","Lot",{"v":1,"d":"1.00"},null,{"v":0,"d":"R 0.00"}]
[39,"FAT / OEM support","OEM or approved technical representative support during FAT/commissioning","Lot",{"v":1,"d":"1.00"},null,{"v":0,"d":"R 0.00"}]
[40,"Testing and commissioning","Functional tests, protection tests, microgrid operation tests and handover checks","Lot",{"v":1,"d":"1.00"},null,{"v":0,"d":"R 0.00"}]
[41,"Certificate of Compliance","SANS-compliant electrical CoC and supporting certificates","Lot",{"v":1,"d":"1.00"},null,{"v":0,"d":"R 0.00"}]
[42,"Maintenance","36-month O&M price under the NEC3 TSC (PV + PCS + BESS); separate service component","Lot",{"v":1,"d":"1.00"},null,{"$f":"IF(OR(E46=\"\",F46=\"\"),0,E46*F46)","v":{"v":0,"d":"R 0.00"}}]
[43,"As-built drawings and handover pack","As-built SLDs, manuals, warranties, training records and close-out report","Lot",{"v":1,"d":"1.00"},null,{"v":0,"d":"R 0.00"}]
[44,"Local operator training","Training for hospital / local maintenance personnel","Lot",{"v":1,"d":"1.00"},null,{"v":0,"d":"R 0.00"}]
[{"$nulls":5},"Preliminaries and Generals ",{"$f":"G5+G6+G7+G8","v":{"v":0,"d":"R 0.00"}}]
[{"$nulls":5},"Works Installation Summary",{"$f":"ROUND(SUM(G9:G49),2)","v":{"v":0,"d":"R 0.00"}}]
[{"$nulls":5},"Subtotal A (Excl. VAT)",{"$f":"ROUND(G49+G50,2)","v":{"v":0,"d":"R 0.00"}}]
[{"$nulls":5},"Add 10% Contingency",{"$f":"ROUND(G51*10%,2)","v":{"v":0,"d":"R 0.00"}}]
[{"$nulls":5},"Subtotal B (Excl. VAT)",{"$f":"ROUND(G51+G52,2)","v":{"v":0,"d":"R 0.00"}}]
[{"$nulls":5},"Add VAT @ 15%",{"$f":"ROUND(G53*15%,2)","v":{"v":0,"d":"R 0.00"}}]
[{"$nulls":5},"Amount carried forward to summary",{"$f":"ROUND(G53+G54,2)","v":{"v":0,"d":"R 0.00"}}]

{"sheet":"16. Tintswalo","index":17,"n_rows":55,"n_cols":7,"rows_kept":55,"merged":[[0,0,0,6],[1,1,1,6]]}
["TENDER No: RFP069-070/2026: APPOINTMENT OF SERVICE PROVIDERS FOR THE DESIGN, SUPPLY, INSTALLATION, COMMISSIONING AND MAINTENANCE OF SOLAR-POWERED BACKUP SYSTEMS AT TWENTY (20) HOSPITAL FACILITIES RECEIVING PRESSURE SWING ADSORPTION (PSA) OXYGEN GENERATING PLANTS: \n Tintswalo Hospital"]
[null,"Cluster 2 | Preliminary procurement quantities based on the 90 kWp planning class. Tenderer to price all items; final quantities and ratings remain subject to site verification, the accepted seven-day load study and the Contractor's detailed design."]
[]
["Item No","Item","Activity Description","Unit","Quantity","Rate","Amount"]
[1,"Preliminary & General: Once-off costs","Site establishment, mobilisation, demobilisation, temporary facilities, storage, fencing, site signage and initial setup.","Sum ",{"v":1,"d":"1.00"},null,{"$f":"BOQ_04[[#This Row],[Quantity]]*BOQ_04[[#This Row],[Rate]]","v":{"v":0,"d":"R 0.00"}}]
[2,"Preliminary & General:Time-related costs","Site management and supervision, temporary facilities, utilities, security, administration, plant, tools and welfare facilities for the contract duration.","Month ",{"v":1,"d":"1.00"},null,{"$f":"BOQ_04[[#This Row],[Quantity]]*BOQ_04[[#This Row],[Rate]]","v":{"v":0,"d":"R 0.00"}}]
[3,"Preliminary & General: Value-related costs","Contractor's All Risks Insurance, public liability insurance, performance guarantees, bonds, statutory fees and financial securities.","Sum ",{"v":1,"d":"1.00"},null,{"$f":"BOQ_04[[#This Row],[Quantity]]*BOQ_04[[#This Row],[Rate]]","v":{"v":0,"d":"R 0.00"}}]
[4,"Preliminary & General: Project-Specific Allowances","Hospital operational constraints, Occupational Health and Safety (OHS) compliance, permit-to-work coordination, infection prevention and control measures, temporary shutdowns, hospital operational constraints, logistics, testing and commissioning, operator training, as-built documentation and final handover.","Sum ",{"v":1,"d":"1.00"},null,{"$f":"BOQ_04[[#This Row],[Quantity]]*BOQ_04[[#This Row],[Rate]]","v":{"v":0,"d":"R 0.00"}}]
[5,"Tier 1 Solar PV modules","Tier 1 PV module, approx. 625–630 Wp each; final make/model by EPC tender","No.",{"v":143,"d":"143.00"},null,{"$f":"IF(OR(E9=\"\",F9=\"\"),0,E9*F9)","v":{"v":0,"d":"R 0.00"}}]
[6,"PV string labelling and module identification","UV-stable labels for module strings, DBs and isolation points","Lot",{"v":1,"d":"1.00"},null,{"v":0,"d":"R 0.00"}]
[7,"PV mounting system / carport structure","Solar carport mounting system subject to structural design","Lot",{"v":1,"d":"1.00"},null,{"v":0,"d":"R 0.00"}]
[8,"Module clamps, rails, brackets and fasteners","Compatible aluminium/stainless mounting accessories","Lot",{"v":1,"d":"1.00"},null,{"v":0,"d":"R 0.00"}]
[9,"MC4-compatible connectors","PV connectors; quantity subject to final string design","Lot",{"v":315,"d":"315.00"},null,{"v":0,"d":"R 0.00"}]
[10,"6 mm² PV DC cable","UV-rated solar DC cable, red/black; route length subject to site verification","m",{"v":180,"d":"180.00"},null,{"v":0,"d":"R 0.00"}]
[11,"DC cable containment","UV-rated conduit/trunking/trays and mechanical protection","Lot",{"v":1,"d":"1.00"},null,{"v":0,"d":"R 0.00"}]
[12,"DC protection box / combiner","String fusing/combiner arrangement, DC isolators, Type 1/2 SPD as site applicable","No.",{"v":1,"d":"1.00"},null,{"v":0,"d":"R 0.00"}]
[13,"DC isolators","Lockable DC isolation points with clear alternative-source labelling","Lot",{"v":4,"d":"4.00"},null,{"v":0,"d":"R 0.00"}]
[14,"Grid-forming PCS / inverter","Grid-forming PCS/inverter sized for PSA resilience application; final rating subject to load study","No.",{"v":1,"d":"1.00"},null,{"v":0,"d":"R 0.00"}]
[15,"PCS/inverter controller / EMS interface","Energy management and control interface for PV, BESS, genset and grid operation","No.",{"v":1,"d":"1.00"},null,{"v":0,"d":"R 0.00"}]
[16,"BESS cabinet","Outdoor-rated battery energy storage cabinet; final kWh subject to 7-day load monitoring","No.",{"v":1,"d":"1.00"},null,{"v":0,"d":"R 0.00"}]
[17,"BESS HVAC / thermal management","Integrated cabinet cooling/ventilation as required by selected BESS","Lot",{"v":1,"d":"1.00"},null,{"v":0,"d":"R 0.00"}]
[18,"Battery DC protection and isolation","Battery isolation, protection, safety interlocks and emergency shutdown interface","Lot",{"v":1,"d":"1.00"},null,{"v":0,"d":"R 0.00"}]
[19,"AC protection box","AC DB/protection board with breakers, SPDs, metering and labelling","No.",{"v":1,"d":"1.00"},null,{"v":0,"d":"R 0.00"}]
[20,"Static Transfer Switch (STS) / changeover","STS or compliant automatic changeover arrangement for critical PSA supply","No.",{"v":1,"d":"1.00"},null,{"v":0,"d":"R 0.00"}]
[21,"16 mm² XLPE copper cable","AC cable allowance; size and route length subject to detailed design","m",{"v":180,"d":"180.00"},null,{"v":0,"d":"R 0.00"}]
[22,"AC cable containment and termination accessories","Cable tray, gland plates, lugs, glands, ferrules and terminations; Tenderer to price","Lot",{"v":1,"d":"1.00"},null,{"$f":"IF(OR(E26=\"\",F26=\"\"),0,E26*F26)","v":{"v":0,"d":"R 0.00"}}]
[23,"Distribution board modifications","PSA DB integration, supply-side interface and alternative-source labelling","Lot",{"v":1,"d":"1.00"},null,{"v":0,"d":"R 0.00"}]
[24,"Generator integration interface","Genset interface, controls, protection, cabling and changeover coordination","Lot",{"v":1,"d":"1.00"},null,{"v":0,"d":"R 0.00"}]
[25,"Grid interface and export limiting","CTs/meters and export-limiting control at point of connection as applicable","Lot",{"v":1,"d":"1.00"},null,{"v":0,"d":"R 0.00"}]
[26,"Earthing and bonding system","PV frame bonding, equipment bonding and SANS-compliant earthing","Lot",{"v":1,"d":"1.00"},null,{"v":0,"d":"R 0.00"}]
[27,"Copper earth spikes","Copper-bonded earth rods/spikes; final quantity subject to earth testing","No.",{"v":12,"d":"12.00"},null,{"v":0,"d":"R 0.00"}]
[28,"Earth cable and accessories","Bare/insulated copper earth conductor, clamps, lugs and earth bar","m",{"v":150,"d":"150.00"},null,{"v":0,"d":"R 0.00"}]
[29,"Equipment plinths / foundations","Concrete plinths for PCS, BESS, AC/DC boards and ancillary equipment","Lot",{"v":1,"d":"1.00"},null,{"v":0,"d":"R 0.00"}]
[30,"Trenching and reinstatement","Cable trenching, sleeves, marker tape and surface reinstatement","m",{"v":15,"d":"15.00"},null,{"v":0,"d":"R 0.00"}]
[31,"Security fence","Security fencing around outdoor electrical equipment / BESS compound","m",{"v":5,"d":"5.00"},null,{"v":0,"d":"R 0.00"}]
[32,"Access gate and signage","Lockable access gate, danger signage and emergency contact signage","Lot",{"v":1,"d":"1.00"},null,{"v":0,"d":"R 0.00"}]
[33,"Remote monitoring gateway","Wi-Fi/LTE router, data logger and remote monitoring dashboard interface","No.",{"v":1,"d":"1.00"},null,{"v":0,"d":"R 0.00"}]
[34,"Electrical metering and CTs","3-phase metering, CTs and monitoring for PV/BESS/PSA supply","Lot",{"v":1,"d":"1.00"},null,{"v":0,"d":"R 0.00"}]
[35,"7-day load monitoring campaign","Class 0.5 logger; voltage/current/pf/kW/kVA/kWh at suitable intervals","Lot",{"v":1,"d":"1.00"},null,{"v":0,"d":"R 0.00"}]
[36,"Detailed engineering design","SLD, layout, cable sizing, protection coordination and construction pack","Lot",{"v":1,"d":"1.00"},null,{"v":0,"d":"R 0.00"}]
[37,"Shading, azimuth and yield verification","Final PV orientation, tilt, row spacing and shading verification","Lot",{"v":1,"d":"1.00"},null,{"v":0,"d":"R 0.00"}]
[38,"Wind/snow/structural verification","Civil/structural checks for carport mount solution","Lot",{"v":1,"d":"1.00"},null,{"v":0,"d":"R 0.00"}]
[39,"FAT / OEM support","OEM or approved technical representative support during FAT/commissioning","Lot",{"v":1,"d":"1.00"},null,{"v":0,"d":"R 0.00"}]
[40,"Testing and commissioning","Functional tests, protection tests, microgrid operation tests and handover checks","Lot",{"v":1,"d":"1.00"},null,{"v":0,"d":"R 0.00"}]
[41,"Certificate of Compliance","SANS-compliant electrical CoC and supporting certificates","Lot",{"v":1,"d":"1.00"},null,{"v":0,"d":"R 0.00"}]
[42,"Maintenance","36-month O&M price under the NEC3 TSC (PV + PCS + BESS); separate service component","Lot",{"v":1,"d":"1.00"},null,{"$f":"IF(OR(E46=\"\",F46=\"\"),0,E46*F46)","v":{"v":0,"d":"R 0.00"}}]
[43,"As-built drawings and handover pack","As-built SLDs, manuals, warranties, training records and close-out report","Lot",{"v":1,"d":"1.00"},null,{"v":0,"d":"R 0.00"}]
[44,"Local operator training","Training for hospital / local maintenance personnel","Lot",{"v":1,"d":"1.00"},null,{"v":0,"d":"R 0.00"}]
[{"$nulls":5},"Preliminaries and Generals ",{"$f":"G5+G6+G7+G8","v":{"v":0,"d":"R 0.00"}}]
[{"$nulls":5},"Works Installation Summary",{"$f":"ROUND(SUM(G9:G49),2)","v":{"v":0,"d":"R 0.00"}}]
[{"$nulls":5},"Subtotal A (Excl. VAT)",{"$f":"ROUND(G49+G50,2)","v":{"v":0,"d":"R 0.00"}}]
[{"$nulls":5},"Add 10% Contingency",{"$f":"ROUND(G51*10%,2)","v":{"v":0,"d":"R 0.00"}}]
[{"$nulls":5},"Subtotal B (Excl. VAT)",{"$f":"ROUND(G51+G52,2)","v":{"v":0,"d":"R 0.00"}}]
[{"$nulls":5},"Add VAT @ 15%",{"$f":"ROUND(G53*15%,2)","v":{"v":0,"d":"R 0.00"}}]
[{"$nulls":5},"Amount carried forward to summary",{"$f":"ROUND(G53+G54,2)","v":{"v":0,"d":"R 0.00"}}]

{"sheet":"17. Seshego","index":18,"n_rows":55,"n_cols":7,"rows_kept":55,"merged":[[0,1,0,6],[1,1,1,6]]}
[null,"TENDER No: RFP069-070/2026: APPOINTMENT OF SERVICE PROVIDERS FOR THE DESIGN, SUPPLY, INSTALLATION, COMMISSIONING AND MAINTENANCE OF SOLAR-POWERED BACKUP SYSTEMS AT TWENTY (20) HOSPITAL FACILITIES RECEIVING PRESSURE SWING ADSORPTION (PSA) OXYGEN GENERATING PLANTS: \n Seshego Hospital"]
[null,"Cluster 2 | Preliminary procurement quantities based on the 100 kWp planning class. Tenderer to price all items; final quantities and ratings remain subject to site verification, the accepted seven-day load study and the Contractor's detailed design."]
[]
["Item No","Item","Activity Description","Unit","Quantity","Rate","Amount"]
[1,"Preliminary & General: Once-off costs","Site establishment, mobilisation, demobilisation, temporary facilities, storage, fencing, site signage and initial setup.","Sum ",{"v":1,"d":"1.00"},null,{"$f":"BOQ_05[[#This Row],[Quantity]]*BOQ_05[[#This Row],[Rate]]","v":{"v":0,"d":"R 0.00"}}]
[2,"Preliminary & General:Time-related costs","Site management and supervision, temporary facilities, utilities, security, administration, plant, tools and welfare facilities for the contract duration.","Month ",{"v":1,"d":"1.00"},null,{"$f":"BOQ_05[[#This Row],[Quantity]]*BOQ_05[[#This Row],[Rate]]","v":{"v":0,"d":"R 0.00"}}]
[3,"Preliminary & General: Value-related costs","Contractor's All Risks Insurance, public liability insurance, performance guarantees, bonds, statutory fees and financial securities.","Sum ",{"v":1,"d":"1.00"},null,{"$f":"BOQ_05[[#This Row],[Quantity]]*BOQ_05[[#This Row],[Rate]]","v":{"v":0,"d":"R 0.00"}}]
[4,"Preliminary & General: Project-Specific Allowances","Hospital operational constraints, Occupational Health and Safety (OHS) compliance, permit-to-work coordination, infection prevention and control measures, temporary shutdowns, hospital operational constraints, logistics, testing and commissioning, operator training, as-built documentation and final handover.","Sum ",{"v":1,"d":"1.00"},null,{"$f":"BOQ_05[[#This Row],[Quantity]]*BOQ_05[[#This Row],[Rate]]","v":{"v":0,"d":"R 0.00"}}]
[5,"Tier 1 Solar PV modules","Tier 1 PV module, approx. 625–630 Wp each; final make/model by EPC tender","No.",{"v":159,"d":"159.00"},null,{"$f":"IF(OR(E9=\"\",F9=\"\"),0,E9*F9)","v":{"v":0,"d":"R 0.00"}}]
[6,"PV string labelling and module identification","UV-stable labels for module strings, DBs and isolation points","Lot",{"v":1,"d":"1.00"},null,{"v":0,"d":"R 0.00"}]
[7,"PV mounting system / carport structure","Solar carport mounting system subject to structural design","Lot",{"v":1,"d":"1.00"},null,{"v":0,"d":"R 0.00"}]
[8,"Module clamps, rails, brackets and fasteners","Compatible aluminium/stainless mounting accessories","Lot",{"v":1,"d":"1.00"},null,{"v":0,"d":"R 0.00"}]
[9,"MC4-compatible connectors","PV connectors; quantity subject to final string design","Lot",{"v":350,"d":"350.00"},null,{"v":0,"d":"R 0.00"}]
[10,"6 mm² PV DC cable","UV-rated solar DC cable, red/black; route length subject to site verification","m",{"v":200,"d":"200.00"},null,{"v":0,"d":"R 0.00"}]
[11,"DC cable containment","UV-rated conduit/trunking/trays and mechanical protection","Lot",{"v":1,"d":"1.00"},null,{"v":0,"d":"R 0.00"}]
[12,"DC protection box / combiner","String fusing/combiner arrangement, DC isolators, Type 1/2 SPD as site applicable","No.",{"v":1,"d":"1.00"},null,{"v":0,"d":"R 0.00"}]
[13,"DC isolators","Lockable DC isolation points with clear alternative-source labelling","Lot",{"v":4,"d":"4.00"},null,{"v":0,"d":"R 0.00"}]
[14,"Grid-forming PCS / inverter","Grid-forming PCS/inverter sized for PSA resilience application; final rating subject to load study","No.",{"v":1,"d":"1.00"},null,{"v":0,"d":"R 0.00"}]
[15,"PCS/inverter controller / EMS interface","Energy management and control interface for PV, BESS, genset and grid operation","No.",{"v":1,"d":"1.00"},null,{"v":0,"d":"R 0.00"}]
[16,"BESS cabinet","Outdoor-rated battery energy storage cabinet; final kWh subject to 7-day load monitoring","No.",{"v":1,"d":"1.00"},null,{"v":0,"d":"R 0.00"}]
[17,"BESS HVAC / thermal management","Integrated cabinet cooling/ventilation as required by selected BESS","Lot",{"v":1,"d":"1.00"},null,{"v":0,"d":"R 0.00"}]
[18,"Battery DC protection and isolation","Battery isolation, protection, safety interlocks and emergency shutdown interface","Lot",{"v":1,"d":"1.00"},null,{"v":0,"d":"R 0.00"}]
[19,"AC protection box","AC DB/protection board with breakers, SPDs, metering and labelling","No.",{"v":1,"d":"1.00"},null,{"v":0,"d":"R 0.00"}]
[20,"Static Transfer Switch (STS) / changeover","STS or compliant automatic changeover arrangement for critical PSA supply","No.",{"v":1,"d":"1.00"},null,{"v":0,"d":"R 0.00"}]
[21,"16 mm² XLPE copper cable","AC cable allowance; size and route length subject to detailed design","m",{"v":180,"d":"180.00"},null,{"v":0,"d":"R 0.00"}]
[22,"AC cable containment and termination accessories","Cable tray, gland plates, lugs, glands, ferrules and terminations; Tenderer to price","Lot",{"v":1,"d":"1.00"},null,{"$f":"IF(OR(E26=\"\",F26=\"\"),0,E26*F26)","v":{"v":0,"d":"R 0.00"}}]
[23,"Distribution board modifications","PSA DB integration, supply-side interface and alternative-source labelling","Lot",{"v":1,"d":"1.00"},null,{"v":0,"d":"R 0.00"}]
[24,"Generator integration interface","Genset interface, controls, protection, cabling and changeover coordination","Lot",{"v":1,"d":"1.00"},null,{"v":0,"d":"R 0.00"}]
[25,"Grid interface and export limiting","CTs/meters and export-limiting control at point of connection as applicable","Lot",{"v":1,"d":"1.00"},null,{"v":0,"d":"R 0.00"}]
[26,"Earthing and bonding system","PV frame bonding, equipment bonding and SANS-compliant earthing","Lot",{"v":1,"d":"1.00"},null,{"v":0,"d":"R 0.00"}]
[27,"Copper earth spikes","Copper-bonded earth rods/spikes; final quantity subject to earth testing","No.",{"v":10,"d":"10.00"},null,{"v":0,"d":"R 0.00"}]
[28,"Earth cable and accessories","Bare/insulated copper earth conductor, clamps, lugs and earth bar","m",{"v":120,"d":"120.00"},null,{"v":0,"d":"R 0.00"}]
[29,"Equipment plinths / foundations","Concrete plinths for PCS, BESS, AC/DC boards and ancillary equipment","Lot",{"v":1,"d":"1.00"},null,{"v":0,"d":"R 0.00"}]
[30,"Trenching and reinstatement","Cable trenching, sleeves, marker tape and surface reinstatement","m",{"v":15,"d":"15.00"},null,{"v":0,"d":"R 0.00"}]
[31,"Security fence","Security fencing around outdoor electrical equipment / BESS compound","m",{"v":5,"d":"5.00"},null,{"v":0,"d":"R 0.00"}]
[32,"Access gate and signage","Lockable access gate, danger signage and emergency contact signage","Lot",{"v":1,"d":"1.00"},null,{"v":0,"d":"R 0.00"}]
[33,"Remote monitoring gateway","Wi-Fi/LTE router, data logger and remote monitoring dashboard interface","No.",{"v":1,"d":"1.00"},null,{"v":0,"d":"R 0.00"}]
[34,"Electrical metering and CTs","3-phase metering, CTs and monitoring for PV/BESS/PSA supply","Lot",{"v":1,"d":"1.00"},null,{"v":0,"d":"R 0.00"}]
[35,"7-day load monitoring campaign","Class 0.5 logger; voltage/current/pf/kW/kVA/kWh at suitable intervals","Lot",{"v":1,"d":"1.00"},null,{"v":0,"d":"R 0.00"}]
[36,"Detailed engineering design","SLD, layout, cable sizing, protection coordination and construction pack","Lot",{"v":1,"d":"1.00"},null,{"v":0,"d":"R 0.00"}]
[37,"Shading, azimuth and yield verification","Final PV orientation, tilt, row spacing and shading verification","Lot",{"v":1,"d":"1.00"},null,{"v":0,"d":"R 0.00"}]
[38,"Wind/snow/structural verification","Civil/structural checks for carport mount solution","Lot",{"v":1,"d":"1.00"},null,{"v":0,"d":"R 0.00"}]
[39,"FAT / OEM support","OEM or approved technical representative support during FAT/commissioning","Lot",{"v":1,"d":"1.00"},null,{"v":0,"d":"R 0.00"}]
[40,"Testing and commissioning","Functional tests, protection tests, microgrid operation tests and handover checks","Lot",{"v":1,"d":"1.00"},null,{"v":0,"d":"R 0.00"}]
[41,"Certificate of Compliance","SANS-compliant electrical CoC and supporting certificates","Lot",{"v":1,"d":"1.00"},null,{"v":0,"d":"R 0.00"}]
[42,"Maintenance","36-month O&M price under the NEC3 TSC (PV + PCS + BESS); separate service component","Lot",{"v":1,"d":"1.00"},null,{"$f":"IF(OR(E46=\"\",F46=\"\"),0,E46*F46)","v":{"v":0,"d":"R 0.00"}}]
[43,"As-built drawings and handover pack","As-built SLDs, manuals, warranties, training records and close-out report","Lot",{"v":1,"d":"1.00"},null,{"v":0,"d":"R 0.00"}]
[44,"Local operator training","Training for hospital / local maintenance personnel","Lot",{"v":1,"d":"1.00"},null,{"v":0,"d":"R 0.00"}]
[{"$nulls":5},"Preliminaries and Generals ",{"$f":"G5+G6+G7+G8","v":{"v":0,"d":"R 0.00"}}]
[{"$nulls":5},"Works Installation Summary",{"$f":"ROUND(SUM(G9:G48),2)","v":{"v":0,"d":"R 0.00"}}]
[{"$nulls":5},"Subtotal A (Excl. VAT)",{"$f":"ROUND(G49+G50,2)","v":{"v":0,"d":"R 0.00"}}]
[{"$nulls":5},"Add 10% Contingency",{"$f":"ROUND(G51*10%,2)","v":{"v":0,"d":"R 0.00"}}]
[{"$nulls":5},"Subtotal B (Excl. VAT)",{"$f":"ROUND(G51+G52,2)","v":{"v":0,"d":"R 0.00"}}]
[{"$nulls":5},"Add VAT @ 15%",{"$f":"ROUND(G53*15%,2)","v":{"v":0,"d":"R 0.00"}}]
[{"$nulls":5},"Amount carried forward to summary",{"$f":"ROUND(G53+G54,2)","v":{"v":0,"d":"R 0.00"}}]

{"sheet":"18. Jubilee","index":19,"n_rows":55,"n_cols":7,"rows_kept":55,"merged":[[0,1,0,6],[1,1,1,6]]}
[null,"TENDER No: RFP069-070/2026: APPOINTMENT OF SERVICE PROVIDERS FOR THE DESIGN, SUPPLY, INSTALLATION, COMMISSIONING AND MAINTENANCE OF SOLAR-POWERED BACKUP SYSTEMS AT TWENTY (20) HOSPITAL FACILITIES RECEIVING PRESSURE SWING ADSORPTION (PSA) OXYGEN GENERATING PLANTS: \nJubilee Hospital"]
[null,"Cluster 2 | Preliminary procurement quantities based on the 120 kWp planning class. Tenderer to price all items; final quantities and ratings remain subject to site verification, the accepted seven-day load study and the Contractor's detailed design."]
[]
["Item No","Item","Activity Description","Unit","Quantity","Rate","Amount"]
[1,"Preliminary & General: Once-off costs","Site establishment, mobilisation, demobilisation, temporary facilities, storage, fencing, site signage and initial setup.","Sum ",{"v":1,"d":"1.00"},null,{"$f":"BOQ_06[[#This Row],[Quantity]]*BOQ_06[[#This Row],[Rate]]","v":{"v":0,"d":"R 0.00"}}]
[2,"Preliminary & General:Time-related costs","Site management and supervision, temporary facilities, utilities, security, administration, plant, tools and welfare facilities for the contract duration.","Month ",{"v":1,"d":"1.00"},null,{"$f":"BOQ_06[[#This Row],[Quantity]]*BOQ_06[[#This Row],[Rate]]","v":{"v":0,"d":"R 0.00"}}]
[3,"Preliminary & General: Value-related costs","Contractor's All Risks Insurance, public liability insurance, performance guarantees, bonds, statutory fees and financial securities.","Sum ",{"v":1,"d":"1.00"},null,{"$f":"BOQ_06[[#This Row],[Quantity]]*BOQ_06[[#This Row],[Rate]]","v":{"v":0,"d":"R 0.00"}}]
[4,"Preliminary & General: Project-Specific Allowances","Hospital operational constraints, Occupational Health and Safety (OHS) compliance, permit-to-work coordination, infection prevention and control measures, temporary shutdowns, hospital operational constraints, logistics, testing and commissioning, operator training, as-built documentation and final handover.","Sum ",{"v":1,"d":"1.00"},null,{"$f":"BOQ_06[[#This Row],[Quantity]]*BOQ_06[[#This Row],[Rate]]","v":{"v":0,"d":"R 0.00"}}]
[5,"Tier 1 Solar PV modules","Tier 1 PV module, approx. 625–630 Wp each; final make/model by EPC tender","No.",{"v":191,"d":"191.00"},null,{"$f":"IF(OR(E9=\"\",F9=\"\"),0,E9*F9)","v":{"v":0,"d":"R 0.00"}}]
[6,"PV string labelling and module identification","UV-stable labels for module strings, DBs and isolation points","Lot",{"v":1,"d":"1.00"},null,{"v":0,"d":"R 0.00"}]
[7,"PV mounting system / carport structure","Solar carport mounting system subject to structural design","Lot",{"v":1,"d":"1.00"},null,{"v":0,"d":"R 0.00"}]
[8,"Module clamps, rails, brackets and fasteners","Compatible aluminium/stainless mounting accessories","Lot",{"v":1,"d":"1.00"},null,{"v":0,"d":"R 0.00"}]
[9,"MC4-compatible connectors","PV connectors; quantity subject to final string design","Lot",{"v":420,"d":"420.00"},null,{"v":0,"d":"R 0.00"}]
[10,"6 mm² PV DC cable","UV-rated solar DC cable, red/black; route length subject to site verification","m",{"v":240,"d":"240.00"},null,{"v":0,"d":"R 0.00"}]
[11,"DC cable containment","UV-rated conduit/trunking/trays and mechanical protection","Lot",{"v":1,"d":"1.00"},null,{"v":0,"d":"R 0.00"}]
[12,"DC protection box / combiner","String fusing/combiner arrangement, DC isolators, Type 1/2 SPD as site applicable","No.",{"v":1,"d":"1.00"},null,{"v":0,"d":"R 0.00"}]
[13,"DC isolators","Lockable DC isolation points with clear alternative-source labelling","Lot",{"v":4,"d":"4.00"},null,{"v":0,"d":"R 0.00"}]
[14,"Grid-forming PCS / inverter","Grid-forming PCS/inverter sized for PSA resilience application; final rating subject to load study","No.",{"v":1,"d":"1.00"},null,{"v":0,"d":"R 0.00"}]
[15,"PCS/inverter controller / EMS interface","Energy management and control interface for PV, BESS, genset and grid operation","No.",{"v":1,"d":"1.00"},null,{"v":0,"d":"R 0.00"}]
[16,"BESS cabinet","Outdoor-rated battery energy storage cabinet; final kWh subject to 7-day load monitoring","No.",{"v":1,"d":"1.00"},null,{"v":0,"d":"R 0.00"}]
[17,"BESS HVAC / thermal management","Integrated cabinet cooling/ventilation as required by selected BESS","Lot",{"v":1,"d":"1.00"},null,{"v":0,"d":"R 0.00"}]
[18,"Battery DC protection and isolation","Battery isolation, protection, safety interlocks and emergency shutdown interface","Lot",{"v":1,"d":"1.00"},null,{"v":0,"d":"R 0.00"}]
[19,"AC protection box","AC DB/protection board with breakers, SPDs, metering and labelling","No.",{"v":1,"d":"1.00"},null,{"v":0,"d":"R 0.00"}]
[20,"Static Transfer Switch (STS) / changeover","STS or compliant automatic changeover arrangement for critical PSA supply","No.",{"v":1,"d":"1.00"},null,{"v":0,"d":"R 0.00"}]
[21,"16 mm² XLPE copper cable","AC cable allowance; size and route length subject to detailed design","m",{"v":220,"d":"220.00"},null,{"v":0,"d":"R 0.00"}]
[22,"AC cable containment and termination accessories","Cable tray, gland plates, lugs, glands, ferrules and terminations; Tenderer to price","Lot",{"v":1,"d":"1.00"},null,{"$f":"IF(OR(E26=\"\",F26=\"\"),0,E26*F26)","v":{"v":0,"d":"R 0.00"}}]
[23,"Distribution board modifications","PSA DB integration, supply-side interface and alternative-source labelling","Lot",{"v":1,"d":"1.00"},null,{"v":0,"d":"R 0.00"}]
[24,"Generator integration interface","Genset interface, controls, protection, cabling and changeover coordination","Lot",{"v":1,"d":"1.00"},null,{"v":0,"d":"R 0.00"}]
[25,"Grid interface and export limiting","CTs/meters and export-limiting control at point of connection as applicable","Lot",{"v":1,"d":"1.00"},null,{"v":0,"d":"R 0.00"}]
[26,"Earthing and bonding system","PV frame bonding, equipment bonding and SANS-compliant earthing","Lot",{"v":1,"d":"1.00"},null,{"v":0,"d":"R 0.00"}]
[27,"Copper earth spikes","Copper-bonded earth rods/spikes; final quantity subject to earth testing","No.",{"v":12,"d":"12.00"},null,{"v":0,"d":"R 0.00"}]
[28,"Earth cable and accessories","Bare/insulated copper earth conductor, clamps, lugs and earth bar","m",{"v":150,"d":"150.00"},null,{"v":0,"d":"R 0.00"}]
[29,"Equipment plinths / foundations","Concrete plinths for PCS, BESS, AC/DC boards and ancillary equipment","Lot",{"v":1,"d":"1.00"},null,{"v":0,"d":"R 0.00"}]
[30,"Trenching and reinstatement","Cable trenching, sleeves, marker tape and surface reinstatement","m",{"v":15,"d":"15.00"},null,{"v":0,"d":"R 0.00"}]
[31,"Security fence","Security fencing around outdoor electrical equipment / BESS compound","m",{"v":5,"d":"5.00"},null,{"v":0,"d":"R 0.00"}]
[32,"Access gate and signage","Lockable access gate, danger signage and emergency contact signage","Lot",{"v":1,"d":"1.00"},null,{"v":0,"d":"R 0.00"}]
[33,"Remote monitoring gateway","Wi-Fi/LTE router, data logger and remote monitoring dashboard interface","No.",{"v":1,"d":"1.00"},null,{"v":0,"d":"R 0.00"}]
[34,"Electrical metering and CTs","3-phase metering, CTs and monitoring for PV/BESS/PSA supply","Lot",{"v":1,"d":"1.00"},null,{"v":0,"d":"R 0.00"}]
[35,"7-day load monitoring campaign","Class 0.5 logger; voltage/current/pf/kW/kVA/kWh at suitable intervals","Lot",{"v":1,"d":"1.00"},null,{"v":0,"d":"R 0.00"}]
[36,"Detailed engineering design","SLD, layout, cable sizing, protection coordination and construction pack","Lot",{"v":1,"d":"1.00"},null,{"v":0,"d":"R 0.00"}]
[37,"Shading, azimuth and yield verification","Final PV orientation, tilt, row spacing and shading verification","Lot",{"v":1,"d":"1.00"},null,{"v":0,"d":"R 0.00"}]
[38,"Wind/snow/structural verification","Civil/structural checks for carport mount solution","Lot",{"v":1,"d":"1.00"},null,{"v":0,"d":"R 0.00"}]
[39,"FAT / OEM support","OEM or approved technical representative support during FAT/commissioning","Lot",{"v":1,"d":"1.00"},null,{"v":0,"d":"R 0.00"}]
[40,"Testing and commissioning","Functional tests, protection tests, microgrid operation tests and handover checks","Lot",{"v":1,"d":"1.00"},null,{"v":0,"d":"R 0.00"}]
[41,"Certificate of Compliance","SANS-compliant electrical CoC and supporting certificates","Lot",{"v":1,"d":"1.00"},null,{"v":0,"d":"R 0.00"}]
[42,"Maintenance","36-month O&M price under the NEC3 TSC (PV + PCS + BESS); separate service component","Lot",{"v":1,"d":"1.00"},null,{"$f":"IF(OR(E46=\"\",F46=\"\"),0,E46*F46)","v":{"v":0,"d":"R 0.00"}}]
[43,"As-built drawings and handover pack","As-built SLDs, manuals, warranties, training records and close-out report","Lot",{"v":1,"d":"1.00"},null,{"v":0,"d":"R 0.00"}]
[44,"Local operator training","Training for hospital / local maintenance personnel","Lot",{"v":1,"d":"1.00"},null,{"v":0,"d":"R 0.00"}]
[{"$nulls":5},"Preliminaries and Generals ",{"$f":"G5+G6+G7+G8","v":{"v":0,"d":"R 0.00"}}]
[{"$nulls":5},"Works Installation Summary",{"$f":"ROUND(SUM(G9:G48),2)","v":{"v":0,"d":"R 0.00"}}]
[{"$nulls":5},"Subtotal A (Excl. VAT)",{"$f":"ROUND(G49+G50,2)","v":{"v":0,"d":"R 0.00"}}]
[{"$nulls":5},"Add 10% Contingency",{"$f":"ROUND(G51*10%,2)","v":{"v":0,"d":"R 0.00"}}]
[{"$nulls":5},"Subtotal B (Excl. VAT)",{"$f":"ROUND(G51+G52,2)","v":{"v":0,"d":"R 0.00"}}]
[{"$nulls":5},"Add VAT @ 15%",{"$f":"ROUND(G53*15%,2)","v":{"v":0,"d":"R 0.00"}}]
[{"$nulls":5},"Amount carried forward to summary",{"$f":"ROUND(G53+G54,2)","v":{"v":0,"d":"R 0.00"}}]

{"sheet":"19. KwaMhlanga","index":20,"n_rows":55,"n_cols":7,"rows_kept":55,"merged":[[0,1,0,6],[1,1,1,6]]}
[null,"TENDER No: RFP069-070/2026: APPOINTMENT OF SERVICE PROVIDERS FOR THE DESIGN, SUPPLY, INSTALLATION, COMMISSIONING AND MAINTENANCE OF SOLAR-POWERED BACKUP SYSTEMS AT TWENTY (20) HOSPITAL FACILITIES RECEIVING PRESSURE SWING ADSORPTION (PSA) OXYGEN GENERATING PLANTS: \nKwaMhlanga Hospital"]
[null,"Cluster 2 | Preliminary procurement quantities based on the 100 kWp planning class. Tenderer to price all items; final quantities and ratings remain subject to site verification, the accepted seven-day load study and the Contractor's detailed design."]
[]
["Item No","Item","Activity Description","Unit","Quantity","Rate","Amount"]
[1,"Preliminary & General: Once-off costs","Site establishment, mobilisation, demobilisation, temporary facilities, storage, fencing, site signage and initial setup.","Sum ",{"v":1,"d":"1.00"},null,{"$f":"BOQ_07[[#This Row],[Quantity]]*BOQ_07[[#This Row],[Rate]]","v":{"v":0,"d":"R 0.00"}}]
[2,"Preliminary & General:Time-related costs","Site management and supervision, temporary facilities, utilities, security, administration, plant, tools and welfare facilities for the contract duration.","Month ",{"v":1,"d":"1.00"},null,{"$f":"BOQ_07[[#This Row],[Quantity]]*BOQ_07[[#This Row],[Rate]]","v":{"v":0,"d":"R 0.00"}}]
[3,"Preliminary & General: Value-related costs","Contractor's All Risks Insurance, public liability insurance, performance guarantees, bonds, statutory fees and financial securities.","Sum ",{"v":1,"d":"1.00"},null,{"$f":"BOQ_07[[#This Row],[Quantity]]*BOQ_07[[#This Row],[Rate]]","v":{"v":0,"d":"R 0.00"}}]
[4,"Preliminary & General: Project-Specific Allowances","Hospital operational constraints, Occupational Health and Safety (OHS) compliance, permit-to-work coordination, infection prevention and control measures, temporary shutdowns, hospital operational constraints, logistics, testing and commissioning, operator training, as-built documentation and final handover.","Sum ",{"v":1,"d":"1.00"},null,{"$f":"BOQ_07[[#This Row],[Quantity]]*BOQ_07[[#This Row],[Rate]]","v":{"v":0,"d":"R 0.00"}}]
[5,"Tier 1 Solar PV modules","Tier 1 PV module, approx. 625–630 Wp each; final make/model by EPC tender","No.",{"v":159,"d":"159.00"},null,{"$f":"IF(OR(E9=\"\",F9=\"\"),0,E9*F9)","v":{"v":0,"d":"R 0.00"}}]
[6,"PV string labelling and module identification","UV-stable labels for module strings, DBs and isolation points","Lot",{"v":1,"d":"1.00"},null,{"v":0,"d":"R 0.00"}]
[7,"PV mounting system / carport structure","Solar carport mounting system subject to structural design","Lot",{"v":1,"d":"1.00"},null,{"v":0,"d":"R 0.00"}]
[8,"Module clamps, rails, brackets and fasteners","Compatible aluminium/stainless mounting accessories","Lot",{"v":1,"d":"1.00"},null,{"v":0,"d":"R 0.00"}]
[9,"MC4-compatible connectors","PV connectors; quantity subject to final string design","Lot",{"v":350,"d":"350.00"},null,{"v":0,"d":"R 0.00"}]
[10,"6 mm² PV DC cable","UV-rated solar DC cable, red/black; route length subject to site verification","m",{"v":200,"d":"200.00"},null,{"v":0,"d":"R 0.00"}]
[11,"DC cable containment","UV-rated conduit/trunking/trays and mechanical protection","Lot",{"v":1,"d":"1.00"},null,{"v":0,"d":"R 0.00"}]
[12,"DC protection box / combiner","String fusing/combiner arrangement, DC isolators, Type 1/2 SPD as site applicable","No.",{"v":1,"d":"1.00"},null,{"v":0,"d":"R 0.00"}]
[13,"DC isolators","Lockable DC isolation points with clear alternative-source labelling","Lot",{"v":4,"d":"4.00"},null,{"v":0,"d":"R 0.00"}]
[14,"Grid-forming PCS / inverter","Grid-forming PCS/inverter sized for PSA resilience application; final rating subject to load study","No.",{"v":1,"d":"1.00"},null,{"v":0,"d":"R 0.00"}]
[15,"PCS/inverter controller / EMS interface","Energy management and control interface for PV, BESS, genset and grid operation","No.",{"v":1,"d":"1.00"},null,{"v":0,"d":"R 0.00"}]
[16,"BESS cabinet","Outdoor-rated battery energy storage cabinet; final kWh subject to 7-day load monitoring","No.",{"v":1,"d":"1.00"},null,{"v":0,"d":"R 0.00"}]
[17,"BESS HVAC / thermal management","Integrated cabinet cooling/ventilation as required by selected BESS","Lot",{"v":1,"d":"1.00"},null,{"v":0,"d":"R 0.00"}]
[18,"Battery DC protection and isolation","Battery isolation, protection, safety interlocks and emergency shutdown interface","Lot",{"v":1,"d":"1.00"},null,{"v":0,"d":"R 0.00"}]
[19,"AC protection box","AC DB/protection board with breakers, SPDs, metering and labelling","No.",{"v":1,"d":"1.00"},null,{"v":0,"d":"R 0.00"}]
[20,"Static Transfer Switch (STS) / changeover","STS or compliant automatic changeover arrangement for critical PSA supply","No.",{"v":1,"d":"1.00"},null,{"v":0,"d":"R 0.00"}]
[21,"16 mm² XLPE copper cable","AC cable allowance; size and route length subject to detailed design","m",{"v":180,"d":"180.00"},null,{"v":0,"d":"R 0.00"}]
[22,"AC cable containment and termination accessories","Cable tray, gland plates, lugs, glands, ferrules and terminations; Tenderer to price","Lot",{"v":1,"d":"1.00"},null,{"$f":"IF(OR(E26=\"\",F26=\"\"),0,E26*F26)","v":{"v":0,"d":"R 0.00"}}]
[23,"Distribution board modifications","PSA DB integration, supply-side interface and alternative-source labelling","Lot",{"v":1,"d":"1.00"},null,{"v":0,"d":"R 0.00"}]
[24,"Generator integration interface","Genset interface, controls, protection, cabling and changeover coordination","Lot",{"v":1,"d":"1.00"},null,{"v":0,"d":"R 0.00"}]
[25,"Grid interface and export limiting","CTs/meters and export-limiting control at point of connection as applicable","Lot",{"v":1,"d":"1.00"},null,{"v":0,"d":"R 0.00"}]
[26,"Earthing and bonding system","PV frame bonding, equipment bonding and SANS-compliant earthing","Lot",{"v":1,"d":"1.00"},null,{"v":0,"d":"R 0.00"}]
[27,"Copper earth spikes","Copper-bonded earth rods/spikes; final quantity subject to earth testing","No.",{"v":10,"d":"10.00"},null,{"v":0,"d":"R 0.00"}]
[28,"Earth cable and accessories","Bare/insulated copper earth conductor, clamps, lugs and earth bar","m",{"v":120,"d":"120.00"},null,{"v":0,"d":"R 0.00"}]
[29,"Equipment plinths / foundations","Concrete plinths for PCS, BESS, AC/DC boards and ancillary equipment","Lot",{"v":1,"d":"1.00"},null,{"v":0,"d":"R 0.00"}]
[30,"Trenching and reinstatement","Cable trenching, sleeves, marker tape and surface reinstatement","m",{"v":15,"d":"15.00"},null,{"v":0,"d":"R 0.00"}]
[31,"Security fence","Security fencing around outdoor electrical equipment / BESS compound","m",{"v":5,"d":"5.00"},null,{"v":0,"d":"R 0.00"}]
[32,"Access gate and signage","Lockable access gate, danger signage and emergency contact signage","Lot",{"v":1,"d":"1.00"},null,{"v":0,"d":"R 0.00"}]
[33,"Remote monitoring gateway","Wi-Fi/LTE router, data logger and remote monitoring dashboard interface","No.",{"v":1,"d":"1.00"},null,{"v":0,"d":"R 0.00"}]
[34,"Electrical metering and CTs","3-phase metering, CTs and monitoring for PV/BESS/PSA supply","Lot",{"v":1,"d":"1.00"},null,{"v":0,"d":"R 0.00"}]
[35,"7-day load monitoring campaign","Class 0.5 logger; voltage/current/pf/kW/kVA/kWh at suitable intervals","Lot",{"v":1,"d":"1.00"},null,{"v":0,"d":"R 0.00"}]
[36,"Detailed engineering design","SLD, layout, cable sizing, protection coordination and construction pack","Lot",{"v":1,"d":"1.00"},null,{"v":0,"d":"R 0.00"}]
[37,"Shading, azimuth and yield verification","Final PV orientation, tilt, row spacing and shading verification","Lot",{"v":1,"d":"1.00"},null,{"v":0,"d":"R 0.00"}]
[38,"Wind/snow/structural verification","Civil/structural checks for carport mount solution","Lot",{"v":1,"d":"1.00"},null,{"v":0,"d":"R 0.00"}]
[39,"FAT / OEM support","OEM or approved technical representative support during FAT/commissioning","Lot",{"v":1,"d":"1.00"},null,{"v":0,"d":"R 0.00"}]
[40,"Testing and commissioning","Functional tests, protection tests, microgrid operation tests and handover checks","Lot",{"v":1,"d":"1.00"},null,{"v":0,"d":"R 0.00"}]
[41,"Certificate of Compliance","SANS-compliant electrical CoC and supporting certificates","Lot",{"v":1,"d":"1.00"},null,{"v":0,"d":"R 0.00"}]
[42,"Maintenance","36-month O&M price under the NEC3 TSC (PV + PCS + BESS); separate service component","Lot",{"v":1,"d":"1.00"},null,{"$f":"IF(OR(E46=\"\",F46=\"\"),0,E46*F46)","v":{"v":0,"d":"R 0.00"}}]
[43,"As-built drawings and handover pack","As-built SLDs, manuals, warranties, training records and close-out report","Lot",{"v":1,"d":"1.00"},null,{"v":0,"d":"R 0.00"}]
[44,"Local operator training","Training for hospital / local maintenance personnel","Lot",{"v":1,"d":"1.00"},null,{"v":0,"d":"R 0.00"}]
[{"$nulls":5},"Preliminaries and Generals ",{"$f":"G5+G6+G7+G8","v":{"v":0,"d":"R 0.00"}}]
[{"$nulls":5},"Works Installation Summary",{"$f":"ROUND(SUM(G9:G49),2)","v":{"v":0,"d":"R 0.00"}}]
[{"$nulls":5},"Subtotal A (Excl. VAT)",{"$f":"ROUND(G49+G50,2)","v":{"v":0,"d":"R 0.00"}}]
[{"$nulls":5},"Add 10% Contingency",{"$f":"ROUND(G51*10%,2)","v":{"v":0,"d":"R 0.00"}}]
[{"$nulls":5},"Subtotal B (Excl. VAT)",{"$f":"ROUND(G51+G52,2)","v":{"v":0,"d":"R 0.00"}}]
[{"$nulls":5},"Add VAT @ 15%",{"$f":"ROUND(G53*15%,2)","v":{"v":0,"d":"R 0.00"}}]
[{"$nulls":5},"Amount carried forward to summary",{"$f":"ROUND(G53+G54,2)","v":{"v":0,"d":"R 0.00"}}]

{"sheet":"20. Bela-Bela","index":21,"n_rows":55,"n_cols":7,"rows_kept":55,"merged":[[0,0,0,6],[1,1,1,6]]}
["TENDER No: RFP069-070/2026: APPOINTMENT OF SERVICE PROVIDERS FOR THE DESIGN, SUPPLY, INSTALLATION, COMMISSIONING AND MAINTENANCE OF SOLAR-POWERED BACKUP SYSTEMS AT TWENTY (20) HOSPITAL FACILITIES RECEIVING PRESSURE SWING ADSORPTION (PSA) OXYGEN GENERATING PLANTS: \n Bela-Bela Hospital"]
[null,"Cluster 2 | Preliminary procurement quantities based on the 90 kWp planning class. Tenderer to price all items; final quantities and ratings remain subject to site verification, the accepted seven-day load study and the Contractor's detailed design."]
[]
["Item No","Item","Activity Description","Unit","Quantity","Rate","Amount"]
[1,"Preliminary & General: Once-off costs","Site establishment, mobilisation, demobilisation, temporary facilities, storage, fencing, site signage and initial setup.","Sum ",{"v":1,"d":"1.00"},null,{"$f":"BOQ_08[[#This Row],[Quantity]]*BOQ_08[[#This Row],[Rate]]","v":{"v":0,"d":"R 0.00"}}]
[2,"Preliminary & General:Time-related costs","Site management and supervision, temporary facilities, utilities, security, administration, plant, tools and welfare facilities for the contract duration.","Month ",{"v":1,"d":"1.00"},null,{"$f":"BOQ_08[[#This Row],[Quantity]]*BOQ_08[[#This Row],[Rate]]","v":{"v":0,"d":"R 0.00"}}]
[3,"Preliminary & General: Value-related costs","Contractor's All Risks Insurance, public liability insurance, performance guarantees, bonds, statutory fees and financial securities.","Sum ",{"v":1,"d":"1.00"},null,{"$f":"BOQ_08[[#This Row],[Quantity]]*BOQ_08[[#This Row],[Rate]]","v":{"v":0,"d":"R 0.00"}}]
[4,"Preliminary & General: Project-Specific Allowances","Hospital operational constraints, Occupational Health and Safety (OHS) compliance, permit-to-work coordination, infection prevention and control measures, temporary shutdowns, hospital operational constraints, logistics, testing and commissioning, operator training, as-built documentation and final handover.","Sum ",{"v":1,"d":"1.00"},null,{"$f":"BOQ_08[[#This Row],[Quantity]]*BOQ_08[[#This Row],[Rate]]","v":{"v":0,"d":"R 0.00"}}]
[5,"Tier 1 Solar PV modules","Tier 1 PV module, approx. 625–630 Wp each; final make/model by EPC tender","No.",{"v":143,"d":"143.00"},null,{"$f":"IF(OR(E9=\"\",F9=\"\"),0,E9*F9)","v":{"v":0,"d":"R 0.00"}}]
[6,"PV string labelling and module identification","UV-stable labels for module strings, DBs and isolation points","Lot",{"v":1,"d":"1.00"},null,{"v":0,"d":"R 0.00"}]
[7,"PV mounting system / carport structure","Solar carport mounting system subject to structural design","Lot",{"v":1,"d":"1.00"},null,{"v":0,"d":"R 0.00"}]
[8,"Module clamps, rails, brackets and fasteners","Compatible aluminium/stainless mounting accessories","Lot",{"v":1,"d":"1.00"},null,{"v":0,"d":"R 0.00"}]
[9,"MC4-compatible connectors","PV connectors; quantity subject to final string design","Lot",{"v":315,"d":"315.00"},null,{"v":0,"d":"R 0.00"}]
[10,"6 mm² PV DC cable","UV-rated solar DC cable, red/black; route length subject to site verification","m",{"v":180,"d":"180.00"},null,{"v":0,"d":"R 0.00"}]
[11,"DC cable containment","UV-rated conduit/trunking/trays and mechanical protection","Lot",{"v":1,"d":"1.00"},null,{"v":0,"d":"R 0.00"}]
[12,"DC protection box / combiner","String fusing/combiner arrangement, DC isolators, Type 1/2 SPD as site applicable","No.",{"v":1,"d":"1.00"},null,{"v":0,"d":"R 0.00"}]
[13,"DC isolators","Lockable DC isolation points with clear alternative-source labelling","Lot",{"v":4,"d":"4.00"},null,{"v":0,"d":"R 0.00"}]
[14,"Grid-forming PCS / inverter","Grid-forming PCS/inverter sized for PSA resilience application; final rating subject to load study","No.",{"v":1,"d":"1.00"},null,{"v":0,"d":"R 0.00"}]
[15,"PCS/inverter controller / EMS interface","Energy management and control interface for PV, BESS, genset and grid operation","No.",{"v":1,"d":"1.00"},null,{"v":0,"d":"R 0.00"}]
[16,"BESS cabinet","Outdoor-rated battery energy storage cabinet; final kWh subject to 7-day load monitoring","No.",{"v":1,"d":"1.00"},null,{"v":0,"d":"R 0.00"}]
[17,"BESS HVAC / thermal management","Integrated cabinet cooling/ventilation as required by selected BESS","Lot",{"v":1,"d":"1.00"},null,{"v":0,"d":"R 0.00"}]
[18,"Battery DC protection and isolation","Battery isolation, protection, safety interlocks and emergency shutdown interface","Lot",{"v":1,"d":"1.00"},null,{"v":0,"d":"R 0.00"}]
[19,"AC protection box","AC DB/protection board with breakers, SPDs, metering and labelling","No.",{"v":1,"d":"1.00"},null,{"v":0,"d":"R 0.00"}]
[20,"Static Transfer Switch (STS) / changeover","STS or compliant automatic changeover arrangement for critical PSA supply","No.",{"v":1,"d":"1.00"},null,{"v":0,"d":"R 0.00"}]
[21,"16 mm² XLPE copper cable","AC cable allowance; size and route length subject to detailed design","m",{"v":150,"d":"150.00"},null,{"v":0,"d":"R 0.00"}]
[22,"AC cable containment and termination accessories","Cable tray, gland plates, lugs, glands, ferrules and terminations; Tenderer to price","Lot",{"v":1,"d":"1.00"},null,{"$f":"IF(OR(E26=\"\",F26=\"\"),0,E26*F26)","v":{"v":0,"d":"R 0.00"}}]
[23,"Distribution board modifications","PSA DB integration, supply-side interface and alternative-source labelling","Lot",{"v":1,"d":"1.00"},null,{"v":0,"d":"R 0.00"}]
[24,"Generator integration interface","Genset interface, controls, protection, cabling and changeover coordination","Lot",{"v":1,"d":"1.00"},null,{"v":0,"d":"R 0.00"}]
[25,"Grid interface and export limiting","CTs/meters and export-limiting control at point of connection as applicable","Lot",{"v":1,"d":"1.00"},null,{"v":0,"d":"R 0.00"}]
[26,"Earthing and bonding system","PV frame bonding, equipment bonding and SANS-compliant earthing","Lot",{"v":1,"d":"1.00"},null,{"v":0,"d":"R 0.00"}]
[27,"Copper earth spikes","Copper-bonded earth rods/spikes; final quantity subject to earth testing","No.",{"v":8,"d":"8.00"},null,{"v":0,"d":"R 0.00"}]
[28,"Earth cable and accessories","Bare/insulated copper earth conductor, clamps, lugs and earth bar","m",{"v":100,"d":"100.00"},null,{"v":0,"d":"R 0.00"}]
[29,"Equipment plinths / foundations","Concrete plinths for PCS, BESS, AC/DC boards and ancillary equipment","Lot",{"v":1,"d":"1.00"},null,{"v":0,"d":"R 0.00"}]
[30,"Trenching and reinstatement","Cable trenching, sleeves, marker tape and surface reinstatement","m",{"v":15,"d":"15.00"},null,{"v":0,"d":"R 0.00"}]
[31,"Security fence","Security fencing around outdoor electrical equipment / BESS compound","m",{"v":5,"d":"5.00"},null,{"v":0,"d":"R 0.00"}]
[32,"Access gate and signage","Lockable access gate, danger signage and emergency contact signage","Lot",{"v":1,"d":"1.00"},null,{"v":0,"d":"R 0.00"}]
[33,"Remote monitoring gateway","Wi-Fi/LTE router, data logger and remote monitoring dashboard interface","No.",{"v":1,"d":"1.00"},null,{"v":0,"d":"R 0.00"}]
[34,"Electrical metering and CTs","3-phase metering, CTs and monitoring for PV/BESS/PSA supply","Lot",{"v":1,"d":"1.00"},null,{"v":0,"d":"R 0.00"}]
[35,"7-day load monitoring campaign","Class 0.5 logger; voltage/current/pf/kW/kVA/kWh at suitable intervals","Lot",{"v":1,"d":"1.00"},null,{"v":0,"d":"R 0.00"}]
[36,"Detailed engineering design","SLD, layout, cable sizing, protection coordination and construction pack","Lot",{"v":1,"d":"1.00"},null,{"v":0,"d":"R 0.00"}]
[37,"Shading, azimuth and yield verification","Final PV orientation, tilt, row spacing and shading verification","Lot",{"v":1,"d":"1.00"},null,{"v":0,"d":"R 0.00"}]
[38,"Wind/snow/structural verification","Civil/structural checks for carport mount solution","Lot",{"v":1,"d":"1.00"},null,{"v":0,"d":"R 0.00"}]
[39,"FAT / OEM support","OEM or approved technical representative support during FAT/commissioning","Lot",{"v":1,"d":"1.00"},null,{"v":0,"d":"R 0.00"}]
[40,"Testing and commissioning","Functional tests, protection tests, microgrid operation tests and handover checks","Lot",{"v":1,"d":"1.00"},null,{"v":0,"d":"R 0.00"}]
[41,"Certificate of Compliance","SANS-compliant electrical CoC and supporting certificates","Lot",{"v":1,"d":"1.00"},null,{"v":0,"d":"R 0.00"}]
[42,"Maintenance","36-month O&M price under the NEC3 TSC (PV + PCS + BESS); separate service component","Lot",{"v":1,"d":"1.00"},null,{"$f":"IF(OR(E46=\"\",F46=\"\"),0,E46*F46)","v":{"v":0,"d":"R 0.00"}}]
[43,"As-built drawings and handover pack","As-built SLDs, manuals, warranties, training records and close-out report","Lot",{"v":1,"d":"1.00"},null,{"v":0,"d":"R 0.00"}]
[44,"Local operator training","Training for hospital / local maintenance personnel","Lot",{"v":1,"d":"1.00"},null,{"v":0,"d":"R 0.00"}]
[{"$nulls":5},"Preliminaries and Generals ",{"$f":"G5+G6+G7+G8","v":{"v":0,"d":"R 0.00"}}]
[{"$nulls":5},"Works Installation Summary",{"$f":"ROUND(SUM(G9:G49),2)","v":{"v":0,"d":"R 0.00"}}]
[{"$nulls":5},"Subtotal A (Excl. VAT)",{"$f":"ROUND(G49+G50,2)","v":{"v":0,"d":"R 0.00"}}]
[{"$nulls":5},"Add 10% Contingency",{"$f":"ROUND(G51*10%,2)","v":{"v":0,"d":"R 0.00"}}]
[{"$nulls":5},"Subtotal B (Excl. VAT)",{"$f":"ROUND(G51+G52,2)","v":{"v":0,"d":"R 0.00"}}]
[{"$nulls":5},"Add VAT @ 15%",{"$f":"ROUND(G53*15%,2)","v":{"v":0,"d":"R 0.00"}}]
[{"$nulls":5},"Amount carried forward to summary",{"$f":"ROUND(G53+G54,2)","v":{"v":0,"d":"R 0.00"}}]